Workbook

Sheet الرابع
A1: إدارة قويسنا التعليمية0 الصف الرابع
A2: مدرسة عرب الرمل الإبتدائية سكة حديد | F2: نتيجة نصف العام 2019/2018
A3: م | B3: جلوس | C3: الاســــــــــــــم | D3: لغة عربية | E3: رياضيات | F3: لغة إنجليزية | G3: دراسات | H3: علوم | I3: فنى | J3: رياضى | K3: حاسب آلى | L3: نشاط1 | M3: نشاط2 | N3: دين
D4: 30 | E4: 30 | F4: 30 | G4: 30 | H4: 30 | I4: 100 | J4: 100 | K4: 100 | L4: 100 | M4: 100 | N4: 30 | O4: الترتيب | Q4: المجموع
A5: =IF(C5="","",SUBTOTAL(3,$C$5:C5)) -> 1 | B5: 1 | C5: احمد ابراهيم احمد عزت محمد خضير | D5: 100 | E5: 80 | F5: 40 | G5: 40 | H5: 40 | I5: 98 | J5: 98 | K5: 98 | L5: 97 | M5: 98 | N5: 40 | O5: =IF(N(Q5)=0,Q5,SUM(IF(ISNUMBER($Q$5:$Q$108)*(Q5<$Q$5:$Q$108),1/COUNTIF($Q$5:$Q$108,$Q$5:$Q$108)))+1) -> 1 | Q5: =IF(AND(D5="غ",E5="غ",F5="غ",G5="غ",H5="غ"),"غ",SUM(D5:H5)) -> 300
A6: =IF(C6="","",SUBTOTAL(3,$C$5:C6)) -> 2 | B6: 2 | C6: احمد احمد سيداحمد سعيد | D6: 100 | E6: 80 | F6: 40 | G6: 40 | H6: 40 | I6: 98 | J6: 98 | K6: 98 | L6: 97 | M6: 98 | N6: 40 | O6: =IF(N(Q6)=0,Q6,SUM(IF(ISNUMBER($Q$5:$Q$108)*(Q6<$Q$5:$Q$108),1/COUNTIF($Q$5:$Q$108,$Q$5:$Q$108)))+1) -> 1 | Q6: =IF(AND(D6="غ",E6="غ",F6="غ",G6="غ",H6="غ"),"غ",SUM(D6:H6)) -> 300
A7: =IF(C7="","",SUBTOTAL(3,$C$5:C7)) -> 3 | B7: 3 | C7: احمد انور عبد الرازق يوسف | D7: 29 | E7: 22 | F7: 29 | G7: 28 | H7: 30 | I7: 97 | J7: 98 | K7: 97 | L7: 97 | M7: 98 | N7: 29 | O7: =IF(N(Q7)=0,Q7,SUM(IF(ISNUMBER($Q$5:$Q$108)*(Q7<$Q$5:$Q$108),1/COUNTIF($Q$5:$Q$108,$Q$5:$Q$108)))+1) -> 14 | Q7: 138
A8: =IF(C8="","",SUBTOTAL(3,$C$5:C8)) -> 4 | B8: 4 | C8: احمد محمد امام المرادى | D8: 29 | E8: 29 | F8: 25 | G8: 30 | H8: 29 | I8: 99 | J8: 98 | K8: 99 | L8: 99 | M8: 98 | N8: 26 | O8: =IF(N(Q8)=0,Q8,SUM(IF(ISNUMBER($Q$5:$Q$108)*(Q8<$Q$5:$Q$108),1/COUNTIF($Q$5:$Q$108,$Q$5:$Q$108)))+1) -> 10 | Q8: 142
A9: =IF(C9="","",SUBTOTAL(3,$C$5:C9)) -> 5 | B9: 5 | C9: احمد هانى احمد محمد سالم | D9: 22 | E9: 29 | F9: 28 | G9: 22 | H9: 29 | I9: 99 | J9: 98 | K9: 99 | L9: 99 | M9: 98 | N9: 23 | O9: =IF(N(Q9)=0,Q9,SUM(IF(ISNUMBER($Q$5:$Q$108)*(Q9<$Q$5:$Q$108),1/COUNTIF($Q$5:$Q$108,$Q$5:$Q$108)))+1) -> 21 | Q9: 130
A10: =IF(C10="","",SUBTOTAL(3,$C$5:C10)) -> 6 | B10: 6 | C10: ادهم محمد محمد الشحات محمود المرادى | D10: 24 | E10: 29 | F10: 24 | G10: 22 | H10: 29 | I10: 99 | J10: 98 | K10: 99 | L10: 99 | M10: 97 | N10: 26 | O10: =IF(N(Q10)=0,Q10,SUM(IF(ISNUMBER($Q$5:$Q$108)*(Q10<$Q$5:$Q$108),1/COUNTIF($Q$5:$Q$108,$Q$5:$Q$108)))+1) -> 22 | Q10: 128
A11: =IF(C11="","",SUBTOTAL(3,$C$5:C11)) -> 7 | B11: 7 | C11: ادهم يحيى ابراهيم محمد ابراهيم | D11: 22 | E11: 19 | F11: 15 | G11: 22 | H11: 26 | I11: 99 | J11: 98 | K11: 99 | L11: 99 | M11: 98 | N11: 27 | O11: =IF(N(Q11)=0,Q11,SUM(IF(ISNUMBER($Q$5:$Q$108)*(Q11<$Q$5:$Q$108),1/COUNTIF($Q$5:$Q$108,$Q$5:$Q$108)))+1) -> 35 | Q11: 104
A12: =IF(C12="","",SUBTOTAL(3,$C$5:C12)) -> 8 | B12: 8 | C12: إياد محمود عبد الحفيظ المرسى المرادى | D12: 30 | E12: 27 | F12: 30 | G12: 27 | H12: 30 | I12: 99 | J12: 98 | K12: 99 | L12: 97 | M12: 98 | N12: 29 | O12: =IF(N(Q12)=0,Q12,SUM(IF(ISNUMBER($Q$5:$Q$108)*(Q12<$Q$5:$Q$108),1/COUNTIF($Q$5:$Q$108,$Q$5:$Q$108)))+1) -> 8 | Q12: 144
A13: =IF(C13="","",SUBTOTAL(3,$C$5:C13)) -> 9 | B13: 9 | C13: ايمن فوزى محروس احمد جبر | D13: 19 | E13: 24 | F13: 27 | G13: 29 | H13: 28 | I13: 99 | J13: 98 | K13: 99 | L13: 99 | M13: 98 | N13: 25 | O13: =IF(N(Q13)=0,Q13,SUM(IF(ISNUMBER($Q$5:$Q$108)*(Q13<$Q$5:$Q$108),1/COUNTIF($Q$5:$Q$108,$Q$5:$Q$108)))+1) -> 23 | Q13: 127
A14: =IF(C14="","",SUBTOTAL(3,$C$5:C14)) -> 10 | B14: 10 | C14: جمال عمرو الصادق محمد الصادق | D14: 23 | E14: 19 | F14: 28 | G14: 22 | H14: 27 | I14: 99 | J14: 98 | K14: 99 | L14: 99 | M14: 98 | N14: 30 | O14: =IF(N(Q14)=0,Q14,SUM(IF(ISNUMBER($Q$5:$Q$108)*(Q14<$Q$5:$Q$108),1/COUNTIF($Q$5:$Q$108,$Q$5:$Q$108)))+1) -> 26 | Q14: 119
A15: =IF(C15="","",SUBTOTAL(3,$C$5:C15)) -> 11 | B15: 11 | C15: جمال وليد جمال السيد احمد النجار | D15: 22 | E15: 23 | F15: 21 | G15: 26 | H15: 27 | I15: 98 | J15: 99 | K15: 98 | L15: 97 | M15: 96 | N15: 25 | O15: =IF(N(Q15)=0,Q15,SUM(IF(ISNUMBER($Q$5:$Q$108)*(Q15<$Q$5:$Q$108),1/COUNTIF($Q$5:$Q$108,$Q$5:$Q$108)))+1) -> 26 | Q15: 119
A16: =IF(C16="","",SUBTOTAL(3,$C$5:C16)) -> 12 | B16: 12 | C16: حسام محمد عبدالعاطى عبدالعزيز محمد | D16: 30 | E16: 30 | F16: 30 | G16: 30 | H16: 30 | I16: 99 | J16: 98 | K16: 99 | L16: 97 | M16: 98 | N16: 28 | O16: =IF(N(Q16)=0,Q16,SUM(IF(ISNUMBER($Q$5:$Q$108)*(Q16<$Q$5:$Q$108),1/COUNTIF($Q$5:$Q$108,$Q$5:$Q$108)))+1) -> 2 | Q16: 150
A17: =IF(C17="","",SUBTOTAL(3,$C$5:C17)) -> 13 | B17: 13 | C17: عبد الرحمن محمد سيد احمد ابراهيم محمد عبد الله | D17: 29 | E17: 28 | F17: 30 | G17: 24 | H17: 30 | I17: 97 | J17: 96 | K17: 97 | L17: 95 | M17: 98 | N17: 25 | O17: =IF(N(Q17)=0,Q17,SUM(IF(ISNUMBER($Q$5:$Q$108)*(Q17<$Q$5:$Q$108),1/COUNTIF($Q$5:$Q$108,$Q$5:$Q$108)))+1) -> 11 | Q17: 141
A18: =IF(C18="","",SUBTOTAL(3,$C$5:C18)) -> 14 | B18: 14 | C18: عبد الرحمن هانى البيومى السيد سيد أحمد | D18: 30 | E18: 25 | F18: 28 | G18: 29 | H18: 30 | I18: 99 | J18: 98 | K18: 99 | L18: 99 | M18: 98 | N18: 30 | O18: =IF(N(Q18)=0,Q18,SUM(IF(ISNUMBER($Q$5:$Q$108)*(Q18<$Q$5:$Q$108),1/COUNTIF($Q$5:$Q$108,$Q$5:$Q$108)))+1) -> 10 | Q18: 142
A19: =IF(C19="","",SUBTOTAL(3,$C$5:C19)) -> 15 | B19: 15 | C19: عبدالرحمن ابراهيم ابراهيم امام نصر | D19: 29 | E19: 17 | F19: 26 | G19: 29 | H19: 29 | I19: 98 | J19: 97 | K19: 98 | L19: 99 | M19: 97 | N19: 27 | O19: =IF(N(Q19)=0,Q19,SUM(IF(ISNUMBER($Q$5:$Q$108)*(Q19<$Q$5:$Q$108),1/COUNTIF($Q$5:$Q$108,$Q$5:$Q$108)))+1) -> 21 | Q19: 130
A20: =IF(C20="","",SUBTOTAL(3,$C$5:C20)) -> 16 | B20: 16 | C20: عمار ياسر محمود موسى عفيفي | D20: 19 | E20: 20 | F20: 21 | G20: 17 | H20: 23 | I20: 99 | J20: 98 | K20: 99 | L20: 99 | M20: 98 | N20: 22 | O20: =IF(N(Q20)=0,Q20,SUM(IF(ISNUMBER($Q$5:$Q$108)*(Q20<$Q$5:$Q$108),1/COUNTIF($Q$5:$Q$108,$Q$5:$Q$108)))+1) -> 37 | Q20: 100
A21: =IF(C21="","",SUBTOTAL(3,$C$5:C21)) -> 17 | B21: 17 | C21: عمر وليد السيد عبد المنعم | D21: 27 | E21: 27 | F21: 26 | G21: 25 | H21: 29 | I21: 99 | J21: 99 | K21: 99 | L21: 98 | M21: 98 | N21: 28 | O21: =IF(N(Q21)=0,Q21,SUM(IF(ISNUMBER($Q$5:$Q$108)*(Q21<$Q$5:$Q$108),1/COUNTIF($Q$5:$Q$108,$Q$5:$Q$108)))+1) -> 18 | Q21: 134
A22: =IF(C22="","",SUBTOTAL(3,$C$5:C22)) -> 18 | B22: 18 | C22: كرم هانى كرم عبد الرشيد عقل | D22: 29 | E22: 29 | F22: 30 | G22: 29 | H22: 30 | I22: 100 | J22: 98 | K22: 100 | L22: 100 | M22: 98 | N22: 28 | O22: =IF(N(Q22)=0,Q22,SUM(IF(ISNUMBER($Q$5:$Q$108)*(Q22<$Q$5:$Q$108),1/COUNTIF($Q$5:$Q$108,$Q$5:$Q$108)))+1) -> 5 | Q22: 147
A23: =IF(C23="","",SUBTOTAL(3,$C$5:C23)) -> 19 | B23: 19 | C23: كريم سامح محمد عطية | D23: 25 | E23: 25 | F23: 28 | G23: 29 | H23: 30 | I23: 99 | J23: 98 | K23: 99 | L23: 97 | M23: 98 | N23: 23 | O23: =IF(N(Q23)=0,Q23,SUM(IF(ISNUMBER($Q$5:$Q$108)*(Q23<$Q$5:$Q$108),1/COUNTIF($Q$5:$Q$108,$Q$5:$Q$108)))+1) -> 15 | Q23: 137
A24: =IF(C24="","",SUBTOTAL(3,$C$5:C24)) -> 20 | B24: 20 | C24: محمد ابراهيم ابراهيم امام نصر | D24: 24 | E24: 15 | F24: 27 | G24: 24 | H24: 26 | I24: 99 | J24: 98 | K24: 99 | L24: 99 | M24: 97 | N24: 26 | O24: =IF(N(Q24)=0,Q24,SUM(IF(ISNUMBER($Q$5:$Q$108)*(Q24<$Q$5:$Q$108),1/COUNTIF($Q$5:$Q$108,$Q$5:$Q$108)))+1) -> 27 | Q24: 116
A25: =IF(C25="","",SUBTOTAL(3,$C$5:C25)) -> 21 | B25: 21 | C25: محمد أحمد جمال عبد الحليم السيد | D25: 29 | E25: 25 | F25: 29 | G25: 26 | H25: 30 | I25: 99 | J25: 98 | K25: 99 | L25: 99 | M25: 98 | N25: 29 | O25: =IF(N(Q25)=0,Q25,SUM(IF(ISNUMBER($Q$5:$Q$108)*(Q25<$Q$5:$Q$108),1/COUNTIF($Q$5:$Q$108,$Q$5:$Q$108)))+1) -> 13 | Q25: 139
A26: =IF(C26="","",SUBTOTAL(3,$C$5:C26)) -> 22 | B26: 22 | C26: محمد احمد عبدالعزيز محمد عبد الغنى | D26: 30 | E26: 28 | F26: 30 | G26: 30 | H26: 30 | I26: 99 | J26: 98 | K26: 99 | L26: 97 | M26: 98 | N26: 27 | O26: =IF(N(Q26)=0,Q26,SUM(IF(ISNUMBER($Q$5:$Q$108)*(Q26<$Q$5:$Q$108),1/COUNTIF($Q$5:$Q$108,$Q$5:$Q$108)))+1) -> 4 | Q26: 148
A27: =IF(C27="","",SUBTOTAL(3,$C$5:C27)) -> 23 | B27: 23 | C27: محمد احمد محمد عبد العليم فرج | D27: 30 | E27: 30 | F27: 30 | G27: 30 | H27: 30 | I27: 99 | J27: 98 | K27: 99 | L27: 99 | M27: 98 | N27: 29 | O27: =IF(N(Q27)=0,Q27,SUM(IF(ISNUMBER($Q$5:$Q$108)*(Q27<$Q$5:$Q$108),1/COUNTIF($Q$5:$Q$108,$Q$5:$Q$108)))+1) -> 2 | Q27: 150
A28: =IF(C28="","",SUBTOTAL(3,$C$5:C28)) -> 24 | B28: 24 | C28: محمد السيد محمد الهادى عثمان | D28: 30 | E28: 30 | F28: 30 | G28: 29 | H28: 28 | I28: 99 | J28: 98 | K28: 99 | L28: 97 | M28: 98 | N28: 28 | O28: =IF(N(Q28)=0,Q28,SUM(IF(ISNUMBER($Q$5:$Q$108)*(Q28<$Q$5:$Q$108),1/COUNTIF($Q$5:$Q$108,$Q$5:$Q$108)))+1) -> 5 | Q28: 147
A29: =IF(C29="","",SUBTOTAL(3,$C$5:C29)) -> 25 | B29: 25 | C29: محمد امير سامى عبدالمطلب درغام | D29: 27 | E29: 24 | F29: 28 | G29: 28 | H29: 30 | I29: 99 | J29: 98 | K29: 99 | L29: 99 | M29: 97 | N29: 24 | O29: =IF(N(Q29)=0,Q29,SUM(IF(ISNUMBER($Q$5:$Q$108)*(Q29<$Q$5:$Q$108),1/COUNTIF($Q$5:$Q$108,$Q$5:$Q$108)))+1) -> 15 | Q29: 137
A30: =IF(C30="","",SUBTOTAL(3,$C$5:C30)) -> 26 | B30: 26 | C30: محمد رامى مسعد عبد المطلب على الاشقر | D30: 25 | E30: 23 | F30: 26 | G30: 26 | H30: 28 | I30: 99 | J30: 98 | K30: 99 | L30: 97 | M30: 98 | N30: 25 | O30: =IF(N(Q30)=0,Q30,SUM(IF(ISNUMBER($Q$5:$Q$108)*(Q30<$Q$5:$Q$108),1/COUNTIF($Q$5:$Q$108,$Q$5:$Q$108)))+1) -> 22 | Q30: 128
A31: =IF(C31="","",SUBTOTAL(3,$C$5:C31)) -> 27 | B31: 27 | C31: محمد سعيد محمد مصلحى عوض | D31: 27 | E31: 25 | F31: 25 | G31: 29 | H31: 27 | I31: 99 | J31: 99 | K31: 99 | L31: 99 | M31: 99 | N31: 28 | O31: =IF(N(Q31)=0,Q31,SUM(IF(ISNUMBER($Q$5:$Q$108)*(Q31<$Q$5:$Q$108),1/COUNTIF($Q$5:$Q$108,$Q$5:$Q$108)))+1) -> 19 | Q31: 133
A32: =IF(C32="","",SUBTOTAL(3,$C$5:C32)) -> 28 | B32: 28 | C32: محمد عمرو محمد فرج عمارة | D32: 24 | E32: 27 | F32: 26 | G32: 30 | H32: 30 | I32: 99 | J32: 99 | K32: 99 | L32: 99 | M32: 99 | N32: 23 | O32: =IF(N(Q32)=0,Q32,SUM(IF(ISNUMBER($Q$5:$Q$108)*(Q32<$Q$5:$Q$108),1/COUNTIF($Q$5:$Q$108,$Q$5:$Q$108)))+1) -> 15 | Q32: 137
A33: =IF(C33="","",SUBTOTAL(3,$C$5:C33)) -> 29 | B33: 29 | C33: محمد كرم مسعد الزيات | D33: 30 | E33: 28 | F33: 28 | G33: 30 | H33: 30 | I33: 99 | J33: 98 | K33: 99 | L33: 97 | M33: 98 | N33: 29 | O33: =IF(N(Q33)=0,Q33,SUM(IF(ISNUMBER($Q$5:$Q$108)*(Q33<$Q$5:$Q$108),1/COUNTIF($Q$5:$Q$108,$Q$5:$Q$108)))+1) -> 6 | Q33: 146
A34: =IF(C34="","",SUBTOTAL(3,$C$5:C34)) -> 30 | B34: 30 | C34: محمد نهاد محمد يوسف | D34: 30 | E34: 30 | F34: 28 | G34: 29 | H34: 29 | I34: 99 | J34: 98 | K34: 99 | L34: 97 | M34: 98 | N34: 28 | O34: =IF(N(Q34)=0,Q34,SUM(IF(ISNUMBER($Q$5:$Q$108)*(Q34<$Q$5:$Q$108),1/COUNTIF($Q$5:$Q$108,$Q$5:$Q$108)))+1) -> 6 | Q34: 146
A35: =IF(C35="","",SUBTOTAL(3,$C$5:C35)) -> 31 | B35: 31 | C35: محمد وائل ابوالفتوح عبدالسلام | D35: 23 | E35: 26 | F35: 29 | G35: 26 | H35: 29 | I35: 99 | J35: 98 | K35: 99 | L35: 97 | M35: 98 | N35: 26 | O35: =IF(N(Q35)=0,Q35,SUM(IF(ISNUMBER($Q$5:$Q$108)*(Q35<$Q$5:$Q$108),1/COUNTIF($Q$5:$Q$108,$Q$5:$Q$108)))+1) -> 19 | Q35: 133
A36: =IF(C36="","",SUBTOTAL(3,$C$5:C36)) -> 32 | B36: 32 | C36: محمد وائل محمد رشاد الجزار | D36: 27 | E36: 30 | F36: 25 | G36: 23 | H36: 30 | I36: 99 | J36: 98 | K36: 99 | L36: 97 | M36: 98 | N36: 27 | O36: =IF(N(Q36)=0,Q36,SUM(IF(ISNUMBER($Q$5:$Q$108)*(Q36<$Q$5:$Q$108),1/COUNTIF($Q$5:$Q$108,$Q$5:$Q$108)))+1) -> 17 | Q36: 135
A37: =IF(C37="","",SUBTOTAL(3,$C$5:C37)) -> 33 | B37: 33 | C37: محمد وليد سلامة محمد الخضصرى | D37: 28 | E37: 27 | F37: 30 | G37: 26 | H37: 30 | I37: 99 | J37: 98 | K37: 99 | L37: 97 | M37: 98 | N37: 29 | O37: =IF(N(Q37)=0,Q37,SUM(IF(ISNUMBER($Q$5:$Q$108)*(Q37<$Q$5:$Q$108),1/COUNTIF($Q$5:$Q$108,$Q$5:$Q$108)))+1) -> 11 | Q37: 141
A38: =IF(C38="","",SUBTOTAL(3,$C$5:C38)) -> 34 | B38: 34 | C38: محمود العشرى عبد المنعم عبدالكريم العشرى | D38: 29 | E38: 24 | F38: 29 | G38: 29 | H38: 28 | I38: 99 | J38: 98 | K38: 99 | L38: 97 | M38: 98 | N38: 27 | O38: =IF(N(Q38)=0,Q38,SUM(IF(ISNUMBER($Q$5:$Q$108)*(Q38<$Q$5:$Q$108),1/COUNTIF($Q$5:$Q$108,$Q$5:$Q$108)))+1) -> 13 | Q38: 139
A39: =IF(C39="","",SUBTOTAL(3,$C$5:C39)) -> 35 | B39: 35 | C39: محمود ماهر محمودعبد العاطى محمد عبد الهادي | D39: 26 | E39: 25 | F39: 28 | G39: 18 | H39: 30 | I39: 99 | J39: 98 | K39: 99 | L39: 99 | M39: 98 | N39: 23 | O39: =IF(N(Q39)=0,Q39,SUM(IF(ISNUMBER($Q$5:$Q$108)*(Q39<$Q$5:$Q$108),1/COUNTIF($Q$5:$Q$108,$Q$5:$Q$108)))+1) -> 23 | Q39: 127
A40: =IF(C40="","",SUBTOTAL(3,$C$5:C40)) -> 36 | B40: 36 | C40: محمود محمد محمود حسين السعودى | D40: 29 | E40: 19 | F40: 28 | G40: 29 | H40: 30 | I40: 97 | J40: 96 | K40: 97 | L40: 95 | M40: 98 | N40: 29 | O40: =IF(N(Q40)=0,Q40,SUM(IF(ISNUMBER($Q$5:$Q$108)*(Q40<$Q$5:$Q$108),1/COUNTIF($Q$5:$Q$108,$Q$5:$Q$108)))+1) -> 17 | Q40: 135
A41: =IF(C41="","",SUBTOTAL(3,$C$5:C41)) -> 37 | B41: 37 | C41: محمود نادر عقل محمد عقل | D41: 22 | E41: 18 | F41: 25 | G41: 15 | H41: 27 | I41: 99 | J41: 98 | K41: 99 | L41: 99 | M41: 98 | N41: 26 | O41: =IF(N(Q41)=0,Q41,SUM(IF(ISNUMBER($Q$5:$Q$108)*(Q41<$Q$5:$Q$108),1/COUNTIF($Q$5:$Q$108,$Q$5:$Q$108)))+1) -> 33 | Q41: 107
A42: =IF(C42="","",SUBTOTAL(3,$C$5:C42)) -> 38 | B42: 38 | C42: مصطفى محمود السعيد مصطفى المرادى | D42: 29 | E42: 30 | F42: 30 | G42: 28 | H42: 30 | I42: 99 | J42: 98 | K42: 99 | L42: 99 | M42: 98 | N42: 25 | O42: =IF(N(Q42)=0,Q42,SUM(IF(ISNUMBER($Q$5:$Q$108)*(Q42<$Q$5:$Q$108),1/COUNTIF($Q$5:$Q$108,$Q$5:$Q$108)))+1) -> 5 | Q42: 147
A43: =IF(C43="","",SUBTOTAL(3,$C$5:C43)) -> 39 | B43: 39 | C43: يحيى أحمد محمد فتوح أحمد العوني | D43: 27 | E43: 29 | F43: 29 | G43: 26 | H43: 30 | I43: 97 | J43: 98 | K43: 97 | L43: 97 | M43: 98 | N43: 27 | O43: =IF(N(Q43)=0,Q43,SUM(IF(ISNUMBER($Q$5:$Q$108)*(Q43<$Q$5:$Q$108),1/COUNTIF($Q$5:$Q$108,$Q$5:$Q$108)))+1) -> 11 | Q43: 141
A44: =IF(C44="","",SUBTOTAL(3,$C$5:C44)) -> 40 | B44: 40 | C44: يوسف احمد عبد المعطى محمد العليمى | D44: 27 | E44: 22 | F44: 29 | G44: 24 | H44: 30 | I44: 99 | J44: 98 | K44: 99 | L44: 99 | M44: 98 | N44: 28 | O44: =IF(N(Q44)=0,Q44,SUM(IF(ISNUMBER($Q$5:$Q$108)*(Q44<$Q$5:$Q$108),1/COUNTIF($Q$5:$Q$108,$Q$5:$Q$108)))+1) -> 20 | Q44: 132
A45: =IF(C45="","",SUBTOTAL(3,$C$5:C45)) -> 41 | B45: 41 | C45: يوسف خالد ابراهيم الدسوقى النادى | D45: 24 | E45: 24 | F45: 28 | G45: 17 | H45: 29 | I45: 100 | J45: 100 | K45: 100 | L45: 100 | M45: 100 | N45: 26 | O45: =IF(N(Q45)=0,Q45,SUM(IF(ISNUMBER($Q$5:$Q$108)*(Q45<$Q$5:$Q$108),1/COUNTIF($Q$5:$Q$108,$Q$5:$Q$108)))+1) -> 25 | Q45: 122
A46: =IF(C46="","",SUBTOTAL(3,$C$5:C46)) -> 42 | B46: 42 | C46: يوسف سامح شندى عبد العليم شندى | D46: 28 | E46: 24 | F46: 26 | G46: 27 | H46: 30 | I46: 99 | J46: 99 | K46: 99 | L46: 100 | M46: 98 | N46: 28 | O46: =IF(N(Q46)=0,Q46,SUM(IF(ISNUMBER($Q$5:$Q$108)*(Q46<$Q$5:$Q$108),1/COUNTIF($Q$5:$Q$108,$Q$5:$Q$108)))+1) -> 17 | Q46: 135
A47: =IF(C47="","",SUBTOTAL(3,$C$5:C47)) -> 43 | B47: 43 | C47: يوسف محمد عبد الخالق محمد حسن | D47: 25 | E47: 15 | F47: 29 | G47: 25 | H47: 30 | I47: 99 | J47: 98 | K47: 99 | L47: 99 | M47: 98 | N47: 27 | O47: =IF(N(Q47)=0,Q47,SUM(IF(ISNUMBER($Q$5:$Q$108)*(Q47<$Q$5:$Q$108),1/COUNTIF($Q$5:$Q$108,$Q$5:$Q$108)))+1) -> 24 | Q47: 124
A48: =IF(C48="","",SUBTOTAL(3,$C$5:C48)) -> 44 | B48: 44 | C48: يوسف محمد عبدالخالق المهدى | D48: 30 | E48: 25 | F48: 28 | G48: 28 | H48: 26 | I48: 99 | J48: 98 | K48: 99 | L48: 99 | M48: 98 | N48: 28 | O48: =IF(N(Q48)=0,Q48,SUM(IF(ISNUMBER($Q$5:$Q$108)*(Q48<$Q$5:$Q$108),1/COUNTIF($Q$5:$Q$108,$Q$5:$Q$108)))+1) -> 15 | Q48: 137
A49: =IF(C49="","",SUBTOTAL(3,$C$5:C49)) -> 45 | B49: 45 | C49: يوسف محمود احمد محمد داود | D49: 22 | E49: 27 | F49: 29 | G49: 16 | H49: 28 | I49: 98 | J49: 98 | K49: 98 | L49: 99 | M49: 98 | N49: 30 | O49: =IF(N(Q49)=0,Q49,SUM(IF(ISNUMBER($Q$5:$Q$108)*(Q49<$Q$5:$Q$108),1/COUNTIF($Q$5:$Q$108,$Q$5:$Q$108)))+1) -> 25 | Q49: 122
A50: =IF(C50="","",SUBTOTAL(3,$C$5:C50)) -> 46 | B50: 46 | C50: اروى محمد عبد السميع بكر | D50: 28 | E50: 30 | F50: 30 | G50: 29 | H50: 29 | I50: 99 | J50: 98 | K50: 99 | L50: 97 | M50: 98 | N50: 28 | O50: =IF(N(Q50)=0,Q50,SUM(IF(ISNUMBER($Q$5:$Q$108)*(Q50<$Q$5:$Q$108),1/COUNTIF($Q$5:$Q$108,$Q$5:$Q$108)))+1) -> 6 | Q50: 146
A51: =IF(C51="","",SUBTOTAL(3,$C$5:C51)) -> 47 | B51: 47 | C51: اميرة عبد الناصر عبد الخالق ابو الفتوح | D51: 30 | E51: 30 | F51: 30 | G51: 30 | H51: 30 | I51: 99 | J51: 98 | K51: 99 | L51: 99 | M51: 87 | N51: 28 | O51: =IF(N(Q51)=0,Q51,SUM(IF(ISNUMBER($Q$5:$Q$108)*(Q51<$Q$5:$Q$108),1/COUNTIF($Q$5:$Q$108,$Q$5:$Q$108)))+1) -> 2 | Q51: 150
A52: =IF(C52="","",SUBTOTAL(3,$C$5:C52)) -> 48 | B52: 48 | C52: ايسل طارق محمد السيد | D52: 28 | E52: 30 | F52: 30 | G52: 30 | H52: 30 | I52: 97 | J52: 96 | K52: 97 | L52: 95 | M52: 98 | N52: 29 | O52: =IF(N(Q52)=0,Q52,SUM(IF(ISNUMBER($Q$5:$Q$108)*(Q52<$Q$5:$Q$108),1/COUNTIF($Q$5:$Q$108,$Q$5:$Q$108)))+1) -> 4 | Q52: 148
A53: =IF(C53="","",SUBTOTAL(3,$C$5:C53)) -> 49 | B53: 49 | C53: ايمان احمد الشناوى الحسينى محمد | D53: 28 | E53: 28 | F53: 30 | G53: 27 | H53: 30 | I53: 97 | J53: 98 | K53: 97 | L53: 97 | M53: 98 | N53: 28 | O53: =IF(N(Q53)=0,Q53,SUM(IF(ISNUMBER($Q$5:$Q$108)*(Q53<$Q$5:$Q$108),1/COUNTIF($Q$5:$Q$108,$Q$5:$Q$108)))+1) -> 9 | Q53: 143
A54: =IF(C54="","",SUBTOTAL(3,$C$5:C54)) -> 50 | B54: 50 | C54: ايه ابراهيم ابراهيم امام نصر | D54: 30 | E54: 23 | F54: 29 | G54: 27 | H54: 30 | I54: 99 | J54: 98 | K54: 99 | L54: 97 | M54: 98 | N54: 28 | O54: =IF(N(Q54)=0,Q54,SUM(IF(ISNUMBER($Q$5:$Q$108)*(Q54<$Q$5:$Q$108),1/COUNTIF($Q$5:$Q$108,$Q$5:$Q$108)))+1) -> 13 | Q54: 139
A55: =IF(C55="","",SUBTOTAL(3,$C$5:C55)) -> 51 | B55: 51 | C55: بسملة ايهاب عبد المنعم عابدين | D55: 30 | E55: 29 | F55: 28 | G55: 30 | H55: 30 | I55: 99 | J55: 98 | K55: 99 | L55: 99 | M55: 98 | N55: 24 | O55: =IF(N(Q55)=0,Q55,SUM(IF(ISNUMBER($Q$5:$Q$108)*(Q55<$Q$5:$Q$108),1/COUNTIF($Q$5:$Q$108,$Q$5:$Q$108)))+1) -> 5 | Q55: 147
A56: =IF(C56="","",SUBTOTAL(3,$C$5:C56)) -> 52 | B56: 52 | C56: بسنت وائل احمد محمد المرادى | D56: 25 | E56: 22 | F56: 25 | G56: 26 | H56: 30 | I56: 97 | J56: 96 | K56: 97 | L56: 95 | M56: 98 | N56: 26 | O56: =IF(N(Q56)=0,Q56,SUM(IF(ISNUMBER($Q$5:$Q$108)*(Q56<$Q$5:$Q$108),1/COUNTIF($Q$5:$Q$108,$Q$5:$Q$108)))+1) -> 22 | Q56: 128
A57: =IF(C57="","",SUBTOTAL(3,$C$5:C57)) -> 53 | B57: 53 | C57: جنى السيد احمد السيد النجار | D57: 29 | E57: 30 | F57: 30 | G57: 30 | H57: 30 | I57: 96 | J57: 97 | K57: 96 | L57: 98 | M57: 98 | N57: 29 | O57: =IF(N(Q57)=0,Q57,SUM(IF(ISNUMBER($Q$5:$Q$108)*(Q57<$Q$5:$Q$108),1/COUNTIF($Q$5:$Q$108,$Q$5:$Q$108)))+1) -> 3 | Q57: 149
A58: =IF(C58="","",SUBTOTAL(3,$C$5:C58)) -> 54 | B58: 54 | C58: جنى زكريا عبد اللطيف السيد عطوة | D58: 30 | E58: 30 | F58: 30 | G58: 30 | H58: 30 | I58: 99 | J58: 98 | K58: 99 | L58: 97 | M58: 98 | N58: 29 | O58: =IF(N(Q58)=0,Q58,SUM(IF(ISNUMBER($Q$5:$Q$108)*(Q58<$Q$5:$Q$108),1/COUNTIF($Q$5:$Q$108,$Q$5:$Q$108)))+1) -> 2 | Q58: 150
A59: =IF(C59="","",SUBTOTAL(3,$C$5:C59)) -> 55 | B59: 55 | C59: جومانة خالد احمد عبد الحميد | D59: 28 | E59: 29 | F59: 27 | G59: 25 | H59: 30 | I59: 99 | J59: 98 | K59: 99 | L59: 97 | M59: 98 | N59: 28 | O59: =IF(N(Q59)=0,Q59,SUM(IF(ISNUMBER($Q$5:$Q$108)*(Q59<$Q$5:$Q$108),1/COUNTIF($Q$5:$Q$108,$Q$5:$Q$108)))+1) -> 13 | Q59: 139
A60: =IF(C60="","",SUBTOTAL(3,$C$5:C60)) -> 56 | B60: 56 | C60: جومانه جلال ابراهيم متولى المرادى | D60: 29 | E60: 30 | F60: 30 | G60: 28 | H60: 30 | I60: 98 | J60: 97 | K60: 98 | L60: 95 | M60: 96 | N60: 28 | O60: =IF(N(Q60)=0,Q60,SUM(IF(ISNUMBER($Q$5:$Q$108)*(Q60<$Q$5:$Q$108),1/COUNTIF($Q$5:$Q$108,$Q$5:$Q$108)))+1) -> 5 | Q60: 147
A61: =IF(C61="","",SUBTOTAL(3,$C$5:C61)) -> 57 | B61: 57 | C61: حبيبة احمد عبد الغنى امام محمد | D61: 30 | E61: 30 | F61: 30 | G61: 29 | H61: 30 | I61: 96 | J61: 95 | K61: 96 | L61: 95 | M61: 96 | N61: 29 | O61: =IF(N(Q61)=0,Q61,SUM(IF(ISNUMBER($Q$5:$Q$108)*(Q61<$Q$5:$Q$108),1/COUNTIF($Q$5:$Q$108,$Q$5:$Q$108)))+1) -> 3 | Q61: 149
A62: =IF(C62="","",SUBTOTAL(3,$C$5:C62)) -> 58 | B62: 58 | C62: حبيبه أحمد جمال عبد الحليم السيد | D62: 30 | E62: 21 | F62: 25 | G62: 26 | H62: 30 | I62: 99 | J62: 98 | K62: 99 | L62: 97 | M62: 98 | N62: 29 | O62: =IF(N(Q62)=0,Q62,SUM(IF(ISNUMBER($Q$5:$Q$108)*(Q62<$Q$5:$Q$108),1/COUNTIF($Q$5:$Q$108,$Q$5:$Q$108)))+1) -> 20 | Q62: 132
A63: =IF(C63="","",SUBTOTAL(3,$C$5:C63)) -> 59 | B63: 59 | C63: حبيبه بلال عبدالسميع بكر | D63: 29 | E63: 30 | F63: 25 | G63: 28 | H63: 29 | I63: 97 | J63: 96 | K63: 97 | L63: 95 | M63: 97 | N63: 29 | O63: =IF(N(Q63)=0,Q63,SUM(IF(ISNUMBER($Q$5:$Q$108)*(Q63<$Q$5:$Q$108),1/COUNTIF($Q$5:$Q$108,$Q$5:$Q$108)))+1) -> 11 | Q63: 141
A64: =IF(C64="","",SUBTOTAL(3,$C$5:C64)) -> 60 | B64: 60 | C64: خلود محمد على فهيم مصطفى الحاج | D64: 30 | E64: 30 | F64: 30 | G64: 30 | H64: 30 | I64: 97 | J64: 96 | K64: 97 | L64: 95 | M64: 96 | N64: 29 | O64: =IF(N(Q64)=0,Q64,SUM(IF(ISNUMBER($Q$5:$Q$108)*(Q64<$Q$5:$Q$108),1/COUNTIF($Q$5:$Q$108,$Q$5:$Q$108)))+1) -> 2 | Q64: 150
A65: =IF(C65="","",SUBTOTAL(3,$C$5:C65)) -> 61 | B65: 61 | C65: دعاء عمرو الصادق محمد الصادق | D65: 26 | E65: 30 | F65: 30 | G65: 30 | H65: 30 | I65: 99 | J65: 98 | K65: 99 | L65: 97 | M65: 98 | N65: 29 | O65: =IF(N(Q65)=0,Q65,SUM(IF(ISNUMBER($Q$5:$Q$108)*(Q65<$Q$5:$Q$108),1/COUNTIF($Q$5:$Q$108,$Q$5:$Q$108)))+1) -> 6 | Q65: 146
A66: =IF(C66="","",SUBTOTAL(3,$C$5:C66)) -> 62 | B66: 62 | C66: رفيدة احمد السيد الشاذلى الشحرى | D66: 30 | E66: 29 | F66: 30 | G66: 30 | H66: 30 | I66: 99 | J66: 98 | K66: 99 | L66: 97 | M66: 98 | N66: 28 | O66: =IF(N(Q66)=0,Q66,SUM(IF(ISNUMBER($Q$5:$Q$108)*(Q66<$Q$5:$Q$108),1/COUNTIF($Q$5:$Q$108,$Q$5:$Q$108)))+1) -> 3 | Q66: 149
A67: =IF(C67="","",SUBTOTAL(3,$C$5:C67)) -> 63 | B67: 63 | C67: رقيه مصطفى عفيفى عفيفى عيسى | D67: 27 | E67: 27 | F67: 28 | G67: 30 | H67: 30 | I67: 99 | J67: 98 | K67: 99 | L67: 99 | M67: 98 | N67: 30 | O67: =IF(N(Q67)=0,Q67,SUM(IF(ISNUMBER($Q$5:$Q$108)*(Q67<$Q$5:$Q$108),1/COUNTIF($Q$5:$Q$108,$Q$5:$Q$108)))+1) -> 10 | Q67: 142
A68: =IF(C68="","",SUBTOTAL(3,$C$5:C68)) -> 64 | B68: 64 | C68: رميساء ايمن عفيفى محمد دياب | D68: 15 | E68: 25 | F68: 24 | G68: 20 | H68: 21 | I68: 99 | J68: 98 | K68: 99 | L68: 97 | M68: 98 | N68: 18 | O68: =IF(N(Q68)=0,Q68,SUM(IF(ISNUMBER($Q$5:$Q$108)*(Q68<$Q$5:$Q$108),1/COUNTIF($Q$5:$Q$108,$Q$5:$Q$108)))+1) -> 34 | Q68: 105
A69: =IF(C69="","",SUBTOTAL(3,$C$5:C69)) -> 65 | B69: 65 | C69: رودينة عبد الله عبد الفتاح نصار | D69: 27 | E69: 30 | F69: 28 | G69: 29 | H69: 29 | I69: 99 | J69: 98 | K69: 99 | L69: 99 | M69: 98 | N69: 27 | O69: =IF(N(Q69)=0,Q69,SUM(IF(ISNUMBER($Q$5:$Q$108)*(Q69<$Q$5:$Q$108),1/COUNTIF($Q$5:$Q$108,$Q$5:$Q$108)))+1) -> 9 | Q69: 143
A70: =IF(C70="","",SUBTOTAL(3,$C$5:C70)) -> 66 | B70: 66 | C70: روضة احمد يوسف احمد النساج | D70: 30 | E70: 25 | F70: 28 | G70: 29 | H70: 30 | I70: 99 | J70: 98 | K70: 99 | L70: 97 | M70: 98 | N70: 28 | O70: =IF(N(Q70)=0,Q70,SUM(IF(ISNUMBER($Q$5:$Q$108)*(Q70<$Q$5:$Q$108),1/COUNTIF($Q$5:$Q$108,$Q$5:$Q$108)))+1) -> 10 | Q70: =IF(AND(D70="غ",E70="غ",F70="غ",G70="غ",H70="غ"),"غ",SUM(D70:H70)) -> 142
A71: =IF(C71="","",SUBTOTAL(3,$C$5:C71)) -> 67 | B71: 67 | C71: ريناد ايمن محمد على حسنين عطوة | D71: 28 | E71: 28 | F71: 29 | G71: 26 | H71: 30 | I71: 97 | J71: 98 | K71: 97 | L71: 97 | M71: 98 | N71: 26 | O71: =IF(N(Q71)=0,Q71,SUM(IF(ISNUMBER($Q$5:$Q$108)*(Q71<$Q$5:$Q$108),1/COUNTIF($Q$5:$Q$108,$Q$5:$Q$108)))+1) -> 11 | Q71: 141
A72: =IF(C72="","",SUBTOTAL(3,$C$5:C72)) -> 68 | B72: 68 | C72: سارة حاتم عبد السميع سلطان | D72: 27 | E72: 18 | F72: 24 | G72: 26 | H72: 29 | I72: 99 | J72: 98 | K72: 99 | L72: 99 | M72: 98 | N72: 28 | O72: =IF(N(Q72)=0,Q72,SUM(IF(ISNUMBER($Q$5:$Q$108)*(Q72<$Q$5:$Q$108),1/COUNTIF($Q$5:$Q$108,$Q$5:$Q$108)))+1) -> 24 | Q72: 124
A73: =IF(C73="","",SUBTOTAL(3,$C$5:C73)) -> 69 | B73: 69 | C73: سارة علاء على الليثى | D73: 30 | E73: 30 | F73: 30 | G73: 30 | H73: 30 | I73: 99 | J73: 98 | K73: 99 | L73: 97 | M73: 98 | N73: 30 | O73: =IF(N(Q73)=0,Q73,SUM(IF(ISNUMBER($Q$5:$Q$108)*(Q73<$Q$5:$Q$108),1/COUNTIF($Q$5:$Q$108,$Q$5:$Q$108)))+1) -> 2 | Q73: 150
A74: =IF(C74="","",SUBTOTAL(3,$C$5:C74)) -> 70 | B74: 70 | C74: سعاد سعيد عبد المنعم ابراهيم | D74: 30 | E74: 30 | F74: 29 | G74: 30 | H74: 30 | I74: 99 | J74: 98 | K74: 99 | L74: 97 | M74: 98 | N74: 29 | O74: =IF(N(Q74)=0,Q74,SUM(IF(ISNUMBER($Q$5:$Q$108)*(Q74<$Q$5:$Q$108),1/COUNTIF($Q$5:$Q$108,$Q$5:$Q$108)))+1) -> 3 | Q74: 149
A75: =IF(C75="","",SUBTOTAL(3,$C$5:C75)) -> 71 | B75: 71 | C75: سلمى محمد سامى فتحى يونس | D75: 27 | E75: 26 | F75: 27 | G75: 28 | H75: 28 | I75: 99 | J75: 98 | K75: 99 | L75: 97 | M75: 98 | N75: 29 | O75: =IF(N(Q75)=0,Q75,SUM(IF(ISNUMBER($Q$5:$Q$108)*(Q75<$Q$5:$Q$108),1/COUNTIF($Q$5:$Q$108,$Q$5:$Q$108)))+1) -> 16 | Q75: 136
A76: =IF(C76="","",SUBTOTAL(3,$C$5:C76)) -> 72 | B76: 72 | C76: سلوى فرج عبدالله جبر العيسوى | D76: 21 | E76: 15 | F76: 23 | G76: 24 | H76: 26 | I76: 99 | J76: 98 | K76: 99 | L76: 99 | M76: 97 | N76: 23 | O76: =IF(N(Q76)=0,Q76,SUM(IF(ISNUMBER($Q$5:$Q$108)*(Q76<$Q$5:$Q$108),1/COUNTIF($Q$5:$Q$108,$Q$5:$Q$108)))+1) -> 32 | Q76: 109
A77: =IF(C77="","",SUBTOTAL(3,$C$5:C77)) -> 73 | B77: 73 | C77: سما احمد عبد الخالق بكر | D77: 30 | E77: 27 | F77: 29 | G77: 28 | H77: 28 | I77: 99 | J77: 98 | K77: 99 | L77: 99 | M77: 98 | N77: 24 | O77: =IF(N(Q77)=0,Q77,SUM(IF(ISNUMBER($Q$5:$Q$108)*(Q77<$Q$5:$Q$108),1/COUNTIF($Q$5:$Q$108,$Q$5:$Q$108)))+1) -> 10 | Q77: 142
A78: =IF(C78="","",SUBTOTAL(3,$C$5:C78)) -> 74 | B78: 74 | C78: سما حسين عبد الله مرسى المرادى | D78: 27 | E78: 26 | F78: 26 | G78: 28 | H78: 26 | I78: 99 | J78: 98 | K78: 99 | L78: 97 | M78: 98 | N78: 25 | O78: =IF(N(Q78)=0,Q78,SUM(IF(ISNUMBER($Q$5:$Q$108)*(Q78<$Q$5:$Q$108),1/COUNTIF($Q$5:$Q$108,$Q$5:$Q$108)))+1) -> 19 | Q78: 133
A79: =IF(C79="","",SUBTOTAL(3,$C$5:C79)) -> 75 | B79: 75 | C79: سندس اسامة محمود السيد داود | D79: 28 | E79: 25 | F79: 27 | G79: 27 | H79: 30 | I79: 97 | J79: 98 | K79: 97 | L79: 97 | M79: 97 | N79: 25 | O79: =IF(N(Q79)=0,Q79,SUM(IF(ISNUMBER($Q$5:$Q$108)*(Q79<$Q$5:$Q$108),1/COUNTIF($Q$5:$Q$108,$Q$5:$Q$108)))+1) -> 15 | Q79: 137
A80: =IF(C80="","",SUBTOTAL(3,$C$5:C80)) -> 76 | B80: 76 | C80: شروق احمد موسى الصادق | D80: 30 | E80: 25 | F80: 28 | G80: 28 | H80: 29 | I80: 99 | J80: 98 | K80: 99 | L80: 97 | M80: 98 | N80: 29 | O80: =IF(N(Q80)=0,Q80,SUM(IF(ISNUMBER($Q$5:$Q$108)*(Q80<$Q$5:$Q$108),1/COUNTIF($Q$5:$Q$108,$Q$5:$Q$108)))+1) -> 12 | Q80: 140
A81: =IF(C81="","",SUBTOTAL(3,$C$5:C81)) -> 77 | B81: 77 | C81: صفا هشام محروس احمد جبر | D81: 29 | E81: 27 | F81: 28 | G81: 29 | H81: 30 | I81: 99 | J81: 98 | K81: 99 | L81: 97 | M81: 98 | N81: 26 | O81: =IF(N(Q81)=0,Q81,SUM(IF(ISNUMBER($Q$5:$Q$108)*(Q81<$Q$5:$Q$108),1/COUNTIF($Q$5:$Q$108,$Q$5:$Q$108)))+1) -> 9 | Q81: 143
A82: =IF(C82="","",SUBTOTAL(3,$C$5:C82)) -> 78 | B82: 78 | C82: مريم ابراهيم عبد الله إبراهيم عامر | D82: 27 | E82: 25 | F82: 23 | G82: 23 | H82: 29 | I82: 99 | J82: 98 | K82: 99 | L82: 97 | M82: 98 | N82: 23 | O82: =IF(N(Q82)=0,Q82,SUM(IF(ISNUMBER($Q$5:$Q$108)*(Q82<$Q$5:$Q$108),1/COUNTIF($Q$5:$Q$108,$Q$5:$Q$108)))+1) -> 23 | Q82: 127
A83: =IF(C83="","",SUBTOTAL(3,$C$5:C83)) -> 79 | B83: 79 | C83: مريم احمد صلاح الدين احمد حسن | D83: 28 | E83: 29 | F83: 30 | G83: 30 | H83: 30 | I83: 97 | J83: 98 | K83: 97 | L83: 97 | M83: 98 | N83: 27 | O83: =IF(N(Q83)=0,Q83,SUM(IF(ISNUMBER($Q$5:$Q$108)*(Q83<$Q$5:$Q$108),1/COUNTIF($Q$5:$Q$108,$Q$5:$Q$108)))+1) -> 5 | Q83: 147
A84: =IF(C84="","",SUBTOTAL(3,$C$5:C84)) -> 80 | B84: 80 | C84: مريم سامح الدسوقى احمد ابو المجد | D84: 30 | E84: 25 | F84: 30 | G84: 28 | H84: 30 | I84: 99 | J84: 98 | K84: 99 | L84: 97 | M84: 98 | N84: 30 | O84: =IF(N(Q84)=0,Q84,SUM(IF(ISNUMBER($Q$5:$Q$108)*(Q84<$Q$5:$Q$108),1/COUNTIF($Q$5:$Q$108,$Q$5:$Q$108)))+1) -> 9 | Q84: 143
A85: =IF(C85="","",SUBTOTAL(3,$C$5:C85)) -> 81 | B85: 81 | C85: مريم شوفى محمد حلمى عبد العزيز | D85: 30 | E85: 26 | F85: 29 | G85: 27 | H85: 30 | I85: 99 | J85: 98 | K85: 99 | L85: 97 | M85: 98 | N85: 30 | O85: =IF(N(Q85)=0,Q85,SUM(IF(ISNUMBER($Q$5:$Q$108)*(Q85<$Q$5:$Q$108),1/COUNTIF($Q$5:$Q$108,$Q$5:$Q$108)))+1) -> 10 | Q85: 142
A86: =IF(C86="","",SUBTOTAL(3,$C$5:C86)) -> 82 | B86: 82 | C86: مريم محمد فوزى المهدى | D86: 29 | E86: 30 | F86: 30 | G86: 28 | H86: 30 | I86: 99 | J86: 98 | K86: 99 | L86: 97 | M86: 98 | N86: 28 | O86: =IF(N(Q86)=0,Q86,SUM(IF(ISNUMBER($Q$5:$Q$108)*(Q86<$Q$5:$Q$108),1/COUNTIF($Q$5:$Q$108,$Q$5:$Q$108)))+1) -> 5 | Q86: 147
A87: =IF(C87="","",SUBTOTAL(3,$C$5:C87)) -> 83 | B87: 83 | C87: مريم وليد مسعد سلطان | D87: 30 | E87: 29 | F87: 30 | G87: 28 | H87: 30 | I87: 99 | J87: 98 | K87: 99 | L87: 97 | M87: 98 | N87: 29 | O87: =IF(N(Q87)=0,Q87,SUM(IF(ISNUMBER($Q$5:$Q$108)*(Q87<$Q$5:$Q$108),1/COUNTIF($Q$5:$Q$108,$Q$5:$Q$108)))+1) -> 5 | Q87: 147
A88: =IF(C88="","",SUBTOTAL(3,$C$5:C88)) -> 84 | B88: 84 | C88: ملك محمد أحمد السعيد محمد | D88: 30 | E88: 30 | F88: 30 | G88: 29 | H88: 30 | I88: 99 | J88: 98 | K88: 99 | L88: 97 | M88: 98 | N88: 29 | O88: =IF(N(Q88)=0,Q88,SUM(IF(ISNUMBER($Q$5:$Q$108)*(Q88<$Q$5:$Q$108),1/COUNTIF($Q$5:$Q$108,$Q$5:$Q$108)))+1) -> 3 | Q88: 149
A89: =IF(C89="","",SUBTOTAL(3,$C$5:C89)) -> 85 | B89: 85 | C89: ملك محمد محمود حسنين محمد حسن | D89: 29 | E89: 29 | F89: 27 | G89: 30 | H89: 30 | I89: 99 | J89: 98 | K89: 99 | L89: 97 | M89: 98 | N89: 28 | O89: =IF(N(Q89)=0,Q89,SUM(IF(ISNUMBER($Q$5:$Q$108)*(Q89<$Q$5:$Q$108),1/COUNTIF($Q$5:$Q$108,$Q$5:$Q$108)))+1) -> 7 | Q89: 145
A90: =IF(C90="","",SUBTOTAL(3,$C$5:C90)) -> 86 | B90: 86 | C90: ملك محمود جبر احمد جبر | D90: 27 | E90: 16 | F90: 17 | G90: 20 | H90: 30 | I90: 99 | J90: 97 | K90: 99 | L90: 97 | M90: 98 | N90: 26 | O90: =IF(N(Q90)=0,Q90,SUM(IF(ISNUMBER($Q$5:$Q$108)*(Q90<$Q$5:$Q$108),1/COUNTIF($Q$5:$Q$108,$Q$5:$Q$108)))+1) -> 31 | Q90: 110
A91: =IF(C91="","",SUBTOTAL(3,$C$5:C91)) -> 87 | B91: 87 | C91: منة الله محمد الشحات حامد محمد | D91: 19 | E91: 26 | F91: 25 | G91: 15 | H91: 29 | I91: 99 | J91: 98 | K91: 99 | L91: 99 | M91: 98 | N91: 25 | O91: =IF(N(Q91)=0,Q91,SUM(IF(ISNUMBER($Q$5:$Q$108)*(Q91<$Q$5:$Q$108),1/COUNTIF($Q$5:$Q$108,$Q$5:$Q$108)))+1) -> 28 | Q91: 114
A92: =IF(C92="","",SUBTOTAL(3,$C$5:C92)) -> 88 | B92: 88 | C92: منه الله عمرو فتحى الحنفى | D92: 30 | E92: 30 | F92: 30 | G92: 30 | H92: 30 | I92: 99 | J92: 98 | K92: 99 | L92: 97 | M92: 98 | N92: 27 | O92: =IF(N(Q92)=0,Q92,SUM(IF(ISNUMBER($Q$5:$Q$108)*(Q92<$Q$5:$Q$108),1/COUNTIF($Q$5:$Q$108,$Q$5:$Q$108)))+1) -> 2 | Q92: 150
A93: =IF(C93="","",SUBTOTAL(3,$C$5:C93)) -> 89 | B93: 89 | C93: منه محمد عبداللا مراسى | D93: 29 | E93: 25 | F93: 30 | G93: 28 | H93: 30 | I93: 99 | J93: 98 | K93: 99 | L93: 97 | M93: 97 | N93: 27 | O93: =IF(N(Q93)=0,Q93,SUM(IF(ISNUMBER($Q$5:$Q$108)*(Q93<$Q$5:$Q$108),1/COUNTIF($Q$5:$Q$108,$Q$5:$Q$108)))+1) -> 10 | Q93: 142
A94: =IF(C94="","",SUBTOTAL(3,$C$5:C94)) -> 90 | B94: 90 | C94: مى محمد فتحى عبد الستار البرويشى | D94: 30 | E94: 29 | F94: 30 | G94: 29 | H94: 30 | I94: 99 | J94: 98 | K94: 99 | L94: 97 | M94: 98 | N94: 30 | O94: =IF(N(Q94)=0,Q94,SUM(IF(ISNUMBER($Q$5:$Q$108)*(Q94<$Q$5:$Q$108),1/COUNTIF($Q$5:$Q$108,$Q$5:$Q$108)))+1) -> 4 | Q94: 148
A95: =IF(C95="","",SUBTOTAL(3,$C$5:C95)) -> 91 | B95: 91 | C95: ميار محمد مصطفى عزيزالدين مصطفى الحاج | D95: 30 | E95: 29 | F95: 30 | G95: 29 | H95: 30 | I95: 99 | J95: 97 | K95: 99 | L95: 99 | M95: 98 | N95: 28 | O95: =IF(N(Q95)=0,Q95,SUM(IF(ISNUMBER($Q$5:$Q$108)*(Q95<$Q$5:$Q$108),1/COUNTIF($Q$5:$Q$108,$Q$5:$Q$108)))+1) -> 4 | Q95: 148
A96: =IF(C96="","",SUBTOTAL(3,$C$5:C96)) -> 92 | B96: 92 | C96: ميار محمود زكى حماد | D96: 30 | E96: 30 | F96: 30 | G96: 30 | H96: 30 | I96: 99 | J96: 98 | K96: 99 | L96: 97 | M96: 98 | N96: 29 | O96: =IF(N(Q96)=0,Q96,SUM(IF(ISNUMBER($Q$5:$Q$108)*(Q96<$Q$5:$Q$108),1/COUNTIF($Q$5:$Q$108,$Q$5:$Q$108)))+1) -> 2 | Q96: 150
A97: =IF(C97="","",SUBTOTAL(3,$C$5:C97)) -> 93 | B97: 93 | C97: نجوى السيد ابراهيم عابدين | D97: 29 | E97: 26 | F97: 30 | G97: 28 | H97: 30 | I97: 99 | J97: 98 | K97: 99 | L97: 97 | M97: 98 | N97: 30 | O97: =IF(N(Q97)=0,Q97,SUM(IF(ISNUMBER($Q$5:$Q$108)*(Q97<$Q$5:$Q$108),1/COUNTIF($Q$5:$Q$108,$Q$5:$Q$108)))+1) -> 9 | Q97: 143
A98: =IF(C98="","",SUBTOTAL(3,$C$5:C98)) -> 94 | B98: 94 | C98: نعمة احمد مجاهد معوض محمد | D98: 30 | E98: 29 | F98: 30 | G98: 30 | H98: 30 | I98: 99 | J98: 98 | K98: 99 | L98: 97 | M98: 98 | N98: 29 | O98: =IF(N(Q98)=0,Q98,SUM(IF(ISNUMBER($Q$5:$Q$108)*(Q98<$Q$5:$Q$108),1/COUNTIF($Q$5:$Q$108,$Q$5:$Q$108)))+1) -> 3 | Q98: 149
A99: =IF(C99="","",SUBTOTAL(3,$C$5:C99)) -> 95 | B99: 95 | C99: هاجر مصطفى طه محمود | D99: 30 | E99: 30 | F99: 30 | G99: 30 | H99: 30 | I99: 99 | J99: 98 | K99: 99 | L99: 97 | M99: 98 | N99: 30 | O99: =IF(N(Q99)=0,Q99,SUM(IF(ISNUMBER($Q$5:$Q$108)*(Q99<$Q$5:$Q$108),1/COUNTIF($Q$5:$Q$108,$Q$5:$Q$108)))+1) -> 2 | Q99: 150
A100: =IF(C100="","",SUBTOTAL(3,$C$5:C100)) -> 96 | B100: 96 | C100: هدي عادل محمد مصيلحي | D100: 30 | E100: 30 | F100: 30 | G100: 29 | H100: 30 | I100: 99 | J100: 98 | K100: 99 | L100: 97 | M100: 98 | N100: 30 | O100: =IF(N(Q100)=0,Q100,SUM(IF(ISNUMBER($Q$5:$Q$108)*(Q100<$Q$5:$Q$108),1/COUNTIF($Q$5:$Q$108,$Q$5:$Q$108)))+1) -> 3 | Q100: 149
A101: =IF(C101="","",SUBTOTAL(3,$C$5:C101)) -> 97 | B101: 97 | C101: هنا فؤاد محمد حلمى عبد العزيز | D101: 30 | E101: 29 | F101: 30 | G101: 29 | H101: 30 | I101: 99 | J101: 98 | K101: 99 | L101: 97 | M101: 98 | N101: 29 | O101: =IF(N(Q101)=0,Q101,SUM(IF(ISNUMBER($Q$5:$Q$108)*(Q101<$Q$5:$Q$108),1/COUNTIF($Q$5:$Q$108,$Q$5:$Q$108)))+1) -> 4 | Q101: 148
A102: =IF(C102="","",SUBTOTAL(3,$C$5:C102)) -> 98 | B102: 98 | C102: يارا ايمن حسن باز الشريف | D102: 26 | E102: 22 | F102: 27 | G102: 23 | H102: 30 | I102: 99 | J102: 98 | K102: 99 | L102: 97 | M102: 98 | N102: 28 | O102: =IF(N(Q102)=0,Q102,SUM(IF(ISNUMBER($Q$5:$Q$108)*(Q102<$Q$5:$Q$108),1/COUNTIF($Q$5:$Q$108,$Q$5:$Q$108)))+1) -> 22 | Q102: 128
A103: =IF(C103="","",SUBTOTAL(3,$C$5:C103)) -> 99 | B103: 99 | C103: ياسمين خالد اابراهيم الدسوقى النادى | D103: 28 | E103: 23 | F103: 29 | G103: 29 | H103: 30 | I103: 99 | J103: 98 | K103: 99 | L103: 97 | M103: 98 | N103: 30 | O103: =IF(N(Q103)=0,Q103,SUM(IF(ISNUMBER($Q$5:$Q$108)*(Q103<$Q$5:$Q$108),1/COUNTIF($Q$5:$Q$108,$Q$5:$Q$108)))+1) -> 13 | Q103: 139
A104: =IF(C104="","",SUBTOTAL(3,$C$5:C104)) -> 100 | B104: 100 | C104: ابراهيم سامح ابراهيم مصيلحى | D104: 11 | E104: 27 | F104: 29 | G104: 17 | H104: 29 | I104: 95 | J104: 98 | K104: 95 | L104: 97 | M104: 98 | N104: 13 | O104: =IF(N(Q104)=0,Q104,SUM(IF(ISNUMBER($Q$5:$Q$108)*(Q104<$Q$5:$Q$108),1/COUNTIF($Q$5:$Q$108,$Q$5:$Q$108)))+1) -> 29 | Q104: 113
A105: =IF(C105="","",SUBTOTAL(3,$C$5:C105)) -> 101 | B105: 101 | C105: أحمد رشدى وهبه حسن متولى | D105: صفر | E105: 19 | F105: 29 | G105: 23 | H105: 30 | I105: 98 | J105: 99 | K105: 98 | L105: 97 | M105: 98 | N105: 6 | O105: =IF(N(Q105)=0,Q105,SUM(IF(ISNUMBER($Q$5:$Q$108)*(Q105<$Q$5:$Q$108),1/COUNTIF($Q$5:$Q$108,$Q$5:$Q$108)))+1) -> 36 | Q105: 101
A106: =IF(C106="","",SUBTOTAL(3,$C$5:C106)) -> 102 | B106: 102 | C106: احمد محمد محمد عبد العزيز حماد | D106: 7 | E106: 26 | F106: 27 | G106: 21 | H106: 30 | I106: 99 | J106: 98 | K106: 99 | L106: 99 | M106: 98 | N106: 25 | O106: =IF(N(Q106)=0,Q106,SUM(IF(ISNUMBER($Q$5:$Q$108)*(Q106<$Q$5:$Q$108),1/COUNTIF($Q$5:$Q$108,$Q$5:$Q$108)))+1) -> 30 | Q106: 111
A107: =IF(C107="","",SUBTOTAL(3,$C$5:C107)) -> 103 | B107: 103 | C107: السيد مصطفى السيد مصطفى | D107: صفر | E107: 18 | F107: 12 | G107: 1 | H107: 9 | I107: 100 | J107: 100 | K107: 100 | L107: 99 | M107: 99 | N107: صفر | O107: =IF(N(Q107)=0,Q107,SUM(IF(ISNUMBER($Q$5:$Q$108)*(Q107<$Q$5:$Q$108),1/COUNTIF($Q$5:$Q$108,$Q$5:$Q$108)))+1) -> 39 | Q107: 40
A108: =IF(C108="","",SUBTOTAL(3,$C$5:C108)) -> 104 | B108: 104 | C108: حسن محمود حسن حسن متولى | D108: 18 | E108: 14 | F108: 24 | G108: 10 | H108: 20 | I108: 99 | J108: 98 | K108: 99 | L108: 97 | M108: 98 | N108: 24 | O108: =IF(N(Q108)=0,Q108,SUM(IF(ISNUMBER($Q$5:$Q$108)*(Q108<$Q$5:$Q$108),1/COUNTIF($Q$5:$Q$108,$Q$5:$Q$108)))+1) -> 38 | Q108: 86
A109: =IF(C109="","",SUBTOTAL(3,$C$5:C109)) -> 105 | B109: 105 | C109: رشاد محمود أحمد محمد المرادى | D109: صفر | E109: 16 | F109: 14 | G109: 6 | H109: 11 | I109: 100 | J109: 100 | K109: 100 | L109: 100 | M109: 100 | N109: 4 | O109: =IF(N(Q109)=0,Q109,SUM(IF(ISNUMBER($Q$5:$Q$108)*(Q109<$Q$5:$Q$108),1/COUNTIF($Q$5:$Q$108,$Q$5:$Q$108)))+1) -> 39 | Q109: 47
A110: =IF(C110="","",SUBTOTAL(3,$C$5:C110)) -> 106 | B110: 106 | C110: على محمد على عبد العزيز حماد | D110: 24 | E110: 9 | F110: 24 | G110: 23 | H110: 22 | I110: 99 | J110: 99 | K110: 99 | L110: 99 | M110: 97 | N110: 27 | O110: =IF(N(Q110)=0,Q110,SUM(IF(ISNUMBER($Q$5:$Q$108)*(Q110<$Q$5:$Q$108),1/COUNTIF($Q$5:$Q$108,$Q$5:$Q$108)))+1) -> 36 | Q110: 102
A111: =IF(C111="","",SUBTOTAL(3,$C$5:C111)) -> 107 | B111: 107 | C111: محمد ابراهيم زكى احمد البحيرى | D111: 26 | E111: 11 | F111: 24 | G111: 13 | H111: 22 | I111: 99 | J111: 98 | K111: 99 | L111: 97 | M111: 98 | N111: 24 | O111: =IF(N(Q111)=0,Q111,SUM(IF(ISNUMBER($Q$5:$Q$108)*(Q111<$Q$5:$Q$108),1/COUNTIF($Q$5:$Q$108,$Q$5:$Q$108)))+1) -> 38 | Q111: 96
A112: =IF(C112="","",SUBTOTAL(3,$C$5:C112)) -> 108 | B112: 108 | C112: محمود محمد إبراهيم متولى المرادى | D112: 16 | E112: 17 | F112: 28 | G112: 12 | H112: 24 | I112: 97 | J112: 96 | K112: 97 | L112: 95 | M112: 98 | N112: 27 | O112: =IF(N(Q112)=0,Q112,SUM(IF(ISNUMBER($Q$5:$Q$108)*(Q112<$Q$5:$Q$108),1/COUNTIF($Q$5:$Q$108,$Q$5:$Q$108)))+1) -> 38 | Q112: 97
A113: =IF(C113="","",SUBTOTAL(3,$C$5:C113)) -> 109 | B113: 109 | C113: جنى محمود عبد الراضى حسنين احمد | D113: 19 | E113: 24 | F113: 16 | G113: 7 | H113: 28 | I113: 97 | J113: 96 | K113: 97 | L113: 95 | M113: 98 | N113: 18 | O113: =IF(N(Q113)=0,Q113,SUM(IF(ISNUMBER($Q$5:$Q$108)*(Q113<$Q$5:$Q$108),1/COUNTIF($Q$5:$Q$108,$Q$5:$Q$108)))+1) -> 38 | Q113: 94
A114: =IF(C114="","",SUBTOTAL(3,$C$5:C114)) -> 110 | B114: 110 | C114: شهد مصطفى صبحى عبد العزيز حماد | D114: 12 | E114: 22 | F114: 28 | G114: 23 | H114: 29 | I114: 99 | J114: 98 | K114: 99 | L114: 97 | M114: 98 | N114: 24 | O114: =IF(N(Q114)=0,Q114,SUM(IF(ISNUMBER($Q$5:$Q$108)*(Q114<$Q$5:$Q$108),1/COUNTIF($Q$5:$Q$108,$Q$5:$Q$108)))+1) -> 28 | Q114: 114
A115: =IF(C115="","",SUBTOTAL(3,$C$5:C115)) -> 111 | B115: 111 | C115: ملك محمد كمال الصادق فرج | D115: 15 | E115: 7 | F115: 12 | G115: 7 | H115: 16 | I115: 99 | J115: 98 | K115: 99 | L115: 97 | M115: 98 | N115: 11 | O115: =IF(N(Q115)=0,Q115,SUM(IF(ISNUMBER($Q$5:$Q$108)*(Q115<$Q$5:$Q$108),1/COUNTIF($Q$5:$Q$108,$Q$5:$Q$108)))+1) -> 39 | Q115: 57
A116: =IF(C116="","",SUBTOTAL(3,$C$5:C116)) -> 112 | B116: 112 | C116: ياسمين محمد عبد العزيز محمد | D116: 14 | E116: 11 | F116: 19 | G116: 26 | H116: 29 | I116: 99 | J116: 98 | K116: 99 | L116: 97 | M116: 98 | N116: 18 | O116: =IF(N(Q116)=0,Q116,SUM(IF(ISNUMBER($Q$5:$Q$108)*(Q116<$Q$5:$Q$108),1/COUNTIF($Q$5:$Q$108,$Q$5:$Q$108)))+1) -> 38 | Q116: 99

Sheet الخامس
A1: إدارة قويسنا التعليمية0 الصف الخامس
A2: مدرسة عربالرمل الإبتدائية سكة حديد | F2: نتيجة نصف العام 2019/2018
A3: م | B3: جلوس | C3: الاســــــــــــــم | D3: لغة عربية | E3: رياضيات | F3: لغة إنجليزية | G3: دراسات | H3: علوم | I3: فنى | J3: رياضى | K3: حاسب آلى | L3: نشاط1 | M3: نشاط2 | N3: دين
D4: 30 | E4: 30 | F4: 30 | G4: 30 | H4: 30 | I4: 100 | J4: 100 | K4: 100 | L4: 100 | M4: 100 | N4: 30 | O4: الترتيب | Q4: المجموع
A5: =IF(C5="","",SUBTOTAL(3,$C$5:C5)) -> 1 | B5: 201 | C5: ابراهيم السيد صبحى احمد الفارس | D5: 100 | E5: 80 | F5: 40 | G5: 40 | H5: 40 | I5: 95 | J5: 98 | K5: 99 | L5: 97 | M5: 98 | N5: 40 | O5: =IF(N(Q5)=0,Q5,SUM(IF(ISNUMBER($Q$5:$Q$108)*(Q5<$Q$5:$Q$108),1/COUNTIF($Q$5:$Q$108,$Q$5:$Q$108)))+1) -> 1 | Q5: =IF(AND(D5="غ",E5="غ",F5="غ",G5="غ",H5="غ"),"غ",SUM(D5:H5)) -> 300
A6: =IF(C6="","",SUBTOTAL(3,$C$5:C6)) -> 2 | B6: 202 | C6: احمد السيد عباس مصلحى | D6: 100 | E6: 80 | F6: 40 | G6: 40 | H6: 40 | I6: 95 | J6: 98 | K6: 99 | L6: 97 | M6: 98 | N6: 40 | O6: =IF(N(Q6)=0,Q6,SUM(IF(ISNUMBER($Q$5:$Q$108)*(Q6<$Q$5:$Q$108),1/COUNTIF($Q$5:$Q$108,$Q$5:$Q$108)))+1) -> 1 | Q6: =IF(AND(D6="غ",E6="غ",F6="غ",G6="غ",H6="غ"),"غ",SUM(D6:H6)) -> 300
A7: =IF(C7="","",SUBTOTAL(3,$C$5:C7)) -> 3 | B7: 203 | C7: أحمد أيمن السعيد المهدى العليمى | D7: 29 | E7: 30 | F7: 30 | G7: 30 | H7: 30 | I7: 99 | J7: 98 | K7: 98 | L7: 97 | M7: 98 | N7: 30 | O7: =IF(N(Q7)=0,Q7,SUM(IF(ISNUMBER($Q$5:$Q$108)*(Q7<$Q$5:$Q$108),1/COUNTIF($Q$5:$Q$108,$Q$5:$Q$108)))+1) -> 3 | Q7: 149
A8: =IF(C8="","",SUBTOTAL(3,$C$5:C8)) -> 4 | B8: 204 | C8: احمد حسين عبدالله مرسى المرادى | D8: 19 | E8: 25 | F8: 30 | G8: 29 | H8: 30 | I8: 97 | J8: 98 | K8: 98 | L8: 97 | M8: 98 | N8: 21 | O8: =IF(N(Q8)=0,Q8,SUM(IF(ISNUMBER($Q$5:$Q$108)*(Q8<$Q$5:$Q$108),1/COUNTIF($Q$5:$Q$108,$Q$5:$Q$108)))+1) -> 19 | Q8: 133
A9: =IF(C9="","",SUBTOTAL(3,$C$5:C9)) -> 5 | B9: 205 | C9: أحمد عادل محمد جلالة | D9: 28 | E9: 28 | F9: 29 | G9: 30 | H9: 30 | I9: 98 | J9: 99 | K9: 99 | L9: 97 | M9: 98 | N9: 30 | O9: =IF(N(Q9)=0,Q9,SUM(IF(ISNUMBER($Q$5:$Q$108)*(Q9<$Q$5:$Q$108),1/COUNTIF($Q$5:$Q$108,$Q$5:$Q$108)))+1) -> 7 | Q9: 145
A10: =IF(C10="","",SUBTOTAL(3,$C$5:C10)) -> 6 | B10: 206 | C10: أحمد عبد الرازق محمد الهادى عبد الرازق خليل | D10: 26 | E10: 30 | F10: 29 | G10: 30 | H10: 30 | I10: 99 | J10: 98 | K10: 98 | L10: 99 | M10: 98 | N10: 30 | O10: =IF(N(Q10)=0,Q10,SUM(IF(ISNUMBER($Q$5:$Q$108)*(Q10<$Q$5:$Q$108),1/COUNTIF($Q$5:$Q$108,$Q$5:$Q$108)))+1) -> 7 | Q10: 145
A11: =IF(C11="","",SUBTOTAL(3,$C$5:C11)) -> 7 | B11: 207 | C11: أحمد عبد المنعم محمد امام المرادى | D11: 27 | E11: 30 | F11: 28 | G11: 30 | H11: 30 | I11: 99 | J11: 98 | K11: 98 | L11: 99 | M11: 98 | N11: 28 | O11: =IF(N(Q11)=0,Q11,SUM(IF(ISNUMBER($Q$5:$Q$108)*(Q11<$Q$5:$Q$108),1/COUNTIF($Q$5:$Q$108,$Q$5:$Q$108)))+1) -> 7 | Q11: 145
A12: =IF(C12="","",SUBTOTAL(3,$C$5:C12)) -> 8 | B12: 208 | C12: أحمد كرم أحمد محمد عبد الله | D12: 19 | E12: 25 | F12: 24 | G12: 19 | H12: 28 | I12: 99 | J12: 98 | K12: 98 | L12: 99 | M12: 98 | N12: 17 | O12: =IF(N(Q12)=0,Q12,SUM(IF(ISNUMBER($Q$5:$Q$108)*(Q12<$Q$5:$Q$108),1/COUNTIF($Q$5:$Q$108,$Q$5:$Q$108)))+1) -> 29 | Q12: 115
A13: =IF(C13="","",SUBTOTAL(3,$C$5:C13)) -> 9 | B13: 209 | C13: احمد محمد حسن على الدهين | D13: 27 | E13: 26 | F13: 27 | G13: 29 | H13: 30 | I13: 99 | J13: 98 | K13: 98 | L13: 99 | M13: 97 | N13: 27 | O13: =IF(N(Q13)=0,Q13,SUM(IF(ISNUMBER($Q$5:$Q$108)*(Q13<$Q$5:$Q$108),1/COUNTIF($Q$5:$Q$108,$Q$5:$Q$108)))+1) -> 13 | Q13: 139
A14: =IF(C14="","",SUBTOTAL(3,$C$5:C14)) -> 10 | B14: 210 | C14: انس محروس عبد الرازق زايد | D14: 24 | E14: 23 | F14: 23 | G14: 30 | H14: 30 | I14: 99 | J14: 98 | K14: 98 | L14: 99 | M14: 98 | N14: 25 | O14: =IF(N(Q14)=0,Q14,SUM(IF(ISNUMBER($Q$5:$Q$108)*(Q14<$Q$5:$Q$108),1/COUNTIF($Q$5:$Q$108,$Q$5:$Q$108)))+1) -> 20 | Q14: 130
A15: =IF(C15="","",SUBTOTAL(3,$C$5:C15)) -> 11 | B15: 211 | C15: اياد احمد جبر احمد جبر | D15: 23 | E15: 27 | F15: 30 | G15: 30 | H15: 30 | I15: 100 | J15: 100 | K15: 100 | L15: 99 | M15: 99 | N15: 28 | O15: =IF(N(Q15)=0,Q15,SUM(IF(ISNUMBER($Q$5:$Q$108)*(Q15<$Q$5:$Q$108),1/COUNTIF($Q$5:$Q$108,$Q$5:$Q$108)))+1) -> 12 | Q15: 140
A16: =IF(C16="","",SUBTOTAL(3,$C$5:C16)) -> 12 | B16: 212 | C16: باسم السيد عبد المعطى السيد الشربينى | D16: 20 | E16: 25 | F16: 19 | G16: 26 | H16: 28 | I16: 99 | J16: 98 | K16: 98 | L16: 97 | M16: 98 | N16: 29 | O16: =IF(N(Q16)=0,Q16,SUM(IF(ISNUMBER($Q$5:$Q$108)*(Q16<$Q$5:$Q$108),1/COUNTIF($Q$5:$Q$108,$Q$5:$Q$108)))+1) -> 27 | Q16: 118
A17: =IF(C17="","",SUBTOTAL(3,$C$5:C17)) -> 13 | B17: 213 | C17: زياد عاطف محمد عبدالمنعم | D17: 29 | E17: 28 | F17: 30 | G17: 29 | H17: 30 | I17: 99 | J17: 98 | K17: 98 | L17: 99 | M17: 98 | N17: 30 | O17: =IF(N(Q17)=0,Q17,SUM(IF(ISNUMBER($Q$5:$Q$108)*(Q17<$Q$5:$Q$108),1/COUNTIF($Q$5:$Q$108,$Q$5:$Q$108)))+1) -> 6 | Q17: 146
A18: =IF(C18="","",SUBTOTAL(3,$C$5:C18)) -> 14 | B18: 214 | C18: زياد عبد المنعم السيد محمد زايد | D18: 29 | E18: 30 | F18: 30 | G18: 30 | H18: 29 | I18: 99 | J18: 98 | K18: 98 | L18: 99 | M18: 98 | N18: 30 | O18: =IF(N(Q18)=0,Q18,SUM(IF(ISNUMBER($Q$5:$Q$108)*(Q18<$Q$5:$Q$108),1/COUNTIF($Q$5:$Q$108,$Q$5:$Q$108)))+1) -> 4 | Q18: 148
A19: =IF(C19="","",SUBTOTAL(3,$C$5:C19)) -> 15 | B19: 215 | C19: زياد هانى محمد الهادى عبد الرازق خليل | D19: 30 | E19: 29 | F19: 28 | G19: 30 | H19: 30 | I19: 98 | J19: 99 | K19: 99 | L19: 97 | M19: 96 | N19: 30 | O19: =IF(N(Q19)=0,Q19,SUM(IF(ISNUMBER($Q$5:$Q$108)*(Q19<$Q$5:$Q$108),1/COUNTIF($Q$5:$Q$108,$Q$5:$Q$108)))+1) -> 5 | Q19: 147
A20: =IF(C20="","",SUBTOTAL(3,$C$5:C20)) -> 16 | B20: 216 | C20: عبد الرحمن أسامة محمود السيد داود | D20: 28 | E20: 28 | F20: 29 | G20: 30 | H20: 30 | I20: 99 | J20: 98 | K20: 98 | L20: 97 | M20: 98 | N20: 30 | O20: =IF(N(Q20)=0,Q20,SUM(IF(ISNUMBER($Q$5:$Q$108)*(Q20<$Q$5:$Q$108),1/COUNTIF($Q$5:$Q$108,$Q$5:$Q$108)))+1) -> 7 | Q20: 145
A21: =IF(C21="","",SUBTOTAL(3,$C$5:C21)) -> 17 | B21: 217 | C21: عبد الرحمن وجيه عبد الحليم عنتر السيد | D21: 24 | E21: 15 | F21: 29 | G21: 27 | H21: 28 | I21: 99 | J21: 98 | K21: 98 | L21: 99 | M21: 98 | N21: 23 | O21: =IF(N(Q21)=0,Q21,SUM(IF(ISNUMBER($Q$5:$Q$108)*(Q21<$Q$5:$Q$108),1/COUNTIF($Q$5:$Q$108,$Q$5:$Q$108)))+1) -> 25 | Q21: 123
A22: =IF(C22="","",SUBTOTAL(3,$C$5:C22)) -> 18 | B22: 218 | C22: عبد السميع خالد عبد السميع بكر | D22: 25 | E22: 19 | F22: 25 | G22: 29 | H22: 28 | I22: 100 | J22: 100 | K22: 100 | L22: 100 | M22: 100 | N22: 25 | O22: =IF(N(Q22)=0,Q22,SUM(IF(ISNUMBER($Q$5:$Q$108)*(Q22<$Q$5:$Q$108),1/COUNTIF($Q$5:$Q$108,$Q$5:$Q$108)))+1) -> 24 | Q22: 126
A23: =IF(C23="","",SUBTOTAL(3,$C$5:C23)) -> 19 | B23: 219 | C23: عبد العزيز السيد عبد العزيز محمد إبراهيم | D23: 30 | E23: 26 | F23: 29 | G23: 29 | H23: 30 | I23: 99 | J23: 99 | K23: 99 | L23: 99 | M23: 97 | N23: 30 | O23: =IF(N(Q23)=0,Q23,SUM(IF(ISNUMBER($Q$5:$Q$108)*(Q23<$Q$5:$Q$108),1/COUNTIF($Q$5:$Q$108,$Q$5:$Q$108)))+1) -> 8 | Q23: 144
A24: =IF(C24="","",SUBTOTAL(3,$C$5:C24)) -> 20 | B24: 220 | C24: عبدالرحمن محمد يوسف عبدالله المرادى | D24: 29 | E24: 22 | F24: 30 | G24: 29 | H24: 30 | I24: 99 | J24: 98 | K24: 98 | L24: 99 | M24: 98 | N24: 30 | O24: =IF(N(Q24)=0,Q24,SUM(IF(ISNUMBER($Q$5:$Q$108)*(Q24<$Q$5:$Q$108),1/COUNTIF($Q$5:$Q$108,$Q$5:$Q$108)))+1) -> 12 | Q24: 140
A25: =IF(C25="","",SUBTOTAL(3,$C$5:C25)) -> 21 | B25: 221 | C25: على محمد على موسى حسين | D25: 26 | E25: 25 | F25: 28 | G25: 28 | H25: 29 | I25: 100 | J25: 98 | K25: 98 | L25: 100 | M25: 98 | N25: 26 | O25: =IF(N(Q25)=0,Q25,SUM(IF(ISNUMBER($Q$5:$Q$108)*(Q25<$Q$5:$Q$108),1/COUNTIF($Q$5:$Q$108,$Q$5:$Q$108)))+1) -> 16 | Q25: 136
A26: =IF(C26="","",SUBTOTAL(3,$C$5:C26)) -> 22 | B26: 222 | C26: عمار سامح عبد الفتاح العونى | D26: 29 | E26: 27 | F26: 29 | G26: 29 | H26: 29 | I26: 99 | J26: 98 | K26: 98 | L26: 97 | M26: 98 | N26: 30 | O26: =IF(N(Q26)=0,Q26,SUM(IF(ISNUMBER($Q$5:$Q$108)*(Q26<$Q$5:$Q$108),1/COUNTIF($Q$5:$Q$108,$Q$5:$Q$108)))+1) -> 9 | Q26: 143
A27: =IF(C27="","",SUBTOTAL(3,$C$5:C27)) -> 23 | B27: 223 | C27: عمار محمد عفيفي محمد عيسي | D27: 21 | E27: 24 | F27: 28 | G27: 25 | H27: 29 | I27: 99 | J27: 98 | K27: 98 | L27: 99 | M27: 97 | N27: 28 | O27: =IF(N(Q27)=0,Q27,SUM(IF(ISNUMBER($Q$5:$Q$108)*(Q27<$Q$5:$Q$108),1/COUNTIF($Q$5:$Q$108,$Q$5:$Q$108)))+1) -> 23 | Q27: 127
A28: =IF(C28="","",SUBTOTAL(3,$C$5:C28)) -> 24 | B28: 224 | C28: عمر ايهاب محمود محمد يوسف | D28: 30 | E28: 29 | F28: 30 | G28: 30 | H28: 30 | I28: 99 | J28: 98 | K28: 98 | L28: 97 | M28: 98 | N28: 30 | O28: =IF(N(Q28)=0,Q28,SUM(IF(ISNUMBER($Q$5:$Q$108)*(Q28<$Q$5:$Q$108),1/COUNTIF($Q$5:$Q$108,$Q$5:$Q$108)))+1) -> 3 | Q28: 149
A29: =IF(C29="","",SUBTOTAL(3,$C$5:C29)) -> 25 | B29: 225 | C29: عمر عفيفى عفيفى قطب حسن | D29: 25 | E29: 27 | F29: 27 | G29: 30 | H29: 30 | I29: 99 | J29: 98 | K29: 98 | L29: 99 | M29: 98 | N29: 29 | O29: =IF(N(Q29)=0,Q29,SUM(IF(ISNUMBER($Q$5:$Q$108)*(Q29<$Q$5:$Q$108),1/COUNTIF($Q$5:$Q$108,$Q$5:$Q$108)))+1) -> 13 | Q29: 139
A30: =IF(C30="","",SUBTOTAL(3,$C$5:C30)) -> 26 | B30: 226 | C30: عمر محمد سمير عطية عفيفى الخولى | D30: 28 | E30: 26 | F30: 29 | G30: 28 | H30: 31 | I30: 99 | J30: 98 | K30: 98 | L30: 97 | M30: 98 | N30: 24 | O30: =IF(N(Q30)=0,Q30,SUM(IF(ISNUMBER($Q$5:$Q$108)*(Q30<$Q$5:$Q$108),1/COUNTIF($Q$5:$Q$108,$Q$5:$Q$108)))+1) -> 10 | Q30: 142
A31: =IF(C31="","",SUBTOTAL(3,$C$5:C31)) -> 27 | B31: 227 | C31: عمير محمد فهمى احمد الحنفى | D31: 25 | E31: 22 | F31: 28 | G31: 29 | H31: 29 | I31: 99 | J31: 98 | K31: 98 | L31: 99 | M31: 98 | N31: 20 | O31: =IF(N(Q31)=0,Q31,SUM(IF(ISNUMBER($Q$5:$Q$108)*(Q31<$Q$5:$Q$108),1/COUNTIF($Q$5:$Q$108,$Q$5:$Q$108)))+1) -> 19 | Q31: 133
A32: =IF(C32="","",SUBTOTAL(3,$C$5:C32)) -> 28 | B32: 228 | C32: فارس مجاهد على الليثى | D32: 29 | E32: 28 | F32: 29 | G32: 29 | H32: 30 | I32: 99 | J32: 98 | K32: 98 | L32: 97 | M32: 98 | N32: 30 | O32: =IF(N(Q32)=0,Q32,SUM(IF(ISNUMBER($Q$5:$Q$108)*(Q32<$Q$5:$Q$108),1/COUNTIF($Q$5:$Q$108,$Q$5:$Q$108)))+1) -> 7 | Q32: 145
A33: =IF(C33="","",SUBTOTAL(3,$C$5:C33)) -> 29 | B33: 229 | C33: كريم أحمد عبد الرحمن السيد يوسف | D33: 29 | E33: 26 | F33: 30 | G33: 25 | H33: 29 | I33: 99 | J33: 98 | K33: 98 | L33: 97 | M33: 98 | N33: 30 | O33: =IF(N(Q33)=0,Q33,SUM(IF(ISNUMBER($Q$5:$Q$108)*(Q33<$Q$5:$Q$108),1/COUNTIF($Q$5:$Q$108,$Q$5:$Q$108)))+1) -> 13 | Q33: 139
A34: =IF(C34="","",SUBTOTAL(3,$C$5:C34)) -> 30 | B34: 230 | C34: كريم شوقى السيد محمد محمد | D34: 23 | E34: 20 | F34: 22 | G34: 27 | H34: 30 | I34: 99 | J34: 98 | K34: 98 | L34: 99 | M34: 98 | N34: 25 | O34: =IF(N(Q34)=0,Q34,SUM(IF(ISNUMBER($Q$5:$Q$108)*(Q34<$Q$5:$Q$108),1/COUNTIF($Q$5:$Q$108,$Q$5:$Q$108)))+1) -> 26 | Q34: 122
A35: =IF(C35="","",SUBTOTAL(3,$C$5:C35)) -> 31 | B35: 231 | C35: ماجد محمد السيد بكر | D35: 30 | E35: 28 | F35: 29 | G35: 29 | H35: 30 | I35: 99 | J35: 98 | K35: 98 | L35: 97 | M35: 98 | N35: 27 | O35: =IF(N(Q35)=0,Q35,SUM(IF(ISNUMBER($Q$5:$Q$108)*(Q35<$Q$5:$Q$108),1/COUNTIF($Q$5:$Q$108,$Q$5:$Q$108)))+1) -> 6 | Q35: 146
A36: =IF(C36="","",SUBTOTAL(3,$C$5:C36)) -> 32 | B36: 232 | C36: مازن محمد حسين عبدالوهاب | D36: 29 | E36: 30 | F36: 27 | G36: 30 | H36: 28 | I36: 99 | J36: 98 | K36: 98 | L36: 97 | M36: 98 | N36: 30 | O36: =IF(N(Q36)=0,Q36,SUM(IF(ISNUMBER($Q$5:$Q$108)*(Q36<$Q$5:$Q$108),1/COUNTIF($Q$5:$Q$108,$Q$5:$Q$108)))+1) -> 8 | Q36: 144
A37: =IF(C37="","",SUBTOTAL(3,$C$5:C37)) -> 33 | B37: 233 | C37: محمد أسامه عبد العاطى عبد العزيز موسى | D37: 29 | E37: 30 | F37: 30 | G37: 30 | H37: 30 | I37: 99 | J37: 98 | K37: 98 | L37: 97 | M37: 98 | N37: 30 | O37: =IF(N(Q37)=0,Q37,SUM(IF(ISNUMBER($Q$5:$Q$108)*(Q37<$Q$5:$Q$108),1/COUNTIF($Q$5:$Q$108,$Q$5:$Q$108)))+1) -> 3 | Q37: 149
A38: =IF(C38="","",SUBTOTAL(3,$C$5:C38)) -> 34 | B38: 234 | C38: محمد السيد البيومى السيد | D38: 24 | E38: 21 | F38: 27 | G38: 27 | H38: 27 | I38: 99 | J38: 98 | K38: 98 | L38: 97 | M38: 98 | N38: 29 | O38: =IF(N(Q38)=0,Q38,SUM(IF(ISNUMBER($Q$5:$Q$108)*(Q38<$Q$5:$Q$108),1/COUNTIF($Q$5:$Q$108,$Q$5:$Q$108)))+1) -> 24 | Q38: 126
A39: =IF(C39="","",SUBTOTAL(3,$C$5:C39)) -> 35 | B39: 235 | C39: محمد ايمن ابراهيم امام سليمان | D39: 26 | E39: 28 | F39: 30 | G39: 29 | H39: 30 | I39: 99 | J39: 98 | K39: 98 | L39: 97 | M39: 98 | N39: 28 | O39: =IF(N(Q39)=0,Q39,SUM(IF(ISNUMBER($Q$5:$Q$108)*(Q39<$Q$5:$Q$108),1/COUNTIF($Q$5:$Q$108,$Q$5:$Q$108)))+1) -> 9 | Q39: 143
A40: =IF(C40="","",SUBTOTAL(3,$C$5:C40)) -> 36 | B40: 236 | C40: محمد طارق محمد السيد أبو الفتوح | D40: 21 | E40: 23 | F40: 28 | G40: 28 | H40: 30 | I40: 97 | J40: 96 | K40: 96 | L40: 95 | M40: 98 | N40: 30 | O40: =IF(N(Q40)=0,Q40,SUM(IF(ISNUMBER($Q$5:$Q$108)*(Q40<$Q$5:$Q$108),1/COUNTIF($Q$5:$Q$108,$Q$5:$Q$108)))+1) -> 20 | Q40: 130
A41: =IF(C41="","",SUBTOTAL(3,$C$5:C41)) -> 37 | B41: 237 | C41: محمد عادل نبيل فهيم | D41: 25 | E41: 24 | F41: 26 | G41: 28 | H41: 30 | I41: 97 | J41: 96 | K41: 96 | L41: 95 | M41: 98 | N41: 28 | O41: =IF(N(Q41)=0,Q41,SUM(IF(ISNUMBER($Q$5:$Q$108)*(Q41<$Q$5:$Q$108),1/COUNTIF($Q$5:$Q$108,$Q$5:$Q$108)))+1) -> 19 | Q41: 133
A42: =IF(C42="","",SUBTOTAL(3,$C$5:C42)) -> 38 | B42: 238 | C42: محمد عبد المنعم عبد الرازق عبد المنعم محمد | D42: 19 | E42: 30 | F42: 24 | G42: 28 | H42: 28 | I42: 99 | J42: 98 | K42: 98 | L42: 99 | M42: 98 | N42: 30 | O42: =IF(N(Q42)=0,Q42,SUM(IF(ISNUMBER($Q$5:$Q$108)*(Q42<$Q$5:$Q$108),1/COUNTIF($Q$5:$Q$108,$Q$5:$Q$108)))+1) -> 21 | Q42: 129
A43: =IF(C43="","",SUBTOTAL(3,$C$5:C43)) -> 39 | B43: 239 | C43: محمد علي محمد علي حسن | D43: 30 | E43: 28 | F43: 30 | G43: 29 | H43: 30 | I43: 99 | J43: 98 | K43: 98 | L43: 99 | M43: 98 | N43: 30 | O43: =IF(N(Q43)=0,Q43,SUM(IF(ISNUMBER($Q$5:$Q$108)*(Q43<$Q$5:$Q$108),1/COUNTIF($Q$5:$Q$108,$Q$5:$Q$108)))+1) -> 5 | Q43: 147
A44: =IF(C44="","",SUBTOTAL(3,$C$5:C44)) -> 40 | B44: 240 | C44: محمد عماد رمضان محمد عبد الحميد | D44: 30 | E44: 27 | F44: 30 | G44: 29 | H44: 30 | I44: 97 | J44: 98 | K44: 98 | L44: 97 | M44: 98 | N44: 29 | O44: =IF(N(Q44)=0,Q44,SUM(IF(ISNUMBER($Q$5:$Q$108)*(Q44<$Q$5:$Q$108),1/COUNTIF($Q$5:$Q$108,$Q$5:$Q$108)))+1) -> 6 | Q44: 146
A45: =IF(C45="","",SUBTOTAL(3,$C$5:C45)) -> 41 | B45: 241 | C45: محمد نبيل عبد العزيز بكر | D45: 28 | E45: 22 | F45: 29 | G45: 29 | H45: 30 | I45: 99 | J45: 98 | K45: 98 | L45: 99 | M45: 98 | N45: 29 | O45: =IF(N(Q45)=0,Q45,SUM(IF(ISNUMBER($Q$5:$Q$108)*(Q45<$Q$5:$Q$108),1/COUNTIF($Q$5:$Q$108,$Q$5:$Q$108)))+1) -> 14 | Q45: 138
A46: =IF(C46="","",SUBTOTAL(3,$C$5:C46)) -> 42 | B46: 242 | C46: محمود أحمد ابراهيم متولى السيد | D46: 26 | E46: 30 | F46: 24 | G46: 28 | H46: 26 | I46: 100 | J46: 100 | K46: 100 | L46: 100 | M46: 100 | N46: 30 | O46: =IF(N(Q46)=0,Q46,SUM(IF(ISNUMBER($Q$5:$Q$108)*(Q46<$Q$5:$Q$108),1/COUNTIF($Q$5:$Q$108,$Q$5:$Q$108)))+1) -> 18 | Q46: 134
A47: =IF(C47="","",SUBTOTAL(3,$C$5:C47)) -> 43 | B47: 243 | C47: محمود أحمد محروس السيد يكر | D47: 29 | E47: 30 | F47: 30 | G47: 29 | H47: 30 | I47: 99 | J47: 99 | K47: 99 | L47: 100 | M47: 98 | N47: 29 | O47: =IF(N(Q47)=0,Q47,SUM(IF(ISNUMBER($Q$5:$Q$108)*(Q47<$Q$5:$Q$108),1/COUNTIF($Q$5:$Q$108,$Q$5:$Q$108)))+1) -> 4 | Q47: 148
A48: =IF(C48="","",SUBTOTAL(3,$C$5:C48)) -> 44 | B48: 244 | C48: محمود زايد عبد المنعم زايد | D48: 22 | E48: 16 | F48: 24 | G48: 28 | H48: 27 | I48: 99 | J48: 98 | K48: 98 | L48: 99 | M48: 98 | N48: 25 | O48: =IF(N(Q48)=0,Q48,SUM(IF(ISNUMBER($Q$5:$Q$108)*(Q48<$Q$5:$Q$108),1/COUNTIF($Q$5:$Q$108,$Q$5:$Q$108)))+1) -> 28 | Q48: 117
A49: =IF(C49="","",SUBTOTAL(3,$C$5:C49)) -> 45 | B49: 245 | C49: محمود شوقي الحسيني عثمان | D49: 19 | E49: 26 | F49: 26 | G49: 28 | H49: 28 | I49: 99 | J49: 98 | K49: 98 | L49: 99 | M49: 98 | N49: 26 | O49: =IF(N(Q49)=0,Q49,SUM(IF(ISNUMBER($Q$5:$Q$108)*(Q49<$Q$5:$Q$108),1/COUNTIF($Q$5:$Q$108,$Q$5:$Q$108)))+1) -> 23 | Q49: 127
A50: =IF(C50="","",SUBTOTAL(3,$C$5:C50)) -> 46 | B50: 246 | C50: محمود عادل رزق عبد الهادى عطيه | D50: 29 | E50: 29 | F50: 30 | G50: 30 | H50: 30 | I50: 98 | J50: 98 | K50: 98 | L50: 99 | M50: 98 | N50: 29 | O50: =IF(N(Q50)=0,Q50,SUM(IF(ISNUMBER($Q$5:$Q$108)*(Q50<$Q$5:$Q$108),1/COUNTIF($Q$5:$Q$108,$Q$5:$Q$108)))+1) -> 4 | Q50: 148
A51: =IF(C51="","",SUBTOTAL(3,$C$5:C51)) -> 47 | B51: 247 | C51: محمود فوزى محمود سعيد سيد احمد | D51: 28 | E51: 29 | F51: 29 | G51: 29 | H51: 30 | I51: 99 | J51: 98 | K51: 98 | L51: 97 | M51: 98 | N51: 28 | O51: =IF(N(Q51)=0,Q51,SUM(IF(ISNUMBER($Q$5:$Q$108)*(Q51<$Q$5:$Q$108),1/COUNTIF($Q$5:$Q$108,$Q$5:$Q$108)))+1) -> 7 | Q51: 145
A52: =IF(C52="","",SUBTOTAL(3,$C$5:C52)) -> 48 | B52: 248 | C52: محمود وائل محمود حماد | D52: 27 | E52: 29 | F52: 27 | G52: 29 | H52: 30 | I52: 99 | J52: 98 | K52: 98 | L52: 99 | M52: 87 | N52: 30 | O52: =IF(N(Q52)=0,Q52,SUM(IF(ISNUMBER($Q$5:$Q$108)*(Q52<$Q$5:$Q$108),1/COUNTIF($Q$5:$Q$108,$Q$5:$Q$108)))+1) -> 10 | Q52: 142
A53: =IF(C53="","",SUBTOTAL(3,$C$5:C53)) -> 49 | B53: 249 | C53: مروان محمود على الليثى | D53: 26 | E53: 29 | F53: 28 | G53: 29 | H53: 29 | I53: 97 | J53: 96 | K53: 96 | L53: 95 | M53: 98 | N53: 29 | O53: =IF(N(Q53)=0,Q53,SUM(IF(ISNUMBER($Q$5:$Q$108)*(Q53<$Q$5:$Q$108),1/COUNTIF($Q$5:$Q$108,$Q$5:$Q$108)))+1) -> 11 | Q53: 141
A54: =IF(C54="","",SUBTOTAL(3,$C$5:C54)) -> 50 | B54: 250 | C54: يوسف احمد فايز عبدالمولى فرج | D54: 27 | E54: 28 | F54: 26 | G54: 29 | H54: 30 | I54: 99 | J54: 98 | K54: 98 | L54: 97 | M54: 98 | N54: 30 | O54: =IF(N(Q54)=0,Q54,SUM(IF(ISNUMBER($Q$5:$Q$108)*(Q54<$Q$5:$Q$108),1/COUNTIF($Q$5:$Q$108,$Q$5:$Q$108)))+1) -> 12 | Q54: 140
A55: =IF(C55="","",SUBTOTAL(3,$C$5:C55)) -> 51 | B55: 251 | C55: يوسف الخضرى محمد الخضرى العليمى | D55: 27 | E55: 30 | F55: 30 | G55: 30 | H55: 30 | I55: 99 | J55: 98 | K55: 98 | L55: 99 | M55: 98 | N55: 30 | O55: =IF(N(Q55)=0,Q55,SUM(IF(ISNUMBER($Q$5:$Q$108)*(Q55<$Q$5:$Q$108),1/COUNTIF($Q$5:$Q$108,$Q$5:$Q$108)))+1) -> 5 | Q55: 147
A56: =IF(C56="","",SUBTOTAL(3,$C$5:C56)) -> 52 | B56: 252 | C56: يوسف أمير عبدالرازق يوسف عبد الله | D56: 25 | E56: 22 | F56: 28 | G56: 29 | H56: 29 | I56: 97 | J56: 96 | K56: 96 | L56: 95 | M56: 98 | N56: 23 | O56: =IF(N(Q56)=0,Q56,SUM(IF(ISNUMBER($Q$5:$Q$108)*(Q56<$Q$5:$Q$108),1/COUNTIF($Q$5:$Q$108,$Q$5:$Q$108)))+1) -> 19 | Q56: 133
A57: =IF(C57="","",SUBTOTAL(3,$C$5:C57)) -> 53 | B57: 253 | C57: يوسف محمد عبد الراضى حسنين أحمد | D57: 20 | E57: 21 | F57: 28 | G57: 28 | H57: 29 | I57: 96 | J57: 97 | K57: 97 | L57: 98 | M57: 98 | N57: 20 | O57: =IF(N(Q57)=0,Q57,SUM(IF(ISNUMBER($Q$5:$Q$108)*(Q57<$Q$5:$Q$108),1/COUNTIF($Q$5:$Q$108,$Q$5:$Q$108)))+1) -> 24 | Q57: 126
A58: =IF(C58="","",SUBTOTAL(3,$C$5:C58)) -> 54 | B58: 254 | C58: أمنية عبد الحفيظ عبد الرازق مصطفى | D58: 29 | E58: 30 | F58: 29 | G58: 30 | H58: 30 | I58: 99 | J58: 98 | K58: 98 | L58: 97 | M58: 98 | N58: 26 | O58: =IF(N(Q58)=0,Q58,SUM(IF(ISNUMBER($Q$5:$Q$108)*(Q58<$Q$5:$Q$108),1/COUNTIF($Q$5:$Q$108,$Q$5:$Q$108)))+1) -> 4 | Q58: 148
A59: =IF(C59="","",SUBTOTAL(3,$C$5:C59)) -> 55 | B59: 255 | C59: أمنية عبد المنعم عبد المنعم زايد | D59: 30 | E59: 30 | F59: 30 | G59: 30 | H59: 30 | I59: 97 | J59: 96 | K59: 96 | L59: 95 | M59: 98 | N59: 30 | O59: =IF(N(Q59)=0,Q59,SUM(IF(ISNUMBER($Q$5:$Q$108)*(Q59<$Q$5:$Q$108),1/COUNTIF($Q$5:$Q$108,$Q$5:$Q$108)))+1) -> 2 | Q59: 150
A60: =IF(C60="","",SUBTOTAL(3,$C$5:C60)) -> 56 | B60: 256 | C60: انجى ايهاب يحيي عبدالحى على | D60: 30 | E60: 29 | F60: 30 | G60: 29 | H60: 30 | I60: 99 | J60: 98 | K60: 98 | L60: 97 | M60: 98 | N60: 30 | O60: =IF(N(Q60)=0,Q60,SUM(IF(ISNUMBER($Q$5:$Q$108)*(Q60<$Q$5:$Q$108),1/COUNTIF($Q$5:$Q$108,$Q$5:$Q$108)))+1) -> 4 | Q60: 148
A61: =IF(C61="","",SUBTOTAL(3,$C$5:C61)) -> 57 | B61: 257 | C61: أية ربيع عبد الحفيظ حسن علي | D61: 29 | E61: 28 | F61: 30 | G61: 28 | H61: 30 | I61: 98 | J61: 97 | K61: 97 | L61: 95 | M61: 96 | N61: 28 | O61: =IF(N(Q61)=0,Q61,SUM(IF(ISNUMBER($Q$5:$Q$108)*(Q61<$Q$5:$Q$108),1/COUNTIF($Q$5:$Q$108,$Q$5:$Q$108)))+1) -> 7 | Q61: 145
A62: =IF(C62="","",SUBTOTAL(3,$C$5:C62)) -> 58 | B62: 258 | C62: ايمان محمد جمال عبد الحليم المرادى | D62: 30 | E62: 29 | F62: 30 | G62: 28 | H62: 30 | I62: 96 | J62: 95 | K62: 95 | L62: 94 | M62: 95 | N62: 23 | O62: =IF(N(Q62)=0,Q62,SUM(IF(ISNUMBER($Q$5:$Q$108)*(Q62<$Q$5:$Q$108),1/COUNTIF($Q$5:$Q$108,$Q$5:$Q$108)))+1) -> 5 | Q62: 147
A63: =IF(C63="","",SUBTOTAL(3,$C$5:C63)) -> 59 | B63: 259 | C63: بسملة اشرف عبد الحليم عنتر عفيفى | D63: 21 | E63: 22 | F63: 30 | G63: 28 | H63: 27 | I63: 99 | J63: 98 | K63: 98 | L63: 97 | M63: 98 | N63: 25 | O63: =IF(N(Q63)=0,Q63,SUM(IF(ISNUMBER($Q$5:$Q$108)*(Q63<$Q$5:$Q$108),1/COUNTIF($Q$5:$Q$108,$Q$5:$Q$108)))+1) -> 22 | Q63: 128
A64: =IF(C64="","",SUBTOTAL(3,$C$5:C64)) -> 60 | B64: 260 | C64: تيسير ابراهيم عبدالعليم بيومى عابدين | D64: 25 | E64: 24 | F64: 30 | G64: 29 | H64: 29 | I64: 97 | J64: 96 | K64: 96 | L64: 95 | M64: 97 | N64: 29 | O64: =IF(N(Q64)=0,Q64,SUM(IF(ISNUMBER($Q$5:$Q$108)*(Q64<$Q$5:$Q$108),1/COUNTIF($Q$5:$Q$108,$Q$5:$Q$108)))+1) -> 15 | Q64: 137
A65: =IF(C65="","",SUBTOTAL(3,$C$5:C65)) -> 61 | B65: 261 | C65: جنه جمال امام محمد المرادى | D65: 28 | E65: 30 | F65: 29 | G65: 29 | H65: 29 | I65: 97 | J65: 96 | K65: 96 | L65: 95 | M65: 96 | N65: 29 | O65: =IF(N(Q65)=0,Q65,SUM(IF(ISNUMBER($Q$5:$Q$108)*(Q65<$Q$5:$Q$108),1/COUNTIF($Q$5:$Q$108,$Q$5:$Q$108)))+1) -> 7 | Q65: 145
A66: =IF(C66="","",SUBTOTAL(3,$C$5:C66)) -> 62 | B66: 262 | C66: جنى أحمد عبد العزيزمحمد عبد الغنى | D66: 30 | E66: 29 | F66: 30 | G66: 30 | H66: 30 | I66: 99 | J66: 98 | K66: 98 | L66: 97 | M66: 98 | N66: 30 | O66: =IF(N(Q66)=0,Q66,SUM(IF(ISNUMBER($Q$5:$Q$108)*(Q66<$Q$5:$Q$108),1/COUNTIF($Q$5:$Q$108,$Q$5:$Q$108)))+1) -> 3 | Q66: 149
A67: =IF(C67="","",SUBTOTAL(3,$C$5:C67)) -> 63 | B67: 263 | C67: جنى محمد حسن بازالشريف | D67: 30 | E67: 30 | F67: 30 | G67: 29 | H67: 30 | I67: 99 | J67: 98 | K67: 98 | L67: 97 | M67: 98 | N67: 30 | O67: =IF(N(Q67)=0,Q67,SUM(IF(ISNUMBER($Q$5:$Q$108)*(Q67<$Q$5:$Q$108),1/COUNTIF($Q$5:$Q$108,$Q$5:$Q$108)))+1) -> 3 | Q67: 149
A68: =IF(C68="","",SUBTOTAL(3,$C$5:C68)) -> 64 | B68: 264 | C68: جنى محمود جمال جوده على | D68: 30 | E68: 30 | F68: 30 | G68: 30 | H68: 30 | I68: 99 | J68: 98 | K68: 98 | L68: 99 | M68: 98 | N68: 30 | O68: =IF(N(Q68)=0,Q68,SUM(IF(ISNUMBER($Q$5:$Q$108)*(Q68<$Q$5:$Q$108),1/COUNTIF($Q$5:$Q$108,$Q$5:$Q$108)))+1) -> 2 | Q68: 150
A69: =IF(C69="","",SUBTOTAL(3,$C$5:C69)) -> 65 | B69: 265 | C69: جني الخضري وهبه الخضري | D69: 30 | E69: 29 | F69: 30 | G69: 29 | H69: 30 | I69: 99 | J69: 98 | K69: 98 | L69: 97 | M69: 98 | N69: 30 | O69: =IF(N(Q69)=0,Q69,SUM(IF(ISNUMBER($Q$5:$Q$108)*(Q69<$Q$5:$Q$108),1/COUNTIF($Q$5:$Q$108,$Q$5:$Q$108)))+1) -> 4 | Q69: 148
A70: =IF(C70="","",SUBTOTAL(3,$C$5:C70)) -> 66 | B70: 266 | C70: حبيبه محمد عبدالمنعم السيد عابدين | D70: 30 | E70: 29 | F70: 30 | G70: 29 | H70: 30 | I70: 99 | J70: 98 | K70: 98 | L70: 99 | M70: 98 | N70: 29 | O70: =IF(N(Q70)=0,Q70,SUM(IF(ISNUMBER($Q$5:$Q$108)*(Q70<$Q$5:$Q$108),1/COUNTIF($Q$5:$Q$108,$Q$5:$Q$108)))+1) -> 4 | Q70: =IF(AND(D70="غ",E70="غ",F70="غ",G70="غ",H70="غ"),"غ",SUM(D70:H70)) -> 148
A71: =IF(C71="","",SUBTOTAL(3,$C$5:C71)) -> 67 | B71: 267 | C71: حبيبه هاني كرم عبد الرشيد عقل | D71: 30 | E71: 29 | F71: 30 | G71: 29 | H71: 30 | I71: 99 | J71: 98 | K71: 98 | L71: 97 | M71: 98 | N71: 30 | O71: =IF(N(Q71)=0,Q71,SUM(IF(ISNUMBER($Q$5:$Q$108)*(Q71<$Q$5:$Q$108),1/COUNTIF($Q$5:$Q$108,$Q$5:$Q$108)))+1) -> 4 | Q71: 148
A72: =IF(C72="","",SUBTOTAL(3,$C$5:C72)) -> 68 | B72: 268 | C72: حنان عبد الحميد إبراهيم على عبد العزيزبحر | D72: 30 | E72: 25 | F72: 30 | G72: 29 | H72: 30 | I72: 97 | J72: 98 | K72: 98 | L72: 97 | M72: 98 | N72: 30 | O72: =IF(N(Q72)=0,Q72,SUM(IF(ISNUMBER($Q$5:$Q$108)*(Q72<$Q$5:$Q$108),1/COUNTIF($Q$5:$Q$108,$Q$5:$Q$108)))+1) -> 8 | Q72: 144
A73: =IF(C73="","",SUBTOTAL(3,$C$5:C73)) -> 69 | B73: 269 | C73: حنين السيد البيومى السيد | D73: 28 | E73: 27 | F73: 28 | G73: 29 | H73: 30 | I73: 99 | J73: 98 | K73: 98 | L73: 99 | M73: 98 | N73: 28 | O73: =IF(N(Q73)=0,Q73,SUM(IF(ISNUMBER($Q$5:$Q$108)*(Q73<$Q$5:$Q$108),1/COUNTIF($Q$5:$Q$108,$Q$5:$Q$108)))+1) -> 10 | Q73: 142
A74: =IF(C74="","",SUBTOTAL(3,$C$5:C74)) -> 70 | B74: 270 | C74: دنيا وليد جمال السيد النجار | D74: 28 | E74: 30 | F74: 29 | G74: 27 | H74: 30 | I74: 99 | J74: 98 | K74: 98 | L74: 97 | M74: 98 | N74: 30 | O74: =IF(N(Q74)=0,Q74,SUM(IF(ISNUMBER($Q$5:$Q$108)*(Q74<$Q$5:$Q$108),1/COUNTIF($Q$5:$Q$108,$Q$5:$Q$108)))+1) -> 8 | Q74: 144
A75: =IF(C75="","",SUBTOTAL(3,$C$5:C75)) -> 71 | B75: 271 | C75: رحمة صلاح الدين احمد عبد الوهاب حماد | D75: 26 | E75: 25 | F75: 26 | G75: 30 | H75: 28 | I75: 99 | J75: 98 | K75: 98 | L75: 97 | M75: 98 | N75: 30 | O75: =IF(N(Q75)=0,Q75,SUM(IF(ISNUMBER($Q$5:$Q$108)*(Q75<$Q$5:$Q$108),1/COUNTIF($Q$5:$Q$108,$Q$5:$Q$108)))+1) -> 17 | Q75: 135
A76: =IF(C76="","",SUBTOTAL(3,$C$5:C76)) -> 72 | B76: 272 | C76: رحيل سعيد مسعد السعيد سيد احمد | D76: 30 | E76: 21 | F76: 24 | G76: 28 | H76: 25 | I76: 99 | J76: 98 | K76: 98 | L76: 97 | M76: 98 | N76: 24 | O76: =IF(N(Q76)=0,Q76,SUM(IF(ISNUMBER($Q$5:$Q$108)*(Q76<$Q$5:$Q$108),1/COUNTIF($Q$5:$Q$108,$Q$5:$Q$108)))+1) -> 22 | Q76: 128
A77: =IF(C77="","",SUBTOTAL(3,$C$5:C77)) -> 73 | B77: 273 | C77: رزان محمد عبد العاطى عبد العزيز محمد | D77: 30 | E77: 28 | F77: 30 | G77: 29 | H77: 30 | I77: 99 | J77: 98 | K77: 98 | L77: 99 | M77: 97 | N77: 30 | O77: =IF(N(Q77)=0,Q77,SUM(IF(ISNUMBER($Q$5:$Q$108)*(Q77<$Q$5:$Q$108),1/COUNTIF($Q$5:$Q$108,$Q$5:$Q$108)))+1) -> 5 | Q77: 147
A78: =IF(C78="","",SUBTOTAL(3,$C$5:C78)) -> 74 | B78: 274 | C78: روان السيد عبدالوهاب عبداللطيف متولى | D78: 30 | E78: 30 | F78: 30 | G78: 30 | H78: 29 | I78: 99 | J78: 98 | K78: 98 | L78: 99 | M78: 98 | N78: 30 | O78: =IF(N(Q78)=0,Q78,SUM(IF(ISNUMBER($Q$5:$Q$108)*(Q78<$Q$5:$Q$108),1/COUNTIF($Q$5:$Q$108,$Q$5:$Q$108)))+1) -> 3 | Q78: 149
A79: =IF(C79="","",SUBTOTAL(3,$C$5:C79)) -> 75 | B79: 275 | C79: رويدا احمد صبحى عبد الرازق | D79: 30 | E79: 28 | F79: 30 | G79: 30 | H79: 30 | I79: 99 | J79: 98 | K79: 98 | L79: 97 | M79: 98 | N79: 30 | O79: =IF(N(Q79)=0,Q79,SUM(IF(ISNUMBER($Q$5:$Q$108)*(Q79<$Q$5:$Q$108),1/COUNTIF($Q$5:$Q$108,$Q$5:$Q$108)))+1) -> 4 | Q79: 148
A80: =IF(C80="","",SUBTOTAL(3,$C$5:C80)) -> 76 | B80: 276 | C80: سارة ابراهيم محمد فتوح أحمد العونى | D80: 30 | E80: 29 | F80: 30 | G80: 29 | H80: 30 | I80: 97 | J80: 98 | K80: 98 | L80: 97 | M80: 97 | N80: 30 | O80: =IF(N(Q80)=0,Q80,SUM(IF(ISNUMBER($Q$5:$Q$108)*(Q80<$Q$5:$Q$108),1/COUNTIF($Q$5:$Q$108,$Q$5:$Q$108)))+1) -> 4 | Q80: 148
A81: =IF(C81="","",SUBTOTAL(3,$C$5:C81)) -> 77 | B81: 277 | C81: سلسبيل صالح عبد الحفيظ المرسى المرادى | D81: 26 | E81: 20 | F81: 29 | G81: 29 | H81: 30 | I81: 99 | J81: 98 | K81: 98 | L81: 97 | M81: 98 | N81: 28 | O81: =IF(N(Q81)=0,Q81,SUM(IF(ISNUMBER($Q$5:$Q$108)*(Q81<$Q$5:$Q$108),1/COUNTIF($Q$5:$Q$108,$Q$5:$Q$108)))+1) -> 18 | Q81: 134
A82: =IF(C82="","",SUBTOTAL(3,$C$5:C82)) -> 78 | B82: 278 | C82: سلمى أيمن محمود البحيرى | D82: 30 | E82: 29 | F82: 30 | G82: 29 | H82: 30 | I82: 99 | J82: 98 | K82: 98 | L82: 97 | M82: 98 | N82: 30 | O82: =IF(N(Q82)=0,Q82,SUM(IF(ISNUMBER($Q$5:$Q$108)*(Q82<$Q$5:$Q$108),1/COUNTIF($Q$5:$Q$108,$Q$5:$Q$108)))+1) -> 4 | Q82: 148
A83: =IF(C83="","",SUBTOTAL(3,$C$5:C83)) -> 79 | B83: 279 | C83: سما رامى فتحى عبد العزيز عبد الرحمن | D83: 26 | E83: 28 | F83: 30 | G83: 29 | H83: 30 | I83: 99 | J83: 98 | K83: 98 | L83: 97 | M83: 98 | N83: 30 | O83: =IF(N(Q83)=0,Q83,SUM(IF(ISNUMBER($Q$5:$Q$108)*(Q83<$Q$5:$Q$108),1/COUNTIF($Q$5:$Q$108,$Q$5:$Q$108)))+1) -> 9 | Q83: 143
A84: =IF(C84="","",SUBTOTAL(3,$C$5:C84)) -> 80 | B84: 280 | C84: شهد أحمد مكاوى أحمد | D84: 27 | E84: 25 | F84: 30 | G84: 28 | H84: 30 | I84: 99 | J84: 98 | K84: 98 | L84: 97 | M84: 98 | N84: 30 | O84: =IF(N(Q84)=0,Q84,SUM(IF(ISNUMBER($Q$5:$Q$108)*(Q84<$Q$5:$Q$108),1/COUNTIF($Q$5:$Q$108,$Q$5:$Q$108)))+1) -> 12 | Q84: 140
A85: =IF(C85="","",SUBTOTAL(3,$C$5:C85)) -> 81 | B85: 281 | C85: شهد شوقى محمد حلمى عبد العزيز | D85: 29 | E85: 28 | F85: 30 | G85: 29 | H85: 30 | I85: 97 | J85: 98 | K85: 98 | L85: 97 | M85: 98 | N85: 30 | O85: =IF(N(Q85)=0,Q85,SUM(IF(ISNUMBER($Q$5:$Q$108)*(Q85<$Q$5:$Q$108),1/COUNTIF($Q$5:$Q$108,$Q$5:$Q$108)))+1) -> 6 | Q85: 146
A86: =IF(C86="","",SUBTOTAL(3,$C$5:C86)) -> 82 | B86: 282 | C86: شيماء ابراهيم أحمد متولى | D86: 28 | E86: 28 | F86: 28 | G86: 27 | H86: 28 | I86: 99 | J86: 98 | K86: 98 | L86: 97 | M86: 98 | N86: 30 | O86: =IF(N(Q86)=0,Q86,SUM(IF(ISNUMBER($Q$5:$Q$108)*(Q86<$Q$5:$Q$108),1/COUNTIF($Q$5:$Q$108,$Q$5:$Q$108)))+1) -> 13 | Q86: 139
A87: =IF(C87="","",SUBTOTAL(3,$C$5:C87)) -> 83 | B87: 283 | C87: صفا يوسف السيد محمد يوسف | D87: 29 | E87: 28 | F87: 30 | G87: 29 | H87: 30 | I87: 99 | J87: 98 | K87: 98 | L87: 97 | M87: 98 | N87: 30 | O87: =IF(N(Q87)=0,Q87,SUM(IF(ISNUMBER($Q$5:$Q$108)*(Q87<$Q$5:$Q$108),1/COUNTIF($Q$5:$Q$108,$Q$5:$Q$108)))+1) -> 6 | Q87: 146
A88: =IF(C88="","",SUBTOTAL(3,$C$5:C88)) -> 84 | B88: 284 | C88: صفاء أيمن فتحى أحمد رضوان | D88: 28 | E88: 29 | F88: 30 | G88: 28 | H88: 30 | I88: 99 | J88: 98 | K88: 98 | L88: 97 | M88: 98 | N88: 25 | O88: =IF(N(Q88)=0,Q88,SUM(IF(ISNUMBER($Q$5:$Q$108)*(Q88<$Q$5:$Q$108),1/COUNTIF($Q$5:$Q$108,$Q$5:$Q$108)))+1) -> 7 | Q88: 145
A89: =IF(C89="","",SUBTOTAL(3,$C$5:C89)) -> 85 | B89: 285 | C89: فرح حسن عبدالحفيظ حسن اسماعيل | D89: 28 | E89: 29 | F89: 30 | G89: 28 | H89: 30 | I89: 99 | J89: 98 | K89: 98 | L89: 97 | M89: 98 | N89: 30 | O89: =IF(N(Q89)=0,Q89,SUM(IF(ISNUMBER($Q$5:$Q$108)*(Q89<$Q$5:$Q$108),1/COUNTIF($Q$5:$Q$108,$Q$5:$Q$108)))+1) -> 7 | Q89: 145
A90: =IF(C90="","",SUBTOTAL(3,$C$5:C90)) -> 86 | B90: 286 | C90: فرح عبد الله عبد المنعم يوسف عبد الله | D90: 25 | E90: 30 | F90: 30 | G90: 30 | H90: 30 | I90: 99 | J90: 98 | K90: 98 | L90: 97 | M90: 98 | N90: 26 | O90: =IF(N(Q90)=0,Q90,SUM(IF(ISNUMBER($Q$5:$Q$108)*(Q90<$Q$5:$Q$108),1/COUNTIF($Q$5:$Q$108,$Q$5:$Q$108)))+1) -> 7 | Q90: 145
A91: =IF(C91="","",SUBTOTAL(3,$C$5:C91)) -> 87 | B91: 287 | C91: مريم احمد مأمون السيد زايد | D91: 29 | E91: 29 | F91: 30 | G91: 30 | H91: 30 | I91: 99 | J91: 98 | K91: 98 | L91: 97 | M91: 98 | N91: 30 | O91: =IF(N(Q91)=0,Q91,SUM(IF(ISNUMBER($Q$5:$Q$108)*(Q91<$Q$5:$Q$108),1/COUNTIF($Q$5:$Q$108,$Q$5:$Q$108)))+1) -> 4 | Q91: 148
A92: =IF(C92="","",SUBTOTAL(3,$C$5:C92)) -> 88 | B92: 288 | C92: مريم بشير فتحي عبد الكريم يوسف | D92: 30 | E92: 30 | F92: 30 | G92: 30 | H92: 30 | I92: 99 | J92: 98 | K92: 98 | L92: 97 | M92: 98 | N92: 30 | O92: =IF(N(Q92)=0,Q92,SUM(IF(ISNUMBER($Q$5:$Q$108)*(Q92<$Q$5:$Q$108),1/COUNTIF($Q$5:$Q$108,$Q$5:$Q$108)))+1) -> 2 | Q92: 150
A93: =IF(C93="","",SUBTOTAL(3,$C$5:C93)) -> 89 | B93: 289 | C93: مريم محمد حسن عبد الحفيظ عابدين | D93: 30 | E93: 29 | F93: 30 | G93: 30 | H93: 30 | I93: 99 | J93: 97 | K93: 97 | L93: 97 | M93: 98 | N93: 30 | O93: =IF(N(Q93)=0,Q93,SUM(IF(ISNUMBER($Q$5:$Q$108)*(Q93<$Q$5:$Q$108),1/COUNTIF($Q$5:$Q$108,$Q$5:$Q$108)))+1) -> 3 | Q93: 149
A94: =IF(C94="","",SUBTOTAL(3,$C$5:C94)) -> 90 | B94: 290 | C94: مريم محمد حسين محمد عفيفى | D94: 30 | E94: 29 | F94: 30 | G94: 29 | H94: 30 | I94: 99 | J94: 98 | K94: 98 | L94: 99 | M94: 98 | N94: 30 | O94: =IF(N(Q94)=0,Q94,SUM(IF(ISNUMBER($Q$5:$Q$108)*(Q94<$Q$5:$Q$108),1/COUNTIF($Q$5:$Q$108,$Q$5:$Q$108)))+1) -> 4 | Q94: 148
A95: =IF(C95="","",SUBTOTAL(3,$C$5:C95)) -> 91 | B95: 291 | C95: ملك احمد عبدالرازق يوسف | D95: 30 | E95: 29 | F95: 30 | G95: 30 | H95: 30 | I95: 99 | J95: 98 | K95: 98 | L95: 97 | M95: 98 | N95: 30 | O95: =IF(N(Q95)=0,Q95,SUM(IF(ISNUMBER($Q$5:$Q$108)*(Q95<$Q$5:$Q$108),1/COUNTIF($Q$5:$Q$108,$Q$5:$Q$108)))+1) -> 3 | Q95: 149
A96: =IF(C96="","",SUBTOTAL(3,$C$5:C96)) -> 92 | B96: 292 | C96: ملك حاتم عبد الله بكر | D96: 30 | E96: 28 | F96: 30 | G96: 30 | H96: 30 | I96: 99 | J96: 98 | K96: 98 | L96: 97 | M96: 98 | N96: 29 | O96: =IF(N(Q96)=0,Q96,SUM(IF(ISNUMBER($Q$5:$Q$108)*(Q96<$Q$5:$Q$108),1/COUNTIF($Q$5:$Q$108,$Q$5:$Q$108)))+1) -> 4 | Q96: 148
A97: =IF(C97="","",SUBTOTAL(3,$C$5:C97)) -> 93 | B97: 293 | C97: ملك صالح السيد حسن عطية | D97: 19 | E97: 27 | F97: 18 | G97: 18 | H97: 30 | I97: 99 | J97: 97 | K97: 97 | L97: 99 | M97: 98 | N97: 28 | O97: =IF(N(Q97)=0,Q97,SUM(IF(ISNUMBER($Q$5:$Q$108)*(Q97<$Q$5:$Q$108),1/COUNTIF($Q$5:$Q$108,$Q$5:$Q$108)))+1) -> 30 | Q97: 112
A98: =IF(C98="","",SUBTOTAL(3,$C$5:C98)) -> 94 | B98: 294 | C98: ملك محمد على عبد الجواد | D98: 28 | E98: 22 | F98: 30 | G98: 26 | H98: 28 | I98: 99 | J98: 98 | K98: 98 | L98: 97 | M98: 98 | N98: 24 | O98: =IF(N(Q98)=0,Q98,SUM(IF(ISNUMBER($Q$5:$Q$108)*(Q98<$Q$5:$Q$108),1/COUNTIF($Q$5:$Q$108,$Q$5:$Q$108)))+1) -> 18 | Q98: 134
A99: =IF(C99="","",SUBTOTAL(3,$C$5:C99)) -> 95 | B99: 295 | C99: ملك مصطفي طه عبد الحميد إبراهيم | D99: 28 | E99: 30 | F99: 30 | G99: 29 | H99: 30 | I99: 99 | J99: 98 | K99: 98 | L99: 97 | M99: 98 | N99: 28 | O99: =IF(N(Q99)=0,Q99,SUM(IF(ISNUMBER($Q$5:$Q$108)*(Q99<$Q$5:$Q$108),1/COUNTIF($Q$5:$Q$108,$Q$5:$Q$108)))+1) -> 5 | Q99: 147
A100: =IF(C100="","",SUBTOTAL(3,$C$5:C100)) -> 96 | B100: 296 | C100: منه عصام عبد العال عبد الواحد زايد | D100: 30 | E100: 28 | F100: 27 | G100: 30 | H100: 30 | I100: 99 | J100: 98 | K100: 98 | L100: 97 | M100: 98 | N100: 30 | O100: =IF(N(Q100)=0,Q100,SUM(IF(ISNUMBER($Q$5:$Q$108)*(Q100<$Q$5:$Q$108),1/COUNTIF($Q$5:$Q$108,$Q$5:$Q$108)))+1) -> 7 | Q100: 145
A101: =IF(C101="","",SUBTOTAL(3,$C$5:C101)) -> 97 | B101: 297 | C101: منى صبحى السيد السيد خليل | D101: 26 | E101: 26 | F101: 28 | G101: 28 | H101: 29 | I101: 99 | J101: 98 | K101: 98 | L101: 97 | M101: 98 | N101: 26 | O101: =IF(N(Q101)=0,Q101,SUM(IF(ISNUMBER($Q$5:$Q$108)*(Q101<$Q$5:$Q$108),1/COUNTIF($Q$5:$Q$108,$Q$5:$Q$108)))+1) -> 15 | Q101: 137
A102: =IF(C102="","",SUBTOTAL(3,$C$5:C102)) -> 98 | B102: 298 | C102: ميار هشام محمود البحيرى | D102: 29 | E102: 26 | F102: 28 | G102: 28 | H102: 29 | I102: 99 | J102: 98 | K102: 98 | L102: 97 | M102: 98 | N102: 28 | O102: =IF(N(Q102)=0,Q102,SUM(IF(ISNUMBER($Q$5:$Q$108)*(Q102<$Q$5:$Q$108),1/COUNTIF($Q$5:$Q$108,$Q$5:$Q$108)))+1) -> 12 | Q102: 140
A103: =IF(C103="","",SUBTOTAL(3,$C$5:C103)) -> 99 | B103: 299 | C103: ندى محمد غريب عبد العال امام | D103: 30 | E103: 30 | F103: 30 | G103: 30 | H103: 30 | I103: 99 | J103: 98 | K103: 98 | L103: 97 | M103: 98 | N103: 30 | O103: =IF(N(Q103)=0,Q103,SUM(IF(ISNUMBER($Q$5:$Q$108)*(Q103<$Q$5:$Q$108),1/COUNTIF($Q$5:$Q$108,$Q$5:$Q$108)))+1) -> 2 | Q103: 150
A104: =IF(C104="","",SUBTOTAL(3,$C$5:C104)) -> 100 | B104: 300 | C104: نهى عبد الله حسن محمد عبد الله | D104: 28 | E104: 23 | F104: 28 | G104: 29 | H104: 30 | I104: 99 | J104: 98 | K104: 98 | L104: 97 | M104: 98 | N104: 30 | O104: =IF(N(Q104)=0,Q104,SUM(IF(ISNUMBER($Q$5:$Q$108)*(Q104<$Q$5:$Q$108),1/COUNTIF($Q$5:$Q$108,$Q$5:$Q$108)))+1) -> 14 | Q104: 138
A105: =IF(C105="","",SUBTOTAL(3,$C$5:C105)) -> 101 | B105: 301 | C105: نور مصطفى عبد الرازق عبد الغنى عمارة | D105: 25 | E105: 24 | F105: 28 | G105: 30 | H105: 30 | I105: 99 | J105: 98 | K105: 98 | L105: 97 | M105: 98 | N105: 28 | O105: =IF(N(Q105)=0,Q105,SUM(IF(ISNUMBER($Q$5:$Q$108)*(Q105<$Q$5:$Q$108),1/COUNTIF($Q$5:$Q$108,$Q$5:$Q$108)))+1) -> 15 | Q105: 137
A106: =IF(C106="","",SUBTOTAL(3,$C$5:C106)) -> 102 | B106: 302 | C106: هاجر طارق جلال أحمد السيد | D106: 30 | E106: 30 | F106: 28 | G106: 30 | H106: 30 | I106: 99 | J106: 98 | K106: 98 | L106: 97 | M106: 98 | N106: 28 | O106: =IF(N(Q106)=0,Q106,SUM(IF(ISNUMBER($Q$5:$Q$108)*(Q106<$Q$5:$Q$108),1/COUNTIF($Q$5:$Q$108,$Q$5:$Q$108)))+1) -> 4 | Q106: 148
A107: =IF(C107="","",SUBTOTAL(3,$C$5:C107)) -> 103 | B107: 303 | C107: هاجر محمد زكى محمد يوسف | D107: 30 | E107: 30 | F107: 30 | G107: 30 | H107: 30 | I107: 99 | J107: 98 | K107: 98 | L107: 97 | M107: 98 | N107: 30 | O107: =IF(N(Q107)=0,Q107,SUM(IF(ISNUMBER($Q$5:$Q$108)*(Q107<$Q$5:$Q$108),1/COUNTIF($Q$5:$Q$108,$Q$5:$Q$108)))+1) -> 2 | Q107: 150
A108: =IF(C108="","",SUBTOTAL(3,$C$5:C108)) -> 104 | B108: 304 | C108: هاجر محمود فتحى عواد فرج | D108: 30 | E108: 30 | F108: 30 | G108: 28 | H108: 30 | I108: 99 | J108: 98 | K108: 98 | L108: 97 | M108: 98 | N108: 30 | O108: =IF(N(Q108)=0,Q108,SUM(IF(ISNUMBER($Q$5:$Q$108)*(Q108<$Q$5:$Q$108),1/COUNTIF($Q$5:$Q$108,$Q$5:$Q$108)))+1) -> 4 | Q108: 148
A109: =IF(C109="","",SUBTOTAL(3,$C$5:C109)) -> 105 | B109: 305 | C109: هبه جمال ابراهيم محمد عبد الله | D109: 28 | E109: 28 | F109: 27 | G109: 28 | H109: 30 | I109: 99 | J109: 98 | K109: 98 | L109: 97 | M109: 98 | N109: 30 | O109: =IF(N(Q109)=0,Q109,SUM(IF(ISNUMBER($Q$5:$Q$108)*(Q109<$Q$5:$Q$108),1/COUNTIF($Q$5:$Q$108,$Q$5:$Q$108)))+1) -> 11 | Q109: 141
A110: =IF(C110="","",SUBTOTAL(3,$C$5:C110)) -> 106 | B110: 306 | C110: هبه خالد فراج أحمد فراج | D110: 24 | E110: 26 | F110: 30 | G110: 25 | H110: 30 | I110: 99 | J110: 98 | K110: 98 | L110: 97 | M110: 98 | N110: 24 | O110: =IF(N(Q110)=0,Q110,SUM(IF(ISNUMBER($Q$5:$Q$108)*(Q110<$Q$5:$Q$108),1/COUNTIF($Q$5:$Q$108,$Q$5:$Q$108)))+1) -> 17 | Q110: 135
A111: =IF(C111="","",SUBTOTAL(3,$C$5:C111)) -> 107 | B111: 307 | C111: هدير هانى عبد الخالق المهدى العليمى | D111: 25 | E111: 22 | F111: 30 | G111: 29 | H111: 30 | I111: 99 | J111: 98 | K111: 98 | L111: 97 | M111: 98 | N111: 24 | O111: =IF(N(Q111)=0,Q111,SUM(IF(ISNUMBER($Q$5:$Q$108)*(Q111<$Q$5:$Q$108),1/COUNTIF($Q$5:$Q$108,$Q$5:$Q$108)))+1) -> 16 | Q111: 136
A112: =IF(C112="","",SUBTOTAL(3,$C$5:C112)) -> 108 | B112: 308 | C112: هنا أحمد محمد عبد العليم فرج | D112: 30 | E112: 30 | F112: 30 | G112: 30 | H112: 30 | I112: 99 | J112: 98 | K112: 98 | L112: 97 | M112: 98 | N112: 30 | O112: =IF(N(Q112)=0,Q112,SUM(IF(ISNUMBER($Q$5:$Q$108)*(Q112<$Q$5:$Q$108),1/COUNTIF($Q$5:$Q$108,$Q$5:$Q$108)))+1) -> 2 | Q112: 150
A113: =IF(C113="","",SUBTOTAL(3,$C$5:C113)) -> 109 | B113: 309 | C113: ياسمين عبد الكريم عبد الله عبد الكريم يوسف | D113: 30 | E113: 29 | F113: 28 | G113: 30 | H113: 29 | I113: 99 | J113: 98 | K113: 98 | L113: 97 | M113: 98 | N113: 24 | O113: =IF(N(Q113)=0,Q113,SUM(IF(ISNUMBER($Q$5:$Q$108)*(Q113<$Q$5:$Q$108),1/COUNTIF($Q$5:$Q$108,$Q$5:$Q$108)))+1) -> 6 | Q113: 146
A114: =IF(C114="","",SUBTOTAL(3,$C$5:C114)) -> 110 | B114: 310 | C114: يمنى عادل على محمد مصطفى | D114: 30 | E114: 29 | F114: 30 | G114: 30 | H114: 30 | I114: 99 | J114: 98 | K114: 98 | L114: 97 | M114: 98 | N114: 30 | O114: =IF(N(Q114)=0,Q114,SUM(IF(ISNUMBER($Q$5:$Q$108)*(Q114<$Q$5:$Q$108),1/COUNTIF($Q$5:$Q$108,$Q$5:$Q$108)))+1) -> 3 | Q114: 149
A115: =IF(C115="","",SUBTOTAL(3,$C$5:C115)) -> 111 | B115: 311 | C115: سعيد محمد السعيد محمود | D115: 21 | E115: 25 | F115: 28 | G115: 26 | H115: 30 | I115: 99 | J115: 98 | K115: 98 | L115: 97 | M115: 98 | N115: 14 | O115: =IF(N(Q115)=0,Q115,SUM(IF(ISNUMBER($Q$5:$Q$108)*(Q115<$Q$5:$Q$108),1/COUNTIF($Q$5:$Q$108,$Q$5:$Q$108)))+1) -> 20 | Q115: 130
A116: =IF(C116="","",SUBTOTAL(3,$C$5:C116)) -> 112 | B116: 312 | C116: عبد الرحمن عمرو السيد عبد الغفار نوح | D116: 20 | E116: 15 | F116: 9 | G116: 30 | H116: 25 | I116: 97 | J116: 96 | K116: 96 | L116: 95 | M116: 98 | N116: 29 | O116: =IF(N(Q116)=0,Q116,SUM(IF(ISNUMBER($Q$5:$Q$108)*(Q116<$Q$5:$Q$108),1/COUNTIF($Q$5:$Q$108,$Q$5:$Q$108)))+1) -> 31 | Q116: 99
A117: =IF(C117="","",SUBTOTAL(3,$C$5:C117)) -> 113 | B117: 313 | C117: عبد الرحمن محمد كمال الصادق فرج | D117: 8 | E117: 24 | F117: 30 | G117: 21 | H117: 26 | I117: 97 | J117: 96 | K117: 96 | L117: 95 | M117: 98 | N117: 15 | O117: =IF(N(Q117)=0,Q117,SUM(IF(ISNUMBER($Q$5:$Q$108)*(Q117<$Q$5:$Q$108),1/COUNTIF($Q$5:$Q$108,$Q$5:$Q$108)))+1) -> 31 | Q117: 109
A118: =IF(C118="","",SUBTOTAL(3,$C$5:C118)) -> 114 | B118: 314 | C118: على أشرف عباس سعيد عجور | D118: 17 | E118: 19 | F118: 11 | G118: 28 | H118: 28 | I118: غ | J118: غ | K118: غ | L118: غ | M118: غ | N118: 27 | O118: =IF(N(Q118)=0,Q118,SUM(IF(ISNUMBER($Q$5:$Q$108)*(Q118<$Q$5:$Q$108),1/COUNTIF($Q$5:$Q$108,$Q$5:$Q$108)))+1) -> 31 | Q118: 103
A119: =IF(C119="","",SUBTOTAL(3,$C$5:C119)) -> 115 | B119: 315 | C119: فارس محمد عبد الله محمد هدهد | D119: 11 | E119: 15 | F119: 8 | G119: 20 | H119: 20 | I119: غ | J119: غ | K119: غ | L119: غ | M119: غ | N119: 8 | O119: =IF(N(Q119)=0,Q119,SUM(IF(ISNUMBER($Q$5:$Q$108)*(Q119<$Q$5:$Q$108),1/COUNTIF($Q$5:$Q$108,$Q$5:$Q$108)))+1) -> 31 | Q119: 74
A120: =IF(C120="","",SUBTOTAL(3,$C$5:C120)) -> 116 | B120: 316 | C120: فهد محمد عبد الحليم سيد المرادي | D120: غ | E120: غ | F120: غ | G120: غ | H120: غ | I120: غ | J120: غ | K120: غ | L120: غ | M120: غ | N120: غ | O120: =IF(N(Q120)=0,Q120,SUM(IF(ISNUMBER($Q$5:$Q$108)*(Q120<$Q$5:$Q$108),1/COUNTIF($Q$5:$Q$108,$Q$5:$Q$108)))+1) -> غ | Q120: غ
A121: =IF(C121="","",SUBTOTAL(3,$C$5:C121)) -> 117 | B121: 317 | C121: محمد ايهاب محمد عبد الغفار البرعي | D121: غ | E121: غ | F121: غ | G121: غ | H121: غ | I121: غ | J121: غ | K121: غ | L121: غ | M121: غ | N121: غ | O121: =IF(N(Q121)=0,Q121,SUM(IF(ISNUMBER($Q$5:$Q$108)*(Q121<$Q$5:$Q$108),1/COUNTIF($Q$5:$Q$108,$Q$5:$Q$108)))+1) -> غ | Q121: غ
A122: =IF(C122="","",SUBTOTAL(3,$C$5:C122)) -> 118 | B122: 318 | C122: محمد خالد محمد رشاد الجزار | D122: 22 | E122: 18 | F122: 10 | G122: 26 | H122: 29 | I122: 99 | J122: 98 | K122: 98 | L122: 99 | M122: 98 | N122: 7 | O122: =IF(N(Q122)=0,Q122,SUM(IF(ISNUMBER($Q$5:$Q$108)*(Q122<$Q$5:$Q$108),1/COUNTIF($Q$5:$Q$108,$Q$5:$Q$108)))+1) -> 31 | Q122: 105
A123: =IF(C123="","",SUBTOTAL(3,$C$5:C123)) -> 119 | B123: 319 | C123: مصطفى السيد محمود الحسينى | D123: 13 | E123: 14 | F123: 16 | G123: 12 | H123: 19 | I123: 97 | J123: 98 | K123: 98 | L123: 97 | M123: 98 | N123: 8 | O123: =IF(N(Q123)=0,Q123,SUM(IF(ISNUMBER($Q$5:$Q$108)*(Q123<$Q$5:$Q$108),1/COUNTIF($Q$5:$Q$108,$Q$5:$Q$108)))+1) -> 31 | Q123: 74
A124: =IF(C124="","",SUBTOTAL(3,$C$5:C124)) -> 120 | B124: 320 | C124: ملك أيمن صبحى حماد | D124: 20 | E124: 20 | F124: 22 | G124: 21 | H124: 25 | I124: 99 | J124: 98 | K124: 98 | L124: 97 | M124: 97 | N124: 12 | O124: =IF(N(Q124)=0,Q124,SUM(IF(ISNUMBER($Q$5:$Q$108)*(Q124<$Q$5:$Q$108),1/COUNTIF($Q$5:$Q$108,$Q$5:$Q$108)))+1) -> 31 | Q124: 108

Sheet السادس
A1: إدارة قويسنا التعليمية0 الصف السادس
A2: مدرسة عربالرمل الإبتدائية سكة حديد | F2: نتيجة نصف العام 2019/2018
A3: م | B3: جلوس | C3: الاســــــــــــــم | D3: لغة عربية | E3: رياضيات | F3: لغة إنجليزية | G3: دراسات | H3: علوم | I3: فنى | J3: رياضى | K3: حاسب ألى | L3: نشاط1 | M3: نشاط2 | N3: دين
D4: 100 | E4: 80 | F4: 40 | G4: 40 | H4: 40 | I4: 100 | J4: 100 | K4: 100 | L4: 100 | M4: 100 | N4: 40 | O4: الترتيب | Q4: المجموع
A5: =IF(C5="","",SUBTOTAL(3,$C$5:C5)) -> 1 | B5: 201 | C5: ابراهيم موسى ابراهيم موسي المرادى | D5: 100 | E5: 70 | F5: 40 | G5: 40 | H5: 40 | I5: 95 | J5: 98 | K5: 98 | L5: 97 | M5: 98 | N5: 30 | O5: =IF(N(Q5)=0,Q5,SUM(IF(ISNUMBER($Q$5:$Q$108)*(Q5<$Q$5:$Q$108),1/COUNTIF($Q$5:$Q$108,$Q$5:$Q$108)))+1) -> 1 | Q5: =IF(AND(D5="غ",E5="غ",F5="غ",G5="غ",H5="غ"),"غ",SUM(D5:H5)) -> 290
A6: =IF(C6="","",SUBTOTAL(3,$C$5:C6)) -> 2 | B6: 202 | C6: أحمد السيد عبد الوهاب محمد عرفه | D6: 100 | E6: 70 | F6: 40 | G6: 40 | H6: 40 | I6: 95 | J6: 98 | K6: 98 | L6: 97 | M6: 98 | N6: 30 | O6: =IF(N(Q6)=0,Q6,SUM(IF(ISNUMBER($Q$5:$Q$108)*(Q6<$Q$5:$Q$108),1/COUNTIF($Q$5:$Q$108,$Q$5:$Q$108)))+1) -> 1 | Q6: =IF(AND(D6="غ",E6="غ",F6="غ",G6="غ",H6="غ"),"غ",SUM(D6:H6)) -> 290
A7: =IF(C7="","",SUBTOTAL(3,$C$5:C7)) -> 3 | B7: 203 | C7: أحمد ايهاب مسعد محمد سلطان | D7: 28 | E7: 25 | F7: 27 | G7: 30 | H7: 30 | I7: 99 | J7: 98 | K7: 99 | L7: 97 | M7: 98 | N7: 29 | O7: =IF(N(Q7)=0,Q7,SUM(IF(ISNUMBER($Q$5:$Q$108)*(Q7<$Q$5:$Q$108),1/COUNTIF($Q$5:$Q$108,$Q$5:$Q$108)))+1) -> 11 | Q7: =IF(AND(D7="غ",E7="غ",F7="غ",G7="غ",H7="غ"),"غ",SUM(D7:H7)) -> 140
A8: =IF(C8="","",SUBTOTAL(3,$C$5:C8)) -> 4 | B8: 204 | C8: أحمد محمد منصور باز الشريف | D8: 30 | E8: 29 | F8: 30 | G8: 29 | H8: 29 | I8: 99 | J8: 98 | K8: 99 | L8: 99 | M8: 98 | N8: 30 | O8: =IF(N(Q8)=0,Q8,SUM(IF(ISNUMBER($Q$5:$Q$108)*(Q8<$Q$5:$Q$108),1/COUNTIF($Q$5:$Q$108,$Q$5:$Q$108)))+1) -> 4 | Q8: 147
A9: =IF(C9="","",SUBTOTAL(3,$C$5:C9)) -> 5 | B9: 205 | C9: أحمد هاني عبدالوهاب علي ابراهيم | D9: 21 | E9: 27 | F9: 27 | G9: 26 | H9: 30 | I9: 99 | J9: 98 | K9: 99 | L9: 99 | M9: 97 | N9: 25 | O9: =IF(N(Q9)=0,Q9,SUM(IF(ISNUMBER($Q$5:$Q$108)*(Q9<$Q$5:$Q$108),1/COUNTIF($Q$5:$Q$108,$Q$5:$Q$108)))+1) -> 18 | Q9: 131
A10: =IF(C10="","",SUBTOTAL(3,$C$5:C10)) -> 6 | B10: 206 | C10: احمد وجيه محمد الخضرى سيد احمد | D10: 16 | E10: 26 | F10: 21 | G10: 21 | H10: 30 | I10: 99 | J10: 98 | K10: 98 | L10: 99 | M10: 98 | N10: 18 | O10: =IF(N(Q10)=0,Q10,SUM(IF(ISNUMBER($Q$5:$Q$108)*(Q10<$Q$5:$Q$108),1/COUNTIF($Q$5:$Q$108,$Q$5:$Q$108)))+1) -> 28 | Q10: 114
A11: =IF(C11="","",SUBTOTAL(3,$C$5:C11)) -> 7 | B11: 207 | C11: أحمد وليد رمضان عبد العال متولي | D11: 26 | E11: 30 | F11: 29 | G11: 27 | H11: 30 | I11: 100 | J11: 100 | K11: 99 | L11: 99 | M11: 99 | N11: 25 | O11: =IF(N(Q11)=0,Q11,SUM(IF(ISNUMBER($Q$5:$Q$108)*(Q11<$Q$5:$Q$108),1/COUNTIF($Q$5:$Q$108,$Q$5:$Q$108)))+1) -> 9 | Q11: 142
A12: =IF(C12="","",SUBTOTAL(3,$C$5:C12)) -> 8 | B12: 208 | C12: أكرم محمد محمود محمد حسنين | D12: 30 | E12: 26 | F12: 29 | G12: 30 | H12: 30 | I12: 99 | J12: 98 | K12: 97 | L12: 99 | M12: 98 | N12: 30 | O12: =IF(N(Q12)=0,Q12,SUM(IF(ISNUMBER($Q$5:$Q$108)*(Q12<$Q$5:$Q$108),1/COUNTIF($Q$5:$Q$108,$Q$5:$Q$108)))+1) -> 6 | Q12: 145
A13: =IF(C13="","",SUBTOTAL(3,$C$5:C13)) -> 9 | B13: 209 | C13: السيد طارق سليمان شادي | D13: 30 | E13: 29 | F13: 28 | G13: 30 | H13: 30 | I13: 99 | J13: 98 | K13: 97 | L13: 99 | M13: 98 | N13: 30 | O13: =IF(N(Q13)=0,Q13,SUM(IF(ISNUMBER($Q$5:$Q$108)*(Q13<$Q$5:$Q$108),1/COUNTIF($Q$5:$Q$108,$Q$5:$Q$108)))+1) -> 4 | Q13: 147
A14: =IF(C14="","",SUBTOTAL(3,$C$5:C14)) -> 10 | B14: 210 | C14: امير مجدى ابراهيم الجزار | D14: 28 | E14: 28 | F14: 29 | G14: 26 | H14: 30 | I14: 98 | J14: 99 | K14: 99 | L14: 97 | M14: 96 | N14: 29 | O14: =IF(N(Q14)=0,Q14,SUM(IF(ISNUMBER($Q$5:$Q$108)*(Q14<$Q$5:$Q$108),1/COUNTIF($Q$5:$Q$108,$Q$5:$Q$108)))+1) -> 10 | Q14: 141
A15: =IF(C15="","",SUBTOTAL(3,$C$5:C15)) -> 11 | B15: 211 | C15: أنس إبراهيم محمد الحاج موسى | D15: 30 | E15: 28 | F15: 30 | G15: 30 | H15: 26 | I15: 99 | J15: 98 | K15: 98 | L15: 97 | M15: 98 | N15: 30 | O15: =IF(N(Q15)=0,Q15,SUM(IF(ISNUMBER($Q$5:$Q$108)*(Q15<$Q$5:$Q$108),1/COUNTIF($Q$5:$Q$108,$Q$5:$Q$108)))+1) -> 7 | Q15: 144
A16: =IF(C16="","",SUBTOTAL(3,$C$5:C16)) -> 12 | B16: 212 | C16: انس مجدى ابراهيم الجزار | D16: 30 | E16: 28 | F16: 27 | G16: 29 | H16: 28 | I16: 99 | J16: 98 | K16: 99 | L16: 97 | M16: 98 | N16: 25 | O16: =IF(N(Q16)=0,Q16,SUM(IF(ISNUMBER($Q$5:$Q$108)*(Q16<$Q$5:$Q$108),1/COUNTIF($Q$5:$Q$108,$Q$5:$Q$108)))+1) -> 9 | Q16: 142
A17: =IF(C17="","",SUBTOTAL(3,$C$5:C17)) -> 13 | B17: 213 | C17: جمال محمد جمال عبد الحليم المرادي | D17: 27 | E17: 17 | F17: 26 | G17: 26 | H17: 26 | I17: 97 | J17: 96 | K17: 99 | L17: 95 | M17: 98 | N17: 22 | O17: =IF(N(Q17)=0,Q17,SUM(IF(ISNUMBER($Q$5:$Q$108)*(Q17<$Q$5:$Q$108),1/COUNTIF($Q$5:$Q$108,$Q$5:$Q$108)))+1) -> 25 | Q17: 122
A18: =IF(C18="","",SUBTOTAL(3,$C$5:C18)) -> 14 | B18: 214 | C18: حسن أيمن حسن باز الشريف | D18: 24 | E18: 18 | F18: 23 | G18: 24 | H18: 24 | I18: 97 | J18: 96 | K18: 99 | L18: 95 | M18: 98 | N18: 21 | O18: =IF(N(Q18)=0,Q18,SUM(IF(ISNUMBER($Q$5:$Q$108)*(Q18<$Q$5:$Q$108),1/COUNTIF($Q$5:$Q$108,$Q$5:$Q$108)))+1) -> 29 | Q18: 113
A19: =IF(C19="","",SUBTOTAL(3,$C$5:C19)) -> 15 | B19: 215 | C19: زياد أسامه عبد العاطى عبد العزيز | D19: 30 | E19: 30 | F19: 30 | G19: 29 | H19: 30 | I19: 99 | J19: 98 | K19: 100 | L19: 99 | M19: 98 | N19: 30 | O19: =IF(N(Q19)=0,Q19,SUM(IF(ISNUMBER($Q$5:$Q$108)*(Q19<$Q$5:$Q$108),1/COUNTIF($Q$5:$Q$108,$Q$5:$Q$108)))+1) -> 2 | Q19: 149
A20: =IF(C20="","",SUBTOTAL(3,$C$5:C20)) -> 16 | B20: 216 | C20: سعد محمد سعد محمد سويلم | D20: 27 | E20: 20 | F20: 30 | G20: 29 | H20: 27 | I20: 99 | J20: 98 | K20: 99 | L20: 99 | M20: 98 | N20: 24 | O20: =IF(N(Q20)=0,Q20,SUM(IF(ISNUMBER($Q$5:$Q$108)*(Q20<$Q$5:$Q$108),1/COUNTIF($Q$5:$Q$108,$Q$5:$Q$108)))+1) -> 16 | Q20: 133
A21: =IF(C21="","",SUBTOTAL(3,$C$5:C21)) -> 17 | B21: 217 | C21: سيف ايمن موسى ابراهيم حسين | D21: 30 | E21: 21 | F21: 29 | G21: 28 | H21: 29 | I21: 99 | J21: 99 | K21: 99 | L21: 98 | M21: 98 | N21: 29 | O21: =IF(N(Q21)=0,Q21,SUM(IF(ISNUMBER($Q$5:$Q$108)*(Q21<$Q$5:$Q$108),1/COUNTIF($Q$5:$Q$108,$Q$5:$Q$108)))+1) -> 14 | Q21: 137
A22: =IF(C22="","",SUBTOTAL(3,$C$5:C22)) -> 18 | B22: 218 | C22: عاطف محمد الكيلاني عكاشه | D22: 24 | E22: 19 | F22: 23 | G22: 28 | H22: 28 | I22: 100 | J22: 98 | K22: 99 | L22: 100 | M22: 98 | N22: 23 | O22: =IF(N(Q22)=0,Q22,SUM(IF(ISNUMBER($Q$5:$Q$108)*(Q22<$Q$5:$Q$108),1/COUNTIF($Q$5:$Q$108,$Q$5:$Q$108)))+1) -> 25 | Q22: 122
A23: =IF(C23="","",SUBTOTAL(3,$C$5:C23)) -> 19 | B23: 219 | C23: عبد الرحمن أحمد عبد الله أحمد يوسف | D23: 19 | E23: 30 | F23: 27 | G23: 19 | H23: 30 | I23: 99 | J23: 98 | K23: 99 | L23: 97 | M23: 98 | N23: 30 | O23: =IF(N(Q23)=0,Q23,SUM(IF(ISNUMBER($Q$5:$Q$108)*(Q23<$Q$5:$Q$108),1/COUNTIF($Q$5:$Q$108,$Q$5:$Q$108)))+1) -> 22 | Q23: 125
A24: =IF(C24="","",SUBTOTAL(3,$C$5:C24)) -> 20 | B24: 220 | C24: عبد الرحمن جمال الشناوي الحسيني | D24: 25 | E24: 22 | F24: 23 | G24: 20 | H24: 22 | I24: 99 | J24: 98 | K24: 99 | L24: 99 | M24: 97 | N24: 23 | O24: =IF(N(Q24)=0,Q24,SUM(IF(ISNUMBER($Q$5:$Q$108)*(Q24<$Q$5:$Q$108),1/COUNTIF($Q$5:$Q$108,$Q$5:$Q$108)))+1) -> 30 | Q24: 112
A25: =IF(C25="","",SUBTOTAL(3,$C$5:C25)) -> 21 | B25: 221 | C25: عبد الرحمن عصام محمد بكر | D25: 29 | E25: 26 | F25: 29 | G25: 28 | H25: 29 | I25: 99 | J25: 98 | K25: 99 | L25: 97 | M25: 98 | N25: 26 | O25: =IF(N(Q25)=0,Q25,SUM(IF(ISNUMBER($Q$5:$Q$108)*(Q25<$Q$5:$Q$108),1/COUNTIF($Q$5:$Q$108,$Q$5:$Q$108)))+1) -> 10 | Q25: 141
A26: =IF(C26="","",SUBTOTAL(3,$C$5:C26)) -> 22 | B26: 222 | C26: عبد الرحمن عماد محمد عبدالعليم | D26: 29 | E26: 24 | F26: 30 | G26: 30 | H26: 29 | I26: 99 | J26: 98 | K26: 99 | L26: 99 | M26: 98 | N26: 29 | O26: =IF(N(Q26)=0,Q26,SUM(IF(ISNUMBER($Q$5:$Q$108)*(Q26<$Q$5:$Q$108),1/COUNTIF($Q$5:$Q$108,$Q$5:$Q$108)))+1) -> 9 | Q26: 142
A27: =IF(C27="","",SUBTOTAL(3,$C$5:C27)) -> 23 | B27: 223 | C27: عبد الرحمن محمد أحمد عثمان | D27: 30 | E27: 23 | F27: 26 | G27: 29 | H27: 30 | I27: 99 | J27: 98 | K27: 99 | L27: 97 | M27: 98 | N27: 28 | O27: =IF(N(Q27)=0,Q27,SUM(IF(ISNUMBER($Q$5:$Q$108)*(Q27<$Q$5:$Q$108),1/COUNTIF($Q$5:$Q$108,$Q$5:$Q$108)))+1) -> 13 | Q27: 138
A28: =IF(C28="","",SUBTOTAL(3,$C$5:C28)) -> 24 | B28: 224 | C28: عبد العزيز محمد زكى عبد العزيز | D28: 29 | E28: 25 | F28: 29 | G28: 30 | H28: 30 | I28: 99 | J28: 98 | K28: 99 | L28: 99 | M28: 98 | N28: 29 | O28: =IF(N(Q28)=0,Q28,SUM(IF(ISNUMBER($Q$5:$Q$108)*(Q28<$Q$5:$Q$108),1/COUNTIF($Q$5:$Q$108,$Q$5:$Q$108)))+1) -> 8 | Q28: 143
A29: =IF(C29="","",SUBTOTAL(3,$C$5:C29)) -> 25 | B29: 225 | C29: عبدالرحمن فتحي موسي عبد الدايم | D29: 30 | E29: 30 | F29: 29 | G29: 29 | H29: 30 | I29: 99 | J29: 98 | K29: 99 | L29: 97 | M29: 98 | N29: 28 | O29: =IF(N(Q29)=0,Q29,SUM(IF(ISNUMBER($Q$5:$Q$108)*(Q29<$Q$5:$Q$108),1/COUNTIF($Q$5:$Q$108,$Q$5:$Q$108)))+1) -> 3 | Q29: 148
A30: =IF(C30="","",SUBTOTAL(3,$C$5:C30)) -> 26 | B30: 226 | C30: عصام محمد سمير فرج | D30: 30 | E30: 28 | F30: 30 | G30: 30 | H30: 30 | I30: 99 | J30: 98 | K30: 99 | L30: 99 | M30: 97 | N30: 28 | O30: =IF(N(Q30)=0,Q30,SUM(IF(ISNUMBER($Q$5:$Q$108)*(Q30<$Q$5:$Q$108),1/COUNTIF($Q$5:$Q$108,$Q$5:$Q$108)))+1) -> 3 | Q30: 148
A31: =IF(C31="","",SUBTOTAL(3,$C$5:C31)) -> 27 | B31: 227 | C31: عمار حاتم محمد رياض عمر | D31: 30 | E31: 26 | F31: 28 | G31: 30 | H31: 28 | I31: 99 | J31: 98 | K31: 99 | L31: 97 | M31: 98 | N31: 29 | O31: =IF(N(Q31)=0,Q31,SUM(IF(ISNUMBER($Q$5:$Q$108)*(Q31<$Q$5:$Q$108),1/COUNTIF($Q$5:$Q$108,$Q$5:$Q$108)))+1) -> 9 | Q31: 142
A32: =IF(C32="","",SUBTOTAL(3,$C$5:C32)) -> 28 | B32: 228 | C32: عمار علي علي رضوان الشحري | D32: 29 | E32: 28 | F32: 30 | G32: 28 | H32: 26 | I32: 99 | J32: 98 | K32: 99 | L32: 99 | M32: 98 | N32: 28 | O32: =IF(N(Q32)=0,Q32,SUM(IF(ISNUMBER($Q$5:$Q$108)*(Q32<$Q$5:$Q$108),1/COUNTIF($Q$5:$Q$108,$Q$5:$Q$108)))+1) -> 10 | Q32: 141
A33: =IF(C33="","",SUBTOTAL(3,$C$5:C33)) -> 29 | B33: 229 | C33: عمر أمير عبد الحفيظ أحمد الطنطاوي | D33: 26 | E33: 29 | F33: 29 | G33: 28 | H33: 28 | I33: 99 | J33: 98 | K33: 99 | L33: 97 | M33: 98 | N33: 27 | O33: =IF(N(Q33)=0,Q33,SUM(IF(ISNUMBER($Q$5:$Q$108)*(Q33<$Q$5:$Q$108),1/COUNTIF($Q$5:$Q$108,$Q$5:$Q$108)))+1) -> 11 | Q33: 140
A34: =IF(C34="","",SUBTOTAL(3,$C$5:C34)) -> 30 | B34: 230 | C34: عمر محمد محمد عبد العزيز حماد | D34: 27 | E34: 28 | F34: 30 | G34: 30 | H34: 28 | I34: 99 | J34: 98 | K34: 99 | L34: 97 | M34: 98 | N34: 27 | O34: =IF(N(Q34)=0,Q34,SUM(IF(ISNUMBER($Q$5:$Q$108)*(Q34<$Q$5:$Q$108),1/COUNTIF($Q$5:$Q$108,$Q$5:$Q$108)))+1) -> 8 | Q34: 143
A35: =IF(C35="","",SUBTOTAL(3,$C$5:C35)) -> 31 | B35: 231 | C35: عمرو محمد إبراهيم محمد إبراهيم | D35: 24 | E35: 25 | F35: 27 | G35: 27 | H35: 27 | I35: 99 | J35: 98 | K35: 97 | L35: 97 | M35: 98 | N35: 26 | O35: =IF(N(Q35)=0,Q35,SUM(IF(ISNUMBER($Q$5:$Q$108)*(Q35<$Q$5:$Q$108),1/COUNTIF($Q$5:$Q$108,$Q$5:$Q$108)))+1) -> 19 | Q35: 130
A36: =IF(C36="","",SUBTOTAL(3,$C$5:C36)) -> 32 | B36: 232 | C36: فتحى عبد الكريم فتحى عبد الكريم يوسف | D36: 26 | E36: 22 | F36: 23 | G36: 26 | H36: 27 | I36: 99 | J36: 98 | K36: 97 | L36: 97 | M36: 98 | N36: 24 | O36: =IF(N(Q36)=0,Q36,SUM(IF(ISNUMBER($Q$5:$Q$108)*(Q36<$Q$5:$Q$108),1/COUNTIF($Q$5:$Q$108,$Q$5:$Q$108)))+1) -> 23 | Q36: 124
A37: =IF(C37="","",SUBTOTAL(3,$C$5:C37)) -> 33 | B37: 233 | C37: فتحي أيمن فتحي محمد إبراهيم | D37: 29 | E37: 24 | F37: 29 | G37: 30 | H37: 29 | I37: 99 | J37: 98 | K37: 99 | L37: 97 | M37: 98 | N37: 29 | O37: =IF(N(Q37)=0,Q37,SUM(IF(ISNUMBER($Q$5:$Q$108)*(Q37<$Q$5:$Q$108),1/COUNTIF($Q$5:$Q$108,$Q$5:$Q$108)))+1) -> 10 | Q37: 141
A38: =IF(C38="","",SUBTOTAL(3,$C$5:C38)) -> 34 | B38: 234 | C38: فرج محمود فرج مغاوري | D38: 26 | E38: 20 | F38: 25 | G38: 28 | H38: 26 | I38: 99 | J38: 98 | K38: 99 | L38: 97 | M38: 98 | N38: 21 | O38: =IF(N(Q38)=0,Q38,SUM(IF(ISNUMBER($Q$5:$Q$108)*(Q38<$Q$5:$Q$108),1/COUNTIF($Q$5:$Q$108,$Q$5:$Q$108)))+1) -> 22 | Q38: 125
A39: =IF(C39="","",SUBTOTAL(3,$C$5:C39)) -> 35 | B39: 235 | C39: فهيم ياسر فهيم احمد مروان | D39: 28 | E39: 23 | F39: 26 | G39: 26 | H39: 25 | I39: 99 | J39: 98 | K39: 97 | L39: 99 | M39: 98 | N39: 28 | O39: =IF(N(Q39)=0,Q39,SUM(IF(ISNUMBER($Q$5:$Q$108)*(Q39<$Q$5:$Q$108),1/COUNTIF($Q$5:$Q$108,$Q$5:$Q$108)))+1) -> 21 | Q39: 128
A40: =IF(C40="","",SUBTOTAL(3,$C$5:C40)) -> 36 | B40: 236 | C40: محمد ايهاب محمد الدسوقي | D40: 29 | E40: 28 | F40: 29 | G40: 30 | H40: 30 | I40: 97 | J40: 96 | K40: 99 | L40: 95 | M40: 98 | N40: 30 | O40: =IF(N(Q40)=0,Q40,SUM(IF(ISNUMBER($Q$5:$Q$108)*(Q40<$Q$5:$Q$108),1/COUNTIF($Q$5:$Q$108,$Q$5:$Q$108)))+1) -> 5 | Q40: 146
A41: =IF(C41="","",SUBTOTAL(3,$C$5:C41)) -> 37 | B41: 237 | C41: محمد حسام عبد المنعم السيد فرج | D41: 28 | E41: 27 | F41: 30 | G41: 26 | H41: 30 | I41: 99 | J41: 98 | K41: 99 | L41: 99 | M41: 98 | N41: 26 | O41: =IF(N(Q41)=0,Q41,SUM(IF(ISNUMBER($Q$5:$Q$108)*(Q41<$Q$5:$Q$108),1/COUNTIF($Q$5:$Q$108,$Q$5:$Q$108)))+1) -> 10 | Q41: 141
A42: =IF(C42="","",SUBTOTAL(3,$C$5:C42)) -> 38 | B42: 238 | C42: محمد ماهر إبراهيم المرادي | D42: 26 | E42: 29 | F42: 30 | G42: 28 | H42: 30 | I42: 99 | J42: 98 | K42: 99 | L42: 99 | M42: 98 | N42: 26 | O42: =IF(N(Q42)=0,Q42,SUM(IF(ISNUMBER($Q$5:$Q$108)*(Q42<$Q$5:$Q$108),1/COUNTIF($Q$5:$Q$108,$Q$5:$Q$108)))+1) -> 8 | Q42: 143
A43: =IF(C43="","",SUBTOTAL(3,$C$5:C43)) -> 39 | B43: 239 | C43: محمد ماهر محمد سعيد السيد | D43: 28 | E43: 27 | F43: 29 | G43: 27 | H43: 29 | I43: 97 | J43: 98 | K43: 99 | L43: 97 | M43: 98 | N43: 29 | O43: =IF(N(Q43)=0,Q43,SUM(IF(ISNUMBER($Q$5:$Q$108)*(Q43<$Q$5:$Q$108),1/COUNTIF($Q$5:$Q$108,$Q$5:$Q$108)))+1) -> 11 | Q43: 140
A44: =IF(C44="","",SUBTOTAL(3,$C$5:C44)) -> 40 | B44: 240 | C44: محمود ايمن خيري بيومي حماده | D44: 28 | E44: 27 | F44: 29 | G44: 24 | H44: 29 | I44: 99 | J44: 98 | K44: 98 | L44: 99 | M44: 98 | N44: 26 | O44: =IF(N(Q44)=0,Q44,SUM(IF(ISNUMBER($Q$5:$Q$108)*(Q44<$Q$5:$Q$108),1/COUNTIF($Q$5:$Q$108,$Q$5:$Q$108)))+1) -> 14 | Q44: 137
A45: =IF(C45="","",SUBTOTAL(3,$C$5:C45)) -> 41 | B45: 241 | C45: محمود رفعت عبدالرشيد السيد عامر | D45: 30 | E45: 26 | F45: 29 | G45: 25 | H45: 26 | I45: 100 | J45: 100 | K45: 99 | L45: 100 | M45: 100 | N45: 28 | O45: =IF(N(Q45)=0,Q45,SUM(IF(ISNUMBER($Q$5:$Q$108)*(Q45<$Q$5:$Q$108),1/COUNTIF($Q$5:$Q$108,$Q$5:$Q$108)))+1) -> 15 | Q45: 136
A46: =IF(C46="","",SUBTOTAL(3,$C$5:C46)) -> 42 | B46: 242 | C46: محمود عماد عبد الستار محمد ابراهيم | D46: 29 | E46: 27 | F46: 30 | G46: 29 | H46: 29 | I46: 99 | J46: 98 | K46: 97 | L46: 99 | M46: 98 | N46: 28 | O46: =IF(N(Q46)=0,Q46,SUM(IF(ISNUMBER($Q$5:$Q$108)*(Q46<$Q$5:$Q$108),1/COUNTIF($Q$5:$Q$108,$Q$5:$Q$108)))+1) -> 7 | Q46: 144
A47: =IF(C47="","",SUBTOTAL(3,$C$5:C47)) -> 43 | B47: 243 | C47: مصطفي عاطف محمد أحمد | D47: 30 | E47: 25 | F47: 27 | G47: 22 | H47: 28 | I47: 99 | J47: 98 | K47: 97 | L47: 99 | M47: 98 | N47: 29 | O47: =IF(N(Q47)=0,Q47,SUM(IF(ISNUMBER($Q$5:$Q$108)*(Q47<$Q$5:$Q$108),1/COUNTIF($Q$5:$Q$108,$Q$5:$Q$108)))+1) -> 17 | Q47: 132
A48: =IF(C48="","",SUBTOTAL(3,$C$5:C48)) -> 44 | B48: 244 | C48: مهند أمير سامي عبد المطلب درغام | D48: 28 | E48: 27 | F48: 29 | G48: 30 | H48: 27 | I48: 98 | J48: 98 | K48: 99 | L48: 99 | M48: 98 | N48: 26 | O48: =IF(N(Q48)=0,Q48,SUM(IF(ISNUMBER($Q$5:$Q$108)*(Q48<$Q$5:$Q$108),1/COUNTIF($Q$5:$Q$108,$Q$5:$Q$108)))+1) -> 10 | Q48: 141
A49: =IF(C49="","",SUBTOTAL(3,$C$5:C49)) -> 45 | B49: 245 | C49: يوسف ماهر محمود عبدالعاطي محمد | D49: 29 | E49: 28 | F49: 30 | G49: 28 | H49: 30 | I49: 99 | J49: 98 | K49: 99 | L49: 97 | M49: 98 | N49: 26 | O49: =IF(N(Q49)=0,Q49,SUM(IF(ISNUMBER($Q$5:$Q$108)*(Q49<$Q$5:$Q$108),1/COUNTIF($Q$5:$Q$108,$Q$5:$Q$108)))+1) -> 6 | Q49: 145
A50: =IF(C50="","",SUBTOTAL(3,$C$5:C50)) -> 46 | B50: 246 | C50: يوسف محمد جبر أحمد جبر | D50: 22 | E50: 25 | F50: 22 | G50: 24 | H50: 30 | I50: 99 | J50: 98 | K50: 97 | L50: 99 | M50: 87 | N50: 26 | O50: =IF(N(Q50)=0,Q50,SUM(IF(ISNUMBER($Q$5:$Q$108)*(Q50<$Q$5:$Q$108),1/COUNTIF($Q$5:$Q$108,$Q$5:$Q$108)))+1) -> 24 | Q50: 123
A51: =IF(C51="","",SUBTOTAL(3,$C$5:C51)) -> 47 | B51: 247 | C51: يوسف محمد عبد السميع بكر | D51: 25 | E51: 23 | F51: 25 | G51: 17 | H51: 23 | I51: 97 | J51: 98 | K51: 99 | L51: 97 | M51: 98 | N51: 25 | O51: =IF(N(Q51)=0,Q51,SUM(IF(ISNUMBER($Q$5:$Q$108)*(Q51<$Q$5:$Q$108),1/COUNTIF($Q$5:$Q$108,$Q$5:$Q$108)))+1) -> 29 | Q51: 113
A52: =IF(C52="","",SUBTOTAL(3,$C$5:C52)) -> 48 | B52: 248 | C52: يوسف محمد كمال الصادق فرج | D52: 28 | E52: 27 | F52: 30 | G52: 30 | H52: 22 | I52: 99 | J52: 98 | K52: 97 | L52: 97 | M52: 98 | N52: 30 | O52: =IF(N(Q52)=0,Q52,SUM(IF(ISNUMBER($Q$5:$Q$108)*(Q52<$Q$5:$Q$108),1/COUNTIF($Q$5:$Q$108,$Q$5:$Q$108)))+1) -> 14 | Q52: 137
A53: =IF(C53="","",SUBTOTAL(3,$C$5:C53)) -> 49 | B53: 249 | C53: اروى عزب عبد المولى عزب خليل | D53: 28 | E53: 27 | F53: 29 | G53: 26 | H53: 26 | I53: 97 | J53: 96 | K53: 98 | L53: 95 | M53: 98 | N53: 27 | O53: =IF(N(Q53)=0,Q53,SUM(IF(ISNUMBER($Q$5:$Q$108)*(Q53<$Q$5:$Q$108),1/COUNTIF($Q$5:$Q$108,$Q$5:$Q$108)))+1) -> 15 | Q53: 136
A54: =IF(C54="","",SUBTOTAL(3,$C$5:C54)) -> 50 | B54: 250 | C54: إسراء جمال محمد الخضري | D54: 25 | E54: 30 | F54: 29 | G54: 30 | H54: 28 | I54: 96 | J54: 97 | K54: 96 | L54: 98 | M54: 98 | N54: 29 | O54: =IF(N(Q54)=0,Q54,SUM(IF(ISNUMBER($Q$5:$Q$108)*(Q54<$Q$5:$Q$108),1/COUNTIF($Q$5:$Q$108,$Q$5:$Q$108)))+1) -> 9 | Q54: 142
A55: =IF(C55="","",SUBTOTAL(3,$C$5:C55)) -> 51 | B55: 251 | C55: آلاء أشرف محمود السيد عبد الرحمن | D55: 30 | E55: 30 | F55: 30 | G55: 28 | H55: 30 | I55: 99 | J55: 98 | K55: 99 | L55: 97 | M55: 98 | N55: 29 | O55: =IF(N(Q55)=0,Q55,SUM(IF(ISNUMBER($Q$5:$Q$108)*(Q55<$Q$5:$Q$108),1/COUNTIF($Q$5:$Q$108,$Q$5:$Q$108)))+1) -> 3 | Q55: 148
A56: =IF(C56="","",SUBTOTAL(3,$C$5:C56)) -> 52 | B56: 252 | C56: آلاء محمد عبد اللطيف السيد عطوه | D56: 28 | E56: 24 | F56: 27 | G56: 30 | H56: 24 | I56: 97 | J56: 96 | K56: 97 | L56: 95 | M56: 98 | N56: 30 | O56: =IF(N(Q56)=0,Q56,SUM(IF(ISNUMBER($Q$5:$Q$108)*(Q56<$Q$5:$Q$108),1/COUNTIF($Q$5:$Q$108,$Q$5:$Q$108)))+1) -> 16 | Q56: 133
A57: =IF(C57="","",SUBTOTAL(3,$C$5:C57)) -> 53 | B57: 253 | C57: آيه إيهاب عبد الله إبراهيم عامر | D57: 29 | E57: 30 | F57: 30 | G57: 28 | H57: 30 | I57: 98 | J57: 97 | K57: 99 | L57: 95 | M57: 96 | N57: 30 | O57: =IF(N(Q57)=0,Q57,SUM(IF(ISNUMBER($Q$5:$Q$108)*(Q57<$Q$5:$Q$108),1/COUNTIF($Q$5:$Q$108,$Q$5:$Q$108)))+1) -> 4 | Q57: 147
A58: =IF(C58="","",SUBTOTAL(3,$C$5:C58)) -> 54 | B58: 254 | C58: آيه عبد الحميد علي بكر | D58: 29 | E58: 28 | F58: 29 | G58: 30 | H58: 30 | I58: 96 | J58: 95 | K58: 99 | L58: 94 | M58: 95 | N58: 30 | O58: =IF(N(Q58)=0,Q58,SUM(IF(ISNUMBER($Q$5:$Q$108)*(Q58<$Q$5:$Q$108),1/COUNTIF($Q$5:$Q$108,$Q$5:$Q$108)))+1) -> 5 | Q58: 146
A59: =IF(C59="","",SUBTOTAL(3,$C$5:C59)) -> 55 | B59: 255 | C59: بسملة محمد فوزى صلاح الدين عامر | D59: 28 | E59: 28 | F59: 29 | G59: 27 | H59: 29 | I59: 99 | J59: 98 | K59: 99 | L59: 97 | M59: 98 | N59: 30 | O59: =IF(N(Q59)=0,Q59,SUM(IF(ISNUMBER($Q$5:$Q$108)*(Q59<$Q$5:$Q$108),1/COUNTIF($Q$5:$Q$108,$Q$5:$Q$108)))+1) -> 10 | Q59: 141
A60: =IF(C60="","",SUBTOTAL(3,$C$5:C60)) -> 56 | B60: 256 | C60: جنى عبد الله حسن عبد الله ابراهيم | D60: 28 | E60: 29 | F60: 30 | G60: 28 | H60: 30 | I60: 97 | J60: 96 | K60: 99 | L60: 95 | M60: 97 | N60: 30 | O60: =IF(N(Q60)=0,Q60,SUM(IF(ISNUMBER($Q$5:$Q$108)*(Q60<$Q$5:$Q$108),1/COUNTIF($Q$5:$Q$108,$Q$5:$Q$108)))+1) -> 6 | Q60: 145
A61: =IF(C61="","",SUBTOTAL(3,$C$5:C61)) -> 57 | B61: 257 | C61: حبيبة هشام ابراهيم علي | D61: 26 | E61: 30 | F61: 30 | G61: 28 | H61: 30 | I61: 97 | J61: 96 | K61: 99 | L61: 95 | M61: 96 | N61: 30 | O61: =IF(N(Q61)=0,Q61,SUM(IF(ISNUMBER($Q$5:$Q$108)*(Q61<$Q$5:$Q$108),1/COUNTIF($Q$5:$Q$108,$Q$5:$Q$108)))+1) -> 7 | Q61: 144
A62: =IF(C62="","",SUBTOTAL(3,$C$5:C62)) -> 58 | B62: 258 | C62: حبيبه جمال إمام محمد المرادي | D62: 27 | E62: 28 | F62: 30 | G62: 28 | H62: 30 | I62: 99 | J62: 98 | K62: 99 | L62: 97 | M62: 98 | N62: 30 | O62: =IF(N(Q62)=0,Q62,SUM(IF(ISNUMBER($Q$5:$Q$108)*(Q62<$Q$5:$Q$108),1/COUNTIF($Q$5:$Q$108,$Q$5:$Q$108)))+1) -> 8 | Q62: 143
A63: =IF(C63="","",SUBTOTAL(3,$C$5:C63)) -> 59 | B63: 259 | C63: حبيبه صلاح الدين أحمد عبد الوهاب حماد | D63: 29 | E63: 27 | F63: 28 | G63: 29 | H63: 29 | I63: 99 | J63: 98 | K63: 97 | L63: 97 | M63: 98 | N63: 24 | O63: =IF(N(Q63)=0,Q63,SUM(IF(ISNUMBER($Q$5:$Q$108)*(Q63<$Q$5:$Q$108),1/COUNTIF($Q$5:$Q$108,$Q$5:$Q$108)))+1) -> 9 | Q63: 142
A64: =IF(C64="","",SUBTOTAL(3,$C$5:C64)) -> 60 | B64: 260 | C64: حبيبه محمد عبد الله مرسي | D64: 26 | E64: 30 | F64: 29 | G64: 27 | H64: 25 | I64: 99 | J64: 98 | K64: 99 | L64: 99 | M64: 98 | N64: 29 | O64: =IF(N(Q64)=0,Q64,SUM(IF(ISNUMBER($Q$5:$Q$108)*(Q64<$Q$5:$Q$108),1/COUNTIF($Q$5:$Q$108,$Q$5:$Q$108)))+1) -> 14 | Q64: 137
A65: =IF(C65="","",SUBTOTAL(3,$C$5:C65)) -> 61 | B65: 261 | C65: دنيا عبد الكريم عبد الله عبد الكريم يوسف | D65: 30 | E65: 30 | F65: 30 | G65: 29 | H65: 29 | I65: 99 | J65: 98 | K65: 99 | L65: 99 | M65: 98 | N65: 29 | O65: =IF(N(Q65)=0,Q65,SUM(IF(ISNUMBER($Q$5:$Q$108)*(Q65<$Q$5:$Q$108),1/COUNTIF($Q$5:$Q$108,$Q$5:$Q$108)))+1) -> 3 | Q65: 148
A66: =IF(C66="","",SUBTOTAL(3,$C$5:C66)) -> 62 | B66: 262 | C66: روان باسم نعيم السيد محمود | D66: 29 | E66: 29 | F66: 29 | G66: 27 | H66: 28 | I66: 99 | J66: 98 | K66: 99 | L66: 97 | M66: 98 | N66: 29 | O66: =IF(N(Q66)=0,Q66,SUM(IF(ISNUMBER($Q$5:$Q$108)*(Q66<$Q$5:$Q$108),1/COUNTIF($Q$5:$Q$108,$Q$5:$Q$108)))+1) -> 9 | Q66: 142
A67: =IF(C67="","",SUBTOTAL(3,$C$5:C67)) -> 63 | B67: 263 | C67: رودينه محمود طه محمود عيد | D67: 20 | E67: 18 | F67: 22 | G67: 25 | H67: 23 | I67: 97 | J67: 98 | K67: 99 | L67: 97 | M67: 98 | N67: 28 | O67: =IF(N(Q67)=0,Q67,SUM(IF(ISNUMBER($Q$5:$Q$108)*(Q67<$Q$5:$Q$108),1/COUNTIF($Q$5:$Q$108,$Q$5:$Q$108)))+1) -> 31 | Q67: 108
A68: =IF(C68="","",SUBTOTAL(3,$C$5:C68)) -> 64 | B68: 264 | C68: رؤي سمير موسي أحمد عبد الدايم | D68: 29 | E68: 30 | F68: 30 | G68: 28 | H68: 28 | I68: 99 | J68: 98 | K68: 99 | L68: 99 | M68: 98 | N68: 29 | O68: =IF(N(Q68)=0,Q68,SUM(IF(ISNUMBER($Q$5:$Q$108)*(Q68<$Q$5:$Q$108),1/COUNTIF($Q$5:$Q$108,$Q$5:$Q$108)))+1) -> 6 | Q68: 145
A69: =IF(C69="","",SUBTOTAL(3,$C$5:C69)) -> 65 | B69: 265 | C69: سامية عبد العزيز محمد عبد العزيز حماد | D69: 30 | E69: 29 | F69: 30 | G69: 30 | H69: 29 | I69: 99 | J69: 98 | K69: 97 | L69: 97 | M69: 98 | N69: 30 | O69: =IF(N(Q69)=0,Q69,SUM(IF(ISNUMBER($Q$5:$Q$108)*(Q69<$Q$5:$Q$108),1/COUNTIF($Q$5:$Q$108,$Q$5:$Q$108)))+1) -> 3 | Q69: 148
A70: =IF(C70="","",SUBTOTAL(3,$C$5:C70)) -> 66 | B70: 266 | C70: سندس ماهر أمين محمد المرادي | D70: 29 | E70: 26 | F70: 30 | G70: 27 | H70: 25 | I70: 99 | J70: 98 | K70: 99 | L70: 97 | M70: 98 | N70: 28 | O70: =IF(N(Q70)=0,Q70,SUM(IF(ISNUMBER($Q$5:$Q$108)*(Q70<$Q$5:$Q$108),1/COUNTIF($Q$5:$Q$108,$Q$5:$Q$108)))+1) -> 14 | Q70: =IF(AND(D70="غ",E70="غ",F70="غ",G70="غ",H70="غ"),"غ",SUM(D70:H70)) -> 137
A71: =IF(C71="","",SUBTOTAL(3,$C$5:C71)) -> 67 | B71: 267 | C71: شذا أنور أحمد التهامي حجاج | D71: 30 | E71: 28 | F71: 30 | G71: 29 | H71: 29 | I71: 99 | J71: 98 | K71: 99 | L71: 99 | M71: 97 | N71: 29 | O71: =IF(N(Q71)=0,Q71,SUM(IF(ISNUMBER($Q$5:$Q$108)*(Q71<$Q$5:$Q$108),1/COUNTIF($Q$5:$Q$108,$Q$5:$Q$108)))+1) -> 5 | Q71: 146
A72: =IF(C72="","",SUBTOTAL(3,$C$5:C72)) -> 68 | B72: 268 | C72: شهد عبد الله فراج أحمد فراج | D72: 30 | E72: 26 | F72: 30 | G72: 30 | H72: 29 | I72: 99 | J72: 98 | K72: 99 | L72: 99 | M72: 98 | N72: 29 | O72: =IF(N(Q72)=0,Q72,SUM(IF(ISNUMBER($Q$5:$Q$108)*(Q72<$Q$5:$Q$108),1/COUNTIF($Q$5:$Q$108,$Q$5:$Q$108)))+1) -> 6 | Q72: 145
A73: =IF(C73="","",SUBTOTAL(3,$C$5:C73)) -> 69 | B73: 269 | C73: شهد علي محمد مصلحي عوض | D73: 29 | E73: 29 | F73: 30 | G73: 30 | H73: 27 | I73: 99 | J73: 98 | K73: 99 | L73: 97 | M73: 98 | N73: 30 | O73: =IF(N(Q73)=0,Q73,SUM(IF(ISNUMBER($Q$5:$Q$108)*(Q73<$Q$5:$Q$108),1/COUNTIF($Q$5:$Q$108,$Q$5:$Q$108)))+1) -> 6 | Q73: 145
A74: =IF(C74="","",SUBTOTAL(3,$C$5:C74)) -> 70 | B74: 270 | C74: شهد محمد إبراهيم متولي اليبد | D74: 29 | E74: 29 | F74: 30 | G74: 19 | H74: 21 | I74: 97 | J74: 98 | K74: 97 | L74: 97 | M74: 97 | N74: 28 | O74: =IF(N(Q74)=0,Q74,SUM(IF(ISNUMBER($Q$5:$Q$108)*(Q74<$Q$5:$Q$108),1/COUNTIF($Q$5:$Q$108,$Q$5:$Q$108)))+1) -> 21 | Q74: 128
A75: =IF(C75="","",SUBTOTAL(3,$C$5:C75)) -> 71 | B75: 271 | C75: شهد نادر عقل محمد عقل | D75: 30 | E75: 28 | F75: 30 | G75: 28 | H75: 30 | I75: 99 | J75: 98 | K75: 99 | L75: 97 | M75: 98 | N75: 30 | O75: =IF(N(Q75)=0,Q75,SUM(IF(ISNUMBER($Q$5:$Q$108)*(Q75<$Q$5:$Q$108),1/COUNTIF($Q$5:$Q$108,$Q$5:$Q$108)))+1) -> 5 | Q75: 146
A76: =IF(C76="","",SUBTOTAL(3,$C$5:C76)) -> 72 | B76: 272 | C76: فاطمة أيمن محمد عبد الستارعطيه | D76: 30 | E76: 28 | F76: 28 | G76: 25 | H76: 29 | I76: 99 | J76: 98 | K76: 99 | L76: 97 | M76: 98 | N76: 29 | O76: =IF(N(Q76)=0,Q76,SUM(IF(ISNUMBER($Q$5:$Q$108)*(Q76<$Q$5:$Q$108),1/COUNTIF($Q$5:$Q$108,$Q$5:$Q$108)))+1) -> 11 | Q76: 140
A77: =IF(C77="","",SUBTOTAL(3,$C$5:C77)) -> 73 | B77: 273 | C77: مريم جلال إبراهيم الدسوقي النادي | D77: 28 | E77: 29 | F77: 30 | G77: 30 | H77: 29 | I77: 99 | J77: 98 | K77: 99 | L77: 97 | M77: 98 | N77: 27 | O77: =IF(N(Q77)=0,Q77,SUM(IF(ISNUMBER($Q$5:$Q$108)*(Q77<$Q$5:$Q$108),1/COUNTIF($Q$5:$Q$108,$Q$5:$Q$108)))+1) -> 5 | Q77: 146
A78: =IF(C78="","",SUBTOTAL(3,$C$5:C78)) -> 74 | B78: 274 | C78: مريم سعيد عبدالمنعم ابراهيم موسى | D78: 29 | E78: 30 | F78: 30 | G78: 29 | H78: 27 | I78: 99 | J78: 98 | K78: 99 | L78: 97 | M78: 98 | N78: 30 | O78: =IF(N(Q78)=0,Q78,SUM(IF(ISNUMBER($Q$5:$Q$108)*(Q78<$Q$5:$Q$108),1/COUNTIF($Q$5:$Q$108,$Q$5:$Q$108)))+1) -> 6 | Q78: 145
A79: =IF(C79="","",SUBTOTAL(3,$C$5:C79)) -> 75 | B79: 275 | C79: ملك جمال عبد الوهاب علي | D79: 29 | E79: 25 | F79: 30 | G79: 26 | H79: 27 | I79: 97 | J79: 98 | K79: 99 | L79: 97 | M79: 98 | N79: 26 | O79: =IF(N(Q79)=0,Q79,SUM(IF(ISNUMBER($Q$5:$Q$108)*(Q79<$Q$5:$Q$108),1/COUNTIF($Q$5:$Q$108,$Q$5:$Q$108)))+1) -> 14 | Q79: 137
A80: =IF(C80="","",SUBTOTAL(3,$C$5:C80)) -> 76 | B80: 276 | C80: ملك حسين موسي ابراهيم موسى | D80: 30 | E80: 29 | F80: 30 | G80: 29 | H80: 30 | I80: 99 | J80: 98 | K80: 99 | L80: 97 | M80: 98 | N80: 26 | O80: =IF(N(Q80)=0,Q80,SUM(IF(ISNUMBER($Q$5:$Q$108)*(Q80<$Q$5:$Q$108),1/COUNTIF($Q$5:$Q$108,$Q$5:$Q$108)))+1) -> 3 | Q80: 148
A81: =IF(C81="","",SUBTOTAL(3,$C$5:C81)) -> 77 | B81: 277 | C81: ملك عماد النادي موسي المرادي | D81: 20 | E81: 25 | F81: 29 | G81: 19 | H81: 25 | I81: 99 | J81: 98 | K81: 99 | L81: 97 | M81: 98 | N81: 21 | O81: =IF(N(Q81)=0,Q81,SUM(IF(ISNUMBER($Q$5:$Q$108)*(Q81<$Q$5:$Q$108),1/COUNTIF($Q$5:$Q$108,$Q$5:$Q$108)))+1) -> 26 | Q81: 118
A82: =IF(C82="","",SUBTOTAL(3,$C$5:C82)) -> 78 | B82: 278 | C82: ملك ماهر السيد حسين غلوش | D82: 30 | E82: 29 | F82: 29 | G82: 25 | H82: 26 | I82: 99 | J82: 98 | K82: 99 | L82: 97 | M82: 98 | N82: 30 | O82: =IF(N(Q82)=0,Q82,SUM(IF(ISNUMBER($Q$5:$Q$108)*(Q82<$Q$5:$Q$108),1/COUNTIF($Q$5:$Q$108,$Q$5:$Q$108)))+1) -> 12 | Q82: 139
A83: =IF(C83="","",SUBTOTAL(3,$C$5:C83)) -> 79 | B83: 279 | C83: ملك محمد السيد خضير | D83: 30 | E83: 30 | F83: 30 | G83: 30 | H83: 29 | I83: 99 | J83: 98 | K83: 99 | L83: 97 | M83: 98 | N83: 30 | O83: =IF(N(Q83)=0,Q83,SUM(IF(ISNUMBER($Q$5:$Q$108)*(Q83<$Q$5:$Q$108),1/COUNTIF($Q$5:$Q$108,$Q$5:$Q$108)))+1) -> 2 | Q83: 149
A84: =IF(C84="","",SUBTOTAL(3,$C$5:C84)) -> 80 | B84: 280 | C84: ملك محمد عبد الله حسن فرج | D84: 20 | E84: 19 | F84: 25 | G84: 16 | H84: 27 | I84: 99 | J84: 98 | K84: 99 | L84: 97 | M84: 98 | N84: 23 | O84: =IF(N(Q84)=0,Q84,SUM(IF(ISNUMBER($Q$5:$Q$108)*(Q84<$Q$5:$Q$108),1/COUNTIF($Q$5:$Q$108,$Q$5:$Q$108)))+1) -> 32 | Q84: 107
A85: =IF(C85="","",SUBTOTAL(3,$C$5:C85)) -> 81 | B85: 281 | C85: ملك محمد عبد الله محمود البكري | D85: 30 | E85: 28 | F85: 28 | G85: 29 | H85: 30 | I85: 99 | J85: 98 | K85: 99 | L85: 97 | M85: 98 | N85: 27 | O85: =IF(N(Q85)=0,Q85,SUM(IF(ISNUMBER($Q$5:$Q$108)*(Q85<$Q$5:$Q$108),1/COUNTIF($Q$5:$Q$108,$Q$5:$Q$108)))+1) -> 6 | Q85: 145
A86: =IF(C86="","",SUBTOTAL(3,$C$5:C86)) -> 82 | B86: 282 | C86: ملك نبيل أحمد أبو المجد أحمد | D86: 29 | E86: 19 | F86: 25 | G86: 20 | H86: 23 | I86: 99 | J86: 98 | K86: 99 | L86: 97 | M86: 98 | N86: 26 | O86: =IF(N(Q86)=0,Q86,SUM(IF(ISNUMBER($Q$5:$Q$108)*(Q86<$Q$5:$Q$108),1/COUNTIF($Q$5:$Q$108,$Q$5:$Q$108)))+1) -> 27 | Q86: 116
A87: =IF(C87="","",SUBTOTAL(3,$C$5:C87)) -> 83 | B87: 283 | C87: منه ماهر عبد المولي الصادق فرج | D87: 30 | E87: 28 | F87: 30 | G87: 30 | H87: 29 | I87: 99 | J87: 99 | K87: 99 | L87: 99 | M87: 99 | N87: 29 | O87: =IF(N(Q87)=0,Q87,SUM(IF(ISNUMBER($Q$5:$Q$108)*(Q87<$Q$5:$Q$108),1/COUNTIF($Q$5:$Q$108,$Q$5:$Q$108)))+1) -> 4 | Q87: 147
A88: =IF(C88="","",SUBTOTAL(3,$C$5:C88)) -> 84 | B88: 284 | C88: مني جمال ابراهيم محمد عبدالله | D88: 30 | E88: 29 | F88: 30 | G88: 29 | H88: 30 | I88: 99 | J88: 98 | K88: 99 | L88: 97 | M88: 98 | N88: 30 | O88: =IF(N(Q88)=0,Q88,SUM(IF(ISNUMBER($Q$5:$Q$108)*(Q88<$Q$5:$Q$108),1/COUNTIF($Q$5:$Q$108,$Q$5:$Q$108)))+1) -> 3 | Q88: 148
A89: =IF(C89="","",SUBTOTAL(3,$C$5:C89)) -> 85 | B89: 285 | C89: نادين أيمن عبد الله الصادق فرج | D89: 30 | E89: 30 | F89: 30 | G89: 28 | H89: 30 | I89: 99 | J89: 98 | K89: 99 | L89: 97 | M89: 97 | N89: 29 | O89: =IF(N(Q89)=0,Q89,SUM(IF(ISNUMBER($Q$5:$Q$108)*(Q89<$Q$5:$Q$108),1/COUNTIF($Q$5:$Q$108,$Q$5:$Q$108)))+1) -> 3 | Q89: 148
A90: =IF(C90="","",SUBTOTAL(3,$C$5:C90)) -> 86 | B90: 286 | C90: نور أحمد عبد الرازق يوسف عبد الله | D90: 30 | E90: 30 | F90: 30 | G90: 28 | H90: 30 | I90: 99 | J90: 98 | K90: 99 | L90: 97 | M90: 98 | N90: 30 | O90: =IF(N(Q90)=0,Q90,SUM(IF(ISNUMBER($Q$5:$Q$108)*(Q90<$Q$5:$Q$108),1/COUNTIF($Q$5:$Q$108,$Q$5:$Q$108)))+1) -> 3 | Q90: 148
A91: =IF(C91="","",SUBTOTAL(3,$C$5:C91)) -> 87 | B91: 287 | C91: نورا إبراهيم كمال الصادق فرج | D91: 30 | E91: 30 | F91: 30 | G91: 28 | H91: 30 | I91: 99 | J91: 97 | K91: 99 | L91: 99 | M91: 98 | N91: 30 | O91: =IF(N(Q91)=0,Q91,SUM(IF(ISNUMBER($Q$5:$Q$108)*(Q91<$Q$5:$Q$108),1/COUNTIF($Q$5:$Q$108,$Q$5:$Q$108)))+1) -> 3 | Q91: 148
A92: =IF(C92="","",SUBTOTAL(3,$C$5:C92)) -> 88 | B92: 288 | C92: هبة الله السيد فهمي محمد إبراهيم | D92: 30 | E92: 29 | F92: 30 | G92: 29 | H92: 28 | I92: 99 | J92: 98 | K92: 99 | L92: 97 | M92: 98 | N92: 30 | O92: =IF(N(Q92)=0,Q92,SUM(IF(ISNUMBER($Q$5:$Q$108)*(Q92<$Q$5:$Q$108),1/COUNTIF($Q$5:$Q$108,$Q$5:$Q$108)))+1) -> 5 | Q92: 146
A93: =IF(C93="","",SUBTOTAL(3,$C$5:C93)) -> 89 | B93: 289 | C93: أحمد سامح إبراهيم مصيلحى | D93: 18 | E93: 13 | F93: 16 | G93: 17 | H93: 19 | I93: 97 | J93: 98 | K93: 99 | L93: 97 | M93: 98 | N93: 21 | O93: =IF(N(Q93)=0,Q93,SUM(IF(ISNUMBER($Q$5:$Q$108)*(Q93<$Q$5:$Q$108),1/COUNTIF($Q$5:$Q$108,$Q$5:$Q$108)))+1) -> 38 | Q93: 83
A94: =IF(C94="","",SUBTOTAL(3,$C$5:C94)) -> 90 | B94: 290 | C94: أحمد عصام صبحي محمد المرادي | D94: 16 | E94: 17 | F94: 14 | G94: 13 | H94: 20 | I94: 98 | J94: 99 | K94: 99 | L94: 97 | M94: 98 | N94: 18 | O94: =IF(N(Q94)=0,Q94,SUM(IF(ISNUMBER($Q$5:$Q$108)*(Q94<$Q$5:$Q$108),1/COUNTIF($Q$5:$Q$108,$Q$5:$Q$108)))+1) -> 39 | Q94: 80
A95: =IF(C95="","",SUBTOTAL(3,$C$5:C95)) -> 91 | B95: 291 | C95: احمد محمد السيد محمد على | D95: 15 | E95: 13 | F95: 13 | G95: 13 | H95: 24 | I95: 99 | J95: 98 | K95: 100 | L95: 99 | M95: 98 | N95: 19 | O95: =IF(N(Q95)=0,Q95,SUM(IF(ISNUMBER($Q$5:$Q$108)*(Q95<$Q$5:$Q$108),1/COUNTIF($Q$5:$Q$108,$Q$5:$Q$108)))+1) -> 40 | Q95: 78
A96: =IF(C96="","",SUBTOTAL(3,$C$5:C96)) -> 92 | B96: 292 | C96: أحمد محمد سعيد سيد المرادي | D96: 2 | E96: 5 | F96: 9 | G96: 8 | H96: 15 | I96: 99 | J96: 98 | K96: 99 | L96: 99 | M96: 98 | N96: 8 | O96: =IF(N(Q96)=0,Q96,SUM(IF(ISNUMBER($Q$5:$Q$108)*(Q96<$Q$5:$Q$108),1/COUNTIF($Q$5:$Q$108,$Q$5:$Q$108)))+1) -> 42 | Q96: 39
A97: =IF(C97="","",SUBTOTAL(3,$C$5:C97)) -> 93 | B97: 293 | C97: آدم محمد السيد العوني | D97: غ | E97: غ | F97: غ | G97: غ | H97: غ | I97: غ | J97: غ | K97: غ | L97: غ | M97: غ | N97: غ | O97: =IF(N(Q97)=0,Q97,SUM(IF(ISNUMBER($Q$5:$Q$108)*(Q97<$Q$5:$Q$108),1/COUNTIF($Q$5:$Q$108,$Q$5:$Q$108)))+1) -> غ | Q97: =IF(AND(D97="غ",E97="غ",F97="غ",G97="غ",H97="غ"),"غ",SUM(D97:H97)) -> غ
A98: =IF(C98="","",SUBTOTAL(3,$C$5:C98)) -> 94 | B98: 294 | C98: زياد أشرف عباس سعيد عجور | D98: 3 | E98: 17 | F98: 15 | G98: 11 | H98: 24 | I98: غ | J98: غ | K98: غ | L98: غ | M98: غ | N98: 13 | O98: =IF(N(Q98)=0,Q98,SUM(IF(ISNUMBER($Q$5:$Q$108)*(Q98<$Q$5:$Q$108),1/COUNTIF($Q$5:$Q$108,$Q$5:$Q$108)))+1) -> 41 | Q98: =IF(AND(D98="غ",E98="غ",F98="غ",G98="غ",H98="غ"),"غ",SUM(D98:H98)) -> 70
A99: =IF(C99="","",SUBTOTAL(3,$C$5:C99)) -> 95 | B99: 295 | C99: زياد محمد زايد عبد الرازق عبد العال | D99: 20 | E99: 19 | F99: 16 | G99: 13 | H99: 23 | I99: 99 | J99: 99 | K99: 99 | L99: 99 | M99: 97 | N99: 25 | O99: =IF(N(Q99)=0,Q99,SUM(IF(ISNUMBER($Q$5:$Q$108)*(Q99<$Q$5:$Q$108),1/COUNTIF($Q$5:$Q$108,$Q$5:$Q$108)))+1) -> 36 | Q99: 91
A100: =IF(C100="","",SUBTOTAL(3,$C$5:C100)) -> 96 | B100: 296 | C100: على محمد على عبد الجواد | D100: 22 | E100: 23 | F100: 19 | G100: 13 | H100: 20 | I100: 99 | J100: 98 | K100: 99 | L100: 97 | M100: 98 | N100: 14 | O100: =IF(N(Q100)=0,Q100,SUM(IF(ISNUMBER($Q$5:$Q$108)*(Q100<$Q$5:$Q$108),1/COUNTIF($Q$5:$Q$108,$Q$5:$Q$108)))+1) -> 34 | Q100: 97
A101: =IF(C101="","",SUBTOTAL(3,$C$5:C101)) -> 97 | B101: 297 | C101: محمد جمعة عبدالغفار محمد هدهد | D101: 12 | E101: 11 | F101: 26 | G101: 21 | H101: 26 | I101: 97 | J101: 96 | K101: 100 | L101: 95 | M101: 98 | N101: 7 | O101: =IF(N(Q101)=0,Q101,SUM(IF(ISNUMBER($Q$5:$Q$108)*(Q101<$Q$5:$Q$108),1/COUNTIF($Q$5:$Q$108,$Q$5:$Q$108)))+1) -> 35 | Q101: 96
A102: =IF(C102="","",SUBTOTAL(3,$C$5:C102)) -> 98 | B102: 298 | C102: محمود عاطف عبدالرازق قطب | D102: 15 | E102: 11 | F102: 16 | G102: 28 | H102: 21 | I102: 99 | J102: 99 | K102: 99 | L102: 100 | M102: 98 | N102: 11 | O102: =IF(N(Q102)=0,Q102,SUM(IF(ISNUMBER($Q$5:$Q$108)*(Q102<$Q$5:$Q$108),1/COUNTIF($Q$5:$Q$108,$Q$5:$Q$108)))+1) -> 36 | Q102: 91
A103: =IF(C103="","",SUBTOTAL(3,$C$5:C103)) -> 99 | B103: 299 | C103: يوسف محمد عبد الحميد هدهد | D103: 26 | E103: 10 | F103: 25 | G103: 24 | H103: 23 | I103: 97 | J103: 96 | K103: 96 | L103: 95 | M103: 98 | N103: 24 | O103: =IF(N(Q103)=0,Q103,SUM(IF(ISNUMBER($Q$5:$Q$108)*(Q103<$Q$5:$Q$108),1/COUNTIF($Q$5:$Q$108,$Q$5:$Q$108)))+1) -> 31 | Q103: 108
A104: =IF(C104="","",SUBTOTAL(3,$C$5:C104)) -> 100 | B104: 300 | C104: يوسف محمود عبد الموجود السيد سيد أحمد | D104: 11 | E104: 19 | F104: 16 | G104: 20 | H104: 21 | I104: 99 | J104: 98 | K104: 99 | L104: 99 | M104: 98 | N104: 19 | O104: =IF(N(Q104)=0,Q104,SUM(IF(ISNUMBER($Q$5:$Q$108)*(Q104<$Q$5:$Q$108),1/COUNTIF($Q$5:$Q$108,$Q$5:$Q$108)))+1) -> 37 | Q104: 87
A105: =IF(C105="","",SUBTOTAL(3,$C$5:C105)) -> 101 | B105: 301 | C105: ايثار حمدي عبد الستار علي فرج | D105: 21 | E105: 11 | F105: 21 | G105: 23 | H105: 26 | I105: 99 | J105: 98 | K105: 97 | L105: 97 | M105: 98 | N105: 22 | O105: =IF(N(Q105)=0,Q105,SUM(IF(ISNUMBER($Q$5:$Q$108)*(Q105<$Q$5:$Q$108),1/COUNTIF($Q$5:$Q$108,$Q$5:$Q$108)))+1) -> 33 | Q105: 102
A106: =IF(C106="","",SUBTOTAL(3,$C$5:C106)) -> 102 | B106: 302 | C106: دعاء ياسر عبد الرحيم علي شعلان | D106: 30 | E106: 10 | F106: 30 | G106: 30 | H106: 29 | I106: 99 | J106: 98 | K106: 99 | L106: 97 | M106: 98 | N106: 30 | O106: =IF(N(Q106)=0,Q106,SUM(IF(ISNUMBER($Q$5:$Q$108)*(Q106<$Q$5:$Q$108),1/COUNTIF($Q$5:$Q$108,$Q$5:$Q$108)))+1) -> 20 | Q106: 129
A107: =IF(C107="","",SUBTOTAL(3,$C$5:C107)) -> 103 | B107: 303 | C107: ساره ماهر عبد الرازق حسن فراج | D107: غ | E107: غ | F107: غ | G107: غ | H107: غ | I107: غ | J107: غ | K107: غ | L107: غ | M107: غ | N107: غ | O107: =IF(N(Q107)=0,Q107,SUM(IF(ISNUMBER($Q$5:$Q$108)*(Q107<$Q$5:$Q$108),1/COUNTIF($Q$5:$Q$108,$Q$5:$Q$108)))+1) -> غ | Q107: =IF(AND(D107="غ",E107="غ",F107="غ",G107="غ",H107="غ"),"غ",SUM(D107:H107)) -> غ
A108: =IF(C108="","",SUBTOTAL(3,$C$5:C108)) -> 104 | B108: 304 | C108: منه امير عبد الله ابراهيم عامر | D108: 26 | E108: 9 | F108: 20 | G108: 21 | H108: 20 | I108: 99 | J108: 97 | K108: 99 | L108: 97 | M108: 98 | N108: 28 | O108: =IF(N(Q108)=0,Q108,SUM(IF(ISNUMBER($Q$5:$Q$108)*(Q108<$Q$5:$Q$108),1/COUNTIF($Q$5:$Q$108,$Q$5:$Q$108)))+1) -> 35 | Q108: =IF(AND(D108="غ",E108="غ",F108="غ",G108="غ",H108="غ"),"غ",SUM(D108:H108)) -> 96
A109: =IF(C109="","",SUBTOTAL(3,$C$5:C109)) -> 105 | B109: 305 | C109: هاجر ايمن محمود السيد المرادى | D109: 21 | E109: 12 | F109: 14 | G109: 17 | H109: 19 | I109: 99 | J109: 98 | K109: 99 | L109: 97 | M109: 98 | N109: 27 | O109: =IF(N(Q109)=0,Q109,SUM(IF(ISNUMBER($Q$5:$Q$108)*(Q109<$Q$5:$Q$108),1/COUNTIF($Q$5:$Q$108,$Q$5:$Q$108)))+1) -> 38 | Q109: =IF(AND(D109="غ",E109="غ",F109="غ",G109="غ",H109="غ"),"غ",SUM(D109:H109)) -> 83

Sheet الشهادات
A1: إدارة / قويسنا التعليمة0 | N1: =IF($R$7<=Nbre,$R$7,"") -> 1 | X1: الرابع | AA1: 1 | AC1: الرابع | AD1: الصف الخامس
A2: مدرسة / عرب الرمل الإبتدائية سكة حديد0 | F2: رقم الجلوس | H2: =IF($N1="","",VLOOKUP($N1,Liste,2)) -> 201 | J2: =IF(OR(M4<90%,M4=""),"","بارك الله لك") -> بارك الله لك | R2: للبحث وطباعة شهادة واحدة | X2: الخامس | AA2: 2 | AC2: الخامس | AD2: الصف السادس
A3: الاسم/ | B3: =IF($N$1="","",VLOOKUP($N$1,Liste,3)) -> ابراهيم السيد صبحى احمد الفارس | K3: الترتيب | M3: النسبة | X3: السادس | AA3: 3 | AC3: السادس | AD3: الصف الأول الإعدادى
A4: الصف / | B4: =IF($X$10="","",INDEX($X$1:$X$3,$X$10)) -> الخامس | K4: =IF(N1="","",VLOOKUP(N1,Liste,15)) -> 1 | M4: =IF($N1="","",G8/G6) -> 1 | R4: اختيار الصف من القائمة | AA4: 4
A5: النهاية | B5: عربي | C5: حساب | D5: انجليزي | E5: علوم | F5: دراسات | G5: المجموع | H5: نشاط1 | I5: نشاط2 | J5: فنى | K5: رياضى | L5: حاسب آلى | M5: دين | AA5: 5
A6: الكبرى | B6: 100 | C6: 80 | D6: 40 | E6: 40 | F6: 40 | G6: =SUM(B6:F6) -> 300 | H6: 20 | I6: 20 | J6: 20 | K6: 20 | L6: 20 | M6: 40 | AA6: 6
A7: الصغرى | B7: 50 | C7: 40 | D7: 20 | E7: 20 | F7: 20 | G7: =SUM(B7:F7) -> 150 | H7: 10 | I7: 10 | J7: 10 | K7: 10 | L7: 10 | M7: 20 | R7: 1 | AA7: 7
A8: الدرجة | B8: =IF($N1="","",VLOOKUP($N1,Liste,4)) -> 100 | C8: =IF($N1="","",VLOOKUP($N1,Liste,5)) -> 80 | D8: =IF($N1="","",VLOOKUP($N1,Liste,6)) -> 40 | E8: =IF($N1="","",VLOOKUP($N1,Liste,8)) -> 40 | F8: =IF($N1="","",VLOOKUP($N1,Liste,7)) -> 40 | G8: =IF(AND(B8="غ",C8="غ",D8="غ",E8="غ",F8="غ"),"غ",SUM(B8:F8)) -> 300 | H8: =IF($N1="","",VLOOKUP($N1,Liste,12)) -> 97 | I8: =IF($N1="","",VLOOKUP($N1,Liste,13)) -> 98 | J8: =IF($N1="","",VLOOKUP($N1,Liste,9)) -> 95 | K8: =IF($N1="","",VLOOKUP($N1,Liste,10)) -> 98 | L8: =IF($N1="","",VLOOKUP($N1,Liste,11)) -> 99 | M8: =IF($N1="","",VLOOKUP($N1,Liste,14)) -> 40 | AA8: 8
A9: المستوى | B9: =IF(OR(B3="",N1=""),"",IF(B8<B6*0.5,"دون المستوى",IF(B8="غ","غ",IF(B8>=B6*0.85,"ممتاز",IF(B8>=B6*0.75,"جيد جدا",IF(B8>=B6*0.65,"جيد",IF(B8>=B6*0.5,"مقبول"))))))) -> ممتاز | C9: =IF(OR($B$3="",$N$1=""),"",IF(C8<C6*0.5,"دون المستوى",IF(C8="غ","غ",IF(C8>=C6*0.85,"ممتاز",IF(C8>=C6*0.75,"جيد جدا",IF(C8>=C6*0.65,"جيد",IF(C8>=C6*0.5,"مقبول"))))))) -> ممتاز | D9: ممتاز | E9: ممتاز | F9: ممتاز | G9: =IF(OR($B$3="",$N$1=""),"",IF(G8<G6*0.5,"دون المستوى",IF(G8="غ","غ",IF(G8>=G6*0.85,"ممتاز",IF(G8>=G6*0.75,"جيد جدا",IF(G8>=G6*0.65,"جيد",IF(G8>=G6*0.5,"مقبول"))))))) -> ممتاز | H9: ممتاز | I9: ممتاز | J9: ممتاز | K9: ممتاز | L9: ممتاز | M9: ممتاز | O9: =IF(OR(B8<50,B8="غ")," - عربى ","") ->  | P9: =IF(OR(C8<40,C8="غ")," - رياضيات ","") ->  | Q9: =IF(OR(D8<20,D8="غ")," - إنجليزى ","") ->  | R9: =IF(OR(E8<20,E8="غ")," - علوم ","") ->  | S9: =IF(OR(F8<20,F8="غ")," - دراسات ","") ->  | T9: =IF(OR(M8<20,M8="غ")," - دبن ","") ->  | AA9: 9
B10: =IF(H10="","ناجح ومنقول إلى "&VLOOKUP(B4,$AC$1:$AD$3,2,0),"مواد الدور الثانى") -> ناجح ومنقول إلى الصف السادس | H10: =CONCATENATE(O9,P9,Q9,R9,S9,T9) ->  | O10: =IF(OR(B9<50,B9="غ")," - عربى ","") ->  | P10: =IF(OR(C9<40,C9="غ")," - رياضيات ","") ->  | Q10: =IF(OR(D9<20,D9="غ")," - إنجليزى ","") ->  | R10: =IF(OR(E9<20,E9="غ")," - علوم ","") ->  | S10: =IF(OR(F9<20,F9="غ")," - دراسات ","") ->  | T10: =IF(OR(M9<20,M9="غ")," - دبن ","") ->  | X10: 2 | AA10: 10
AA11: 11
A12: إدارة / قويسنا التعليمة0 | N12: =IF($R$7+1<=Nbre,$R$7+1,"") -> 2 | AA12: 12
A13: مدرسة / عرب الرمل الإبتدائية سكة حديد0 | F13: رقم الجلوس | H13: =IF($N12="","",VLOOKUP($N12,Liste,2)) -> 202 | J13: =IF(OR(M15<90%,M15=""),"","بارك الله لك") -> بارك الله لك | AA13: 13
A14: الاسم/ | B14: =IF($N12="","",VLOOKUP($N12,Liste,3)) -> احمد السيد عباس مصلحى | K14: الترتيب | M14: النسبة | AA14: 14
A15: الصف / | B15: =B4 -> الخامس | K15: =IF(N12="","",VLOOKUP(N12,Liste,15)) -> 1 | M15: =IF($N12="","",G19/G17) -> 1 | AA15: 15
A16: النهاية | B16: عربي | C16: حساب | D16: انجليزي | E16: علوم | F16: دراسات | G16: المجموع | H16: نشاط1 | I16: نشاط2 | J16: فنى | K16: رياضى | L16: حاسب آلى | M16: دين | AA16: 16
A17: الكبرى | B17: 100 | C17: 80 | D17: 40 | E17: 40 | F17: 40 | G17: =SUM(B17:F17) -> 300 | H17: 20 | I17: 20 | J17: 20 | K17: 20 | L17: 20 | M17: 40 | AA17: 17
A18: الصغرى | B18: 50 | C18: 40 | D18: 20 | E18: 20 | F18: 20 | G18: =SUM(B18:F18) -> 150 | H18: 10 | I18: 10 | J18: 10 | K18: 10 | L18: 10 | M18: 20 | AA18: 18
A19: الدرجة | B19: =IF($N12="","",VLOOKUP($N12,Liste,4)) -> 100 | C19: =IF($N12="","",VLOOKUP($N12,Liste,5)) -> 80 | D19: =IF($N12="","",VLOOKUP($N12,Liste,6)) -> 40 | E19: =IF($N12="","",VLOOKUP($N12,Liste,8)) -> 40 | F19: =IF($N12="","",VLOOKUP($N12,Liste,7)) -> 40 | G19: =IF(AND(B19="غ",C19="غ",D19="غ",E19="غ",F19="غ"),"غ",SUM(B19:F19)) -> 300 | H19: =IF($N12="","",VLOOKUP($N12,Liste,12)) -> 97 | I19: =IF($N12="","",VLOOKUP($N12,Liste,13)) -> 98 | J19: =IF($N12="","",VLOOKUP($N12,Liste,9)) -> 95 | K19: =IF($N12="","",VLOOKUP($N12,Liste,10)) -> 98 | L19: =IF($N12="","",VLOOKUP($N12,Liste,11)) -> 99 | M19: =IF($N12="","",VLOOKUP($N12,Liste,14)) -> 40 | AA19: 19
A20: المستوى | B20: =IF(OR($B$14="",$N$12=""),"",IF(B19<B17*0.5,"دون المستوى",IF(B19="غ","غ",IF(B19>=B17*0.85,"ممتاز",IF(B19>=B17*0.75,"جيد جدا",IF(B19>=B17*0.65,"جيد",IF(B19>=B17*0.5,"مقبول"))))))) -> ممتاز | C20: =IF(OR($B$14="",$N$12=""),"",IF(C19<C17*0.5,"دون المستوى",IF(C19="غ","غ",IF(C19>=C17*0.85,"ممتاز",IF(C19>=C17*0.75,"جيد جدا",IF(C19>=C17*0.65,"جيد",IF(C19>=C17*0.5,"مقبول"))))))) -> ممتاز | D20: ممتاز | E20: ممتاز | F20: ممتاز | G20: ممتاز | H20: ممتاز | I20: ممتاز | J20: ممتاز | K20: ممتاز | L20: ممتاز | M20: =IF(OR($B$14="",$N$12=""),"",IF(M19<M17*0.5,"دون المستوى",IF(M19="غ","غ",IF(M19>=M17*0.85,"ممتاز",IF(M19>=M17*0.75,"جيد جدا",IF(M19>=M17*0.65,"جيد",IF(M19>=M17*0.5,"مقبول"))))))) -> ممتاز | O20: =IF(OR(B19<50,B19="غ")," - عربى ","") ->  | P20: =IF(OR(C19<40,C19="غ")," - رياضيات ","") ->  | AA20: 20
B21: =IF(H21="","ناجح ومنقول إلى "&VLOOKUP(B15,$AC$1:$AD$3,2,0),"مواد الدور الثانى") -> ناجح ومنقول إلى الصف السادس | H21: =CONCATENATE(O20,P20,Q20,R20,S20,T20) ->  | AA21: 21
AA22: 22
A23: إدارة / قويسنا التعليمة0 | N23: =IF($R$7+2<=Nbre,$R$7+2,"") -> 3 | AA23: 23
A24: مدرسة / عرب الرمل الإبتدائية سكة حديد0 | F24: رقم الجلوس | H24: =IF($N23="","",VLOOKUP($N23,Liste,2)) -> 203 | J24: =IF(OR(M26<90%,M26=""),"","بارك الله لك") ->  | AA24: 24
A25: الاسم/ | B25: =IF($N23="","",VLOOKUP($N23,Liste,3)) -> أحمد أيمن السعيد المهدى العليمى | K25: الترتيب | M25: النسبة | AA25: 25
A26: الصف / | B26: =B15 -> الخامس | K26: =IF(N23="","",VLOOKUP(N23,Liste,15)) -> 3 | M26: =IF($N23="","",G30/G28) -> 0.4966666667 | AA26: 26
A27: النهاية | B27: عربي | C27: حساب | D27: انجليزي | E27: علوم | F27: دراسات | G27: المجموع | H27: نشاط1 | I27: نشاط2 | J27: فنى | K27: رياضى | L27: حاسب آلى | M27: دين | AA27: 27
A28: الكبرى | B28: 100 | C28: 80 | D28: 40 | E28: 40 | F28: 40 | G28: =SUM(B28:F28) -> 300 | H28: 20 | I28: 20 | J28: 20 | K28: 20 | L28: 20 | M28: 40 | AA28: 28
A29: الصغرى | B29: 50 | C29: 40 | D29: 20 | E29: 20 | F29: 20 | G29: =SUM(B29:F29) -> 150 | H29: 10 | I29: 10 | J29: 10 | K29: 10 | L29: 10 | M29: 20 | AA29: 29
A30: الدرجة | B30: =IF($N23="","",VLOOKUP($N23,Liste,4)) -> 29 | C30: =IF($N23="","",VLOOKUP($N23,Liste,5)) -> 30 | D30: =IF($N23="","",VLOOKUP($N23,Liste,6)) -> 30 | E30: =IF($N23="","",VLOOKUP($N23,Liste,8)) -> 30 | F30: =IF($N23="","",VLOOKUP($N23,Liste,7)) -> 30 | G30: =IF(AND(B30="غ",C30="غ",D30="غ",E30="غ",F30="غ"),"غ",SUM(B30:F30)) -> 149 | H30: =IF($N23="","",VLOOKUP($N23,Liste,12)) -> 97 | I30: =IF($N23="","",VLOOKUP($N23,Liste,13)) -> 98 | J30: =IF($N23="","",VLOOKUP($N23,Liste,9)) -> 99 | K30: =IF($N23="","",VLOOKUP($N23,Liste,10)) -> 98 | L30: =IF($N23="","",VLOOKUP($N23,Liste,11)) -> 98 | M30: =IF($N23="","",VLOOKUP($N23,Liste,14)) -> 30 | AA30: 30
A31: المستوى | B31: =IF(OR($B$25="",$N$23=""),"",IF(B30<B28*0.5,"دون المستوى",IF(B30="غ","غ",IF(B30>=B28*0.85,"ممتاز",IF(B30>=B28*0.75,"جيد جدا",IF(B30>=B28*0.65,"جيد",IF(B30>=B28*0.5,"مقبول"))))))) -> دون المستوى | C31: =IF(OR($B$25="",$N$23=""),"",IF(C30<C28*0.5,"دون المستوى",IF(C30="غ","غ",IF(C30>=C28*0.85,"ممتاز",IF(C30>=C28*0.75,"جيد جدا",IF(C30>=C28*0.65,"جيد",IF(C30>=C28*0.5,"مقبول"))))))) -> دون المستوى | D31: جيد جدا | E31: جيد جدا | F31: جيد جدا | G31: دون المستوى | H31: ممتاز | I31: ممتاز | J31: ممتاز | K31: ممتاز | L31: ممتاز | M31: =IF(OR($B$25="",$N$23=""),"",IF(M30<M28*0.5,"دون المستوى",IF(M30="غ","غ",IF(M30>=M28*0.85,"ممتاز",IF(M30>=M28*0.75,"جيد جدا",IF(M30>=M28*0.65,"جيد",IF(M30>=M28*0.5,"مقبول"))))))) -> جيد جدا | O31: - عربى | P31: - رياضيات | T31: =IF(OR(M30<20,M30="غ")," - دبن ","") ->  | AA31: 31
B32: =IF(H32="","ناجح ومنقول إلى "&VLOOKUP(B26,$AC$1:$AD$3,2,0),"مواد الدور الثانى") -> مواد الدور الثانى | H32: =CONCATENATE(O31,P31,Q31,R31,S31,T31) -> - عربى - رياضيات | AA32: 32
AA33: 33
AA34: 34
AA35: 35
AA36: 36
AA37: 37
AA38: 38
AA39: 39
AA40: 40
AA41: 41
AA42: 42
AA43: 43
AA44: 44
AA45: 45
AA46: 46
AA47: 47
AA48: 48
AA49: 49
AA50: 50
AA51: 51
AA52: 52
AA53: 53
AA54: 54
AA55: 55
AA56: 56
AA57: 57
AA58: 58
AA59: 59
AA60: 60
AA61: 61
AA62: 62
AA63: 63
AA64: 64
AA65: 65
AA66: 66
AA67: 67
AA68: 68
AA69: 69
AA70: 70
AA71: 71
AA72: 72
AA73: 73
AA74: 74
AA75: 75
AA76: 76
AA77: 77
AA78: 78
AA79: 79
AA80: 80
AA81: 81
AA82: 82
AA83: 83
AA84: 84
AA85: 85
AA86: 86
AA87: 87
AA88: 88
AA89: 89
AA90: 90
AA91: 91
AA92: 92
AA93: 93
AA94: 94
AA95: 95
AA96: 96
AA97: 97
AA98: 98
AA99: 99
AA100: 100
AA101: 101
AA102: 102
AA103: 103
AA104: 104
AA105: 105
AA106: 106
AA107: 107
AA108: 108
AA109: 109
AA110: 110
AA111: 111
AA112: 112
AA113: 113
AA114: 114
AA115: 115
AA116: 116
AA117: 117
AA118: 118
AA119: 119
AA120: 120
AA121: 121
AA122: 122
AA123: 123
AA124: 124
AA125: 125
AA126: 126
AA127: 127
AA128: 128
AA129: 129
AA130: 130
AA131: 131
AA132: 132
AA133: 133
AA134: 134
AA135: 135
AA136: 136
AA137: 137
AA138: 138
AA139: 139
AA140: 140
AA141: 141
AA142: 142
AA143: 143
AA144: 144
AA145: 145
AA146: 146
AA147: 147
AA148: 148
AA149: 149
AA150: 150
AA151: 151
AA152: 152
AA153: 153
AA154: 154
AA155: 155
AA156: 156
AA157: 157
AA158: 158
AA159: 159
AA160: 160
AA161: 161
AA162: 162
AA163: 163
AA164: 164
AA165: 165
AA166: 166
AA167: 167
AA168: 168
AA169: 169
AA170: 170
AA171: 171
AA172: 172
AA173: 173
AA174: 174
AA175: 175
AA176: 176
AA177: 177
AA178: 178
AA179: 179
AA180: 180
AA181: 181
AA182: 182
AA183: 183
AA184: 184
AA185: 185
AA186: 186
AA187: 187
AA188: 188
AA189: 189
AA190: 190
AA191: 191
AA192: 192
AA193: 193
AA194: 194
AA195: 195
AA196: 196
AA197: 197
AA198: 198
AA199: 199
AA200: 200
... 138 more rows
